Workbook

Sheet Введення даних
B2: Форма введення даних
B4: Габарити корпусу | F4: Параметри фасаду | J4: Вага фасаду
B6: Висота фасаду [мм] | F6: Матеріал фасаду | J6: Розрахунок ваги фасаду
B7: 500 | F7: МДФ | J7: Автоматичний
B9: Ширина корпусу [мм] | F9: Щільність матеріалу [кг/м3] | J9: Вага фасаду [кг, розрахунок]
B10: 600 | F10: =IFERROR(VLOOKUP(F7,material_list[#Data],2,FALSE)," - ") -> 770 | J10: =IF(OR(F13="",F13<0),"Введіть вагу ручки",(B7/1000)*(B10/1000)*(B16/1000)*F10) -> 4.39
B12: Внутрішня глибина корпусу [мм] | F12: Вага ручки [грам] | J12: Вага фасаду [кг, ручне введення]
B13: 280 | F13: 150
B15: Товщина фасаду [мм]
B16: 19

Sheet Результат
B5: Висота фасаду, мм | C5: ='Введення даних'!B7 -> 500 | G5: Ширина корпусу: ≤600 мм | I5: Ширина корпусу більше 600 мм
B6: Ширина корпусу, мм | C6: ='Введення даних'!B10 -> 600 | E6: Тип | F6: Кут | G6: 1 комплет, лівий або правий | I6: 2 комплекти, лівий + правий
B7: Внутрішня глибина корпусу, мм | C7: ='Введення даних'!B13 -> 280 | E7: відкривання | F7: відкривання | G7: Рекомендована | H7: Альтернативна | I7: Рекомендована | J7: Альтернативна
B8: Товщина фасаду, мм | C8: =IF(C12="Ручне введення"," - ",'Введення даних'!B16) -> 19 | E8: Standard | F8: 75 | G8: =IF($C$6>600," - ",IFERROR(INDEX(rawdata[Model],MATCH(Результат!$E8&Результат!$F8&LARGE(IF(rawdata[Opening type]=E8,IF(rawdata[Opening angle]=Результат!$F8,rawdata[FWq 1])),1),rawdata[Opening type]&rawdata[Opening angle]&rawdata[FWq 1],0))," - ")) -> B | H8: =IF($C$6>600," - ",IFERROR(INDEX(rawdata[Model],MATCH(Результат!$E8&Результат!$F8&LARGE(IF(rawdata[Opening type]=E8,IF(rawdata[Opening angle]=Результат!$F8,rawdata[FWq 1])),2),rawdata[Opening type]&rawdata[Opening angle]&rawdata[FWq 1],0))," - ")) -> - | I8: =IFERROR(INDEX(rawdata[Model],MATCH(Результат!$E8&Результат!$F8&LARGE(IF(rawdata[Opening type]=E8,IF(rawdata[Opening angle]=Результат!$F8,rawdata[FWq 2])),1),rawdata[Opening type]&rawdata[Opening angle]&rawdata[FWq 2],0))," - ") -> A | J8: =IFERROR(INDEX(rawdata[Model],MATCH(Результат!$E8&Результат!$F8&LARGE(IF(rawdata[Opening type]=E8,IF(rawdata[Opening angle]=Результат!$F8,rawdata[FWq 2])),2),rawdata[Opening type]&rawdata[Opening angle]&rawdata[FWq 2],0))," - ") -> -
B9: Матеріал фасаду | C9: =IF(C12="Ручне введення"," - ",'Введення даних'!F7) -> МДФ | E9: Standard | F9: 90 | G9: =IF($C$6>600," - ",IFERROR(INDEX(rawdata[Model],MATCH(Результат!$E9&Результат!$F9&LARGE(IF(rawdata[Opening type]=E9,IF(rawdata[Opening angle]=Результат!$F9,rawdata[FWq 1])),1),rawdata[Opening type]&rawdata[Opening angle]&rawdata[FWq 1],0))," - ")) -> D | H9: =IF($C$6>600," - ",IFERROR(INDEX(rawdata[Model],MATCH(Результат!$E9&Результат!$F9&LARGE(IF(rawdata[Opening type]=E9,IF(rawdata[Opening angle]=Результат!$F9,rawdata[FWq 1])),2),rawdata[Opening type]&rawdata[Opening angle]&rawdata[FWq 1],0))," - ")) -> - | I9: =IFERROR(INDEX(rawdata[Model],MATCH(Результат!$E9&Результат!$F9&LARGE(IF(rawdata[Opening type]=E9,IF(rawdata[Opening angle]=Результат!$F9,rawdata[FWq 2])),1),rawdata[Opening type]&rawdata[Opening angle]&rawdata[FWq 2],0))," - ") -> B | J9: =IFERROR(INDEX(rawdata[Model],MATCH(Результат!$E9&Результат!$F9&LARGE(IF(rawdata[Opening type]=E9,IF(rawdata[Opening angle]=Результат!$F9,rawdata[FWq 2])),2),rawdata[Opening type]&rawdata[Opening angle]&rawdata[FWq 2],0))," - ") -> -
B10: Щільність матеріалу, кг/м3 | C10: =IF(C12="Ручне введення"," - ",'Введення даних'!F10) -> 770 | E10: Standard | F10: 110 | G10: =IF($C$6>600," - ",IFERROR(INDEX(rawdata[Model],MATCH(Результат!$E10&Результат!$F10&LARGE(IF(rawdata[Opening type]=E10,IF(rawdata[Opening angle]=Результат!$F10,rawdata[FWq 1])),1),rawdata[Opening type]&rawdata[Opening angle]&rawdata[FWq 1],0))," - ")) -> - | H10: =IF($C$6>600," - ",IFERROR(INDEX(rawdata[Model],MATCH(Результат!$E10&Результат!$F10&LARGE(IF(rawdata[Opening type]=E10,IF(rawdata[Opening angle]=Результат!$F10,rawdata[FWq 1])),2),rawdata[Opening type]&rawdata[Opening angle]&rawdata[FWq 1],0))," - ")) -> - | I10: =IFERROR(INDEX(rawdata[Model],MATCH(Результат!$E10&Результат!$F10&LARGE(IF(rawdata[Opening type]=E10,IF(rawdata[Opening angle]=Результат!$F10,rawdata[FWq 2])),1),rawdata[Opening type]&rawdata[Opening angle]&rawdata[FWq 2],0))," - ") -> B | J10: =IFERROR(INDEX(rawdata[Model],MATCH(Результат!$E10&Результат!$F10&LARGE(IF(rawdata[Opening type]=E10,IF(rawdata[Opening angle]=Результат!$F10,rawdata[FWq 2])),2),rawdata[Opening type]&rawdata[Opening angle]&rawdata[FWq 2],0))," - ") -> -
B11: Вага ручки, грам | C11: ='Введення даних'!F13 -> 150 | E11: Touch opening | F11: 75 | G11: =IF($C$6>600," - ",IFERROR(INDEX(rawdata[Model],MATCH(Результат!$E11&Результат!$F11&LARGE(IF(rawdata[Opening type]=E11,IF(rawdata[Opening angle]=Результат!$F11,rawdata[FWq 1])),1),rawdata[Opening type]&rawdata[Opening angle]&rawdata[FWq 1],0))," - ")) -> C* | H11: =IF($C$6>600," - ",IFERROR(INDEX(rawdata[Model],MATCH(Результат!$E11&Результат!$F11&LARGE(IF(rawdata[Opening type]=E11,IF(rawdata[Opening angle]=Результат!$F11,rawdata[FWq 1])),2),rawdata[Opening type]&rawdata[Opening angle]&rawdata[FWq 1],0))," - ")) -> - | I11: =IFERROR(INDEX(rawdata[Model],MATCH(Результат!$E11&Результат!$F11&LARGE(IF(rawdata[Opening type]=E11,IF(rawdata[Opening angle]=Результат!$F11,rawdata[FWq 2])),1),rawdata[Opening type]&rawdata[Opening angle]&rawdata[FWq 2],0))," - ") -> - | J11: =IFERROR(INDEX(rawdata[Model],MATCH(Результат!$E11&Результат!$F11&LARGE(IF(rawdata[Opening type]=E11,IF(rawdata[Opening angle]=Результат!$F11,rawdata[FWq 2])),2),rawdata[Opening type]&rawdata[Opening angle]&rawdata[FWq 2],0))," - ") -> -
B12: Розрахунок ваги фасаду | C12: ='Введення даних'!J7:L7 -> Автоматичний | E12: Touch opening | F12: 90 | G12: =IF($C$6>600," - ",IFERROR(INDEX(rawdata[Model],MATCH(Результат!$E12&Результат!$F12&LARGE(IF(rawdata[Opening type]=E12,IF(rawdata[Opening angle]=Результат!$F12,rawdata[FWq 1])),1),rawdata[Opening type]&rawdata[Opening angle]&rawdata[FWq 1],0))," - ")) -> D | H12: =IF($C$6>600," - ",IFERROR(INDEX(rawdata[Model],MATCH(Результат!$E12&Результат!$F12&LARGE(IF(rawdata[Opening type]=E12,IF(rawdata[Opening angle]=Результат!$F12,rawdata[FWq 1])),2),rawdata[Opening type]&rawdata[Opening angle]&rawdata[FWq 1],0))," - ")) -> - | I12: =IFERROR(INDEX(rawdata[Model],MATCH(Результат!$E12&Результат!$F12&LARGE(IF(rawdata[Opening type]=E12,IF(rawdata[Opening angle]=Результат!$F12,rawdata[FWq 2])),1),rawdata[Opening type]&rawdata[Opening angle]&rawdata[FWq 2],0))," - ") -> B | J12: =IFERROR(INDEX(rawdata[Model],MATCH(Результат!$E12&Результат!$F12&LARGE(IF(rawdata[Opening type]=E12,IF(rawdata[Opening angle]=Результат!$F12,rawdata[FWq 2])),2),rawdata[Opening type]&rawdata[Opening angle]&rawdata[FWq 2],0))," - ") -> -
B13: Вага фасаду без ручки, кг | C13: =IF('Введення даних'!J7="Автоматичний",'Введення даних'!J10,IF(OR('Введення даних'!J13="",'Введення даних'!J13=0),"Введіть вагу",'Введення даних'!J13)) -> 4.39 | E13: Touch opening | F13: 110 | G13: =IF($C$6>600," - ",IFERROR(INDEX(rawdata[Model],MATCH(Результат!$E13&Результат!$F13&LARGE(IF(rawdata[Opening type]=E13,IF(rawdata[Opening angle]=Результат!$F13,rawdata[FWq 1])),1),rawdata[Opening type]&rawdata[Opening angle]&rawdata[FWq 1],0))," - ")) -> - | H13: =IF($C$6>600," - ",IFERROR(INDEX(rawdata[Model],MATCH(Результат!$E13&Результат!$F13&LARGE(IF(rawdata[Opening type]=E13,IF(rawdata[Opening angle]=Результат!$F13,rawdata[FWq 1])),2),rawdata[Opening type]&rawdata[Opening angle]&rawdata[FWq 1],0))," - ")) -> - | I13: =IFERROR(INDEX(rawdata[Model],MATCH(Результат!$E13&Результат!$F13&LARGE(IF(rawdata[Opening type]=E13,IF(rawdata[Opening angle]=Результат!$F13,rawdata[FWq 2])),1),rawdata[Opening type]&rawdata[Opening angle]&rawdata[FWq 2],0))," - ") -> C | J13: =IFERROR(INDEX(rawdata[Model],MATCH(Результат!$E13&Результат!$F13&LARGE(IF(rawdata[Opening type]=E13,IF(rawdata[Opening angle]=Результат!$F13,rawdata[FWq 2])),2),rawdata[Opening type]&rawdata[Opening angle]&rawdata[FWq 2],0))," - ") -> B
B14: Вага фасаду з ручкою, кг | C14: =IFERROR(IF(C13="Введіть вагу","Введіть вагу",C13+'Введення даних'!F13/1000),C13) -> 4.54 | E14: Push-to-open | F14: 75 | G14: =IF($C$6>600," - ",IFERROR(INDEX(rawdata[Model],MATCH(Результат!$E14&Результат!$F14&LARGE(IF(rawdata[Opening type]=E14,IF(rawdata[Opening angle]=Результат!$F14,rawdata[FWq 1])),1),rawdata[Opening type]&rawdata[Opening angle]&rawdata[FWq 1],0))," - ")) -> D | H14: =IF($C$6>600," - ",IFERROR(INDEX(rawdata[Model],MATCH(Результат!$E14&Результат!$F14&LARGE(IF(rawdata[Opening type]=E14,IF(rawdata[Opening angle]=Результат!$F14,rawdata[FWq 1])),2),rawdata[Opening type]&rawdata[Opening angle]&rawdata[FWq 1],0))," - ")) -> - | I14: =IFERROR(INDEX(rawdata[Model],MATCH(Результат!$E14&Результат!$F14&LARGE(IF(rawdata[Opening type]=E14,IF(rawdata[Opening angle]=Результат!$F14,rawdata[FWq 2])),1),rawdata[Opening type]&rawdata[Opening angle]&rawdata[FWq 2],0))," - ") -> B | J14: =IFERROR(INDEX(rawdata[Model],MATCH(Результат!$E14&Результат!$F14&LARGE(IF(rawdata[Opening type]=E14,IF(rawdata[Opening angle]=Результат!$F14,rawdata[FWq 2])),2),rawdata[Opening type]&rawdata[Opening angle]&rawdata[FWq 2],0))," - ") -> -
E15: Push-to-open | F15: 90 | G15: =IF($C$6>600," - ",IFERROR(INDEX(rawdata[Model],MATCH(Результат!$E15&Результат!$F15&LARGE(IF(rawdata[Opening type]=E15,IF(rawdata[Opening angle]=Результат!$F15,rawdata[FWq 1])),1),rawdata[Opening type]&rawdata[Opening angle]&rawdata[FWq 1],0))," - ")) -> - | H15: =IF($C$6>600," - ",IFERROR(INDEX(rawdata[Model],MATCH(Результат!$E15&Результат!$F15&LARGE(IF(rawdata[Opening type]=E15,IF(rawdata[Opening angle]=Результат!$F15,rawdata[FWq 1])),2),rawdata[Opening type]&rawdata[Opening angle]&rawdata[FWq 1],0))," - ")) -> - | I15: =IFERROR(INDEX(rawdata[Model],MATCH(Результат!$E15&Результат!$F15&LARGE(IF(rawdata[Opening type]=E15,IF(rawdata[Opening angle]=Результат!$F15,rawdata[FWq 2])),1),rawdata[Opening type]&rawdata[Opening angle]&rawdata[FWq 2],0))," - ") -> C | J15: =IFERROR(INDEX(rawdata[Model],MATCH(Результат!$E15&Результат!$F15&LARGE(IF(rawdata[Opening type]=E15,IF(rawdata[Opening angle]=Результат!$F15,rawdata[FWq 2])),2),rawdata[Opening type]&rawdata[Opening angle]&rawdata[FWq 2],0))," - ") -> D
E16: Push-to-open | F16: 110 | G16: =IF($C$6>600," - ",IFERROR(INDEX(rawdata[Model],MATCH(Результат!$E16&Результат!$F16&LARGE(IF(rawdata[Opening type]=E16,IF(rawdata[Opening angle]=Результат!$F16,rawdata[FWq 1])),1),rawdata[Opening type]&rawdata[Opening angle]&rawdata[FWq 1],0))," - ")) -> - | H16: =IF($C$6>600," - ",IFERROR(INDEX(rawdata[Model],MATCH(Результат!$E16&Результат!$F16&LARGE(IF(rawdata[Opening type]=E16,IF(rawdata[Opening angle]=Результат!$F16,rawdata[FWq 1])),2),rawdata[Opening type]&rawdata[Opening angle]&rawdata[FWq 1],0))," - ")) -> - | I16: =IFERROR(INDEX(rawdata[Model],MATCH(Результат!$E16&Результат!$F16&LARGE(IF(rawdata[Opening type]=E16,IF(rawdata[Opening angle]=Результат!$F16,rawdata[FWq 2])),1),rawdata[Opening type]&rawdata[Opening angle]&rawdata[FWq 2],0))," - ") -> D | J16: =IFERROR(INDEX(rawdata[Model],MATCH(Результат!$E16&Результат!$F16&LARGE(IF(rawdata[Opening type]=E16,IF(rawdata[Opening angle]=Результат!$F16,rawdata[FWq 2])),2),rawdata[Opening type]&rawdata[Opening angle]&rawdata[FWq 2],0))," - ") -> -
E17: * 356.06.460/461 + 356.06.470/471

Sheet Підбір підіймачів (hidden)
B2: Висота фасаду, мм | C2: ='Введення даних'!B7 -> 500 | E2: Алгоритм підбору підіймачів
B3: Ширина корпусу, мм | C3: ='Введення даних'!B10 -> 600 | E3: Крок 1. Пошук моделей із співпадінням по вазі та висоті фасаду.
B4: Внутрішня глибина корпусу, мм | C4: ='Введення даних'!B13 -> 280 | E4: Крок 2. Розрахунок коефіцієнту, який показує на скільки вага фасаду співвідноситься із діапазоном
B5: Товщина фасаду, мм | C5: ='Введення даних'!B16 -> 19 | E5: мінімальної та максимальної ваги для конретної моделі та кута відкривання.
B6: Матеріал фасаду | C6: ='Введення даних'!F7 -> МДФ | E6: Крок 3.1. Для 1го комплекту. Пошук моделі підіймача з найвищим коефіцієнтом співвідношення (індекс 1).
B7: Щільність матеріалу, кг/м3 | C7: ='Введення даних'!F10 -> 770 | E7: Крок 3.2. Для 2х комплекту. Пошук моделі підіймача з найнижчим коефіцієнтом співвідношення (індекс 1).
B8: Вага ручки, грам | C8: ='Введення даних'!F13 -> 150
B9: Вага фасаду без ручки, кг | C9: =Результат!C13 -> 4.39
B10: Вага фасаду з ручкою, кг | C10: =Результат!C14 -> 4.54
I11: Q висоти фасаду | J11: =LARGE(IF(J13:J192<=1,J13:J192),1) -> 1.00 | P11: =LARGE(IF(rawdata[FWq 1]<=1,rawdata[FWq 1]),1) -> 25.33%
B12: Opening type | C12: Opening angle | D12: KH | E12: KDmin | F12: Model | G12: FW | H12: FWmin | I12: FWmax | J12: FHq | K12: Fhmatch 1 | L12: FWq 1 | M12: Fhmatch 2 | N12: Fwmin 2 | O12: FWmax 2 | P12: FWq 2
B13: Standard | C13: 75 | D13: 350 | E13: 165 | F13: A | G13: =IF(rawdata[[#This Row],[Opening type]]="Standard",$C$10,$C$9) -> 4.54 | H13: 2.6 | I13: 4.2 | J13: =$C$2/D13 -> 1.43 | K13: =IF(AND($C$4>=rawdata[[#This Row],[KDmin]],$J$11=rawdata[[#This Row],[FHq]],rawdata[[#This Row],[FW]]>=rawdata[[#This Row],[FWmin]],rawdata[[#This Row],[FW]]<=rawdata[[#This Row],[FWmax]]),"YES"," - ") -> - | L13: =IF(rawdata[[#This Row],[Fhmatch 1]]="YES",((1-rawdata[[#This Row],[FWmin]]/rawdata[[#This Row],[FW]])+(1-rawdata[[#This Row],[FW]]/rawdata[[#This Row],[FWmax]]))/2,"") ->  | M13: =IF(AND($C$4>=rawdata[[#This Row],[KDmin]],$J$11=rawdata[[#This Row],[FHq]],rawdata[[#This Row],[FW]]/2>=rawdata[[#This Row],[FWmin]],rawdata[[#This Row],[FW]]/2<=rawdata[[#This Row],[FWmax]]),"YES"," - ") -> - | N13: =IFERROR(rawdata[[#This Row],[FWmin]]*2," - ") -> 5.2 | O13: =IFERROR(rawdata[[#This Row],[FWmax]]*2," - ") -> 8.4 | P13: =IF(rawdata[[#This Row],[Fhmatch 2]]="YES",((1-rawdata[[#This Row],[Fwmin 2]]/rawdata[[#This Row],[FW]])+(1-rawdata[[#This Row],[FW]]/rawdata[[#This Row],[FWmax 2]]))/2,"") -> 
B14: Standard | C14: 75 | D14: 350 | E14: 165 | F14: B | G14: =IF(rawdata[[#This Row],[Opening type]]="Standard",$C$10,$C$9) -> 4.54 | H14: 3.8 | I14: 6.5 | J14: 1.43 | K14: =IF(AND($C$4>=rawdata[[#This Row],[KDmin]],$J$11=rawdata[[#This Row],[FHq]],rawdata[[#This Row],[FW]]>=rawdata[[#This Row],[FWmin]],rawdata[[#This Row],[FW]]<=rawdata[[#This Row],[FWmax]]),"YES"," - ") -> - | L14: =IF(rawdata[[#This Row],[Fhmatch 1]]="YES",((1-rawdata[[#This Row],[FWmin]]/rawdata[[#This Row],[FW]])+(1-rawdata[[#This Row],[FW]]/rawdata[[#This Row],[FWmax]]))/2,"") ->  | M14: =IF(AND($C$4>=rawdata[[#This Row],[KDmin]],$J$11=rawdata[[#This Row],[FHq]],rawdata[[#This Row],[FW]]/2>=rawdata[[#This Row],[FWmin]],rawdata[[#This Row],[FW]]/2<=rawdata[[#This Row],[FWmax]]),"YES"," - ") -> - | N14: =IFERROR(rawdata[[#This Row],[FWmin]]*2," - ") -> 7.6 | O14: =IFERROR(rawdata[[#This Row],[FWmax]]*2," - ") -> 13.0 | P14: =IF(rawdata[[#This Row],[Fhmatch 2]]="YES",((1-rawdata[[#This Row],[Fwmin 2]]/rawdata[[#This Row],[FW]])+(1-rawdata[[#This Row],[FW]]/rawdata[[#This Row],[FWmax 2]]))/2,"") -> 
B15: Standard | C15: 75 | D15: 350 | E15: 165 | F15: D | G15: =IF(rawdata[[#This Row],[Opening type]]="Standard",$C$10,$C$9) -> 4.54 | H15: 6.2 | I15: 10.9 | J15: 1.43 | K15: =IF(AND($C$4>=rawdata[[#This Row],[KDmin]],$J$11=rawdata[[#This Row],[FHq]],rawdata[[#This Row],[FW]]>=rawdata[[#This Row],[FWmin]],rawdata[[#This Row],[FW]]<=rawdata[[#This Row],[FWmax]]),"YES"," - ") -> - | L15: =IF(rawdata[[#This Row],[Fhmatch 1]]="YES",((1-rawdata[[#This Row],[FWmin]]/rawdata[[#This Row],[FW]])+(1-rawdata[[#This Row],[FW]]/rawdata[[#This Row],[FWmax]]))/2,"") ->  | M15: =IF(AND($C$4>=rawdata[[#This Row],[KDmin]],$J$11=rawdata[[#This Row],[FHq]],rawdata[[#This Row],[FW]]/2>=rawdata[[#This Row],[FWmin]],rawdata[[#This Row],[FW]]/2<=rawdata[[#This Row],[FWmax]]),"YES"," - ") -> - | N15: =IFERROR(rawdata[[#This Row],[FWmin]]*2," - ") -> 12.4 | O15: =IFERROR(rawdata[[#This Row],[FWmax]]*2," - ") -> 21.8 | P15: =IF(rawdata[[#This Row],[Fhmatch 2]]="YES",((1-rawdata[[#This Row],[Fwmin 2]]/rawdata[[#This Row],[FW]])+(1-rawdata[[#This Row],[FW]]/rawdata[[#This Row],[FWmax 2]]))/2,"") -> 
B16: Standard | C16: 75 | D16: 400 | E16: 165 | F16: A | G16: =IF(rawdata[[#This Row],[Opening type]]="Standard",$C$10,$C$9) -> 4.54 | H16: 2.3 | I16: 3.3 | J16: 1.25 | K16: =IF(AND($C$4>=rawdata[[#This Row],[KDmin]],$J$11=rawdata[[#This Row],[FHq]],rawdata[[#This Row],[FW]]>=rawdata[[#This Row],[FWmin]],rawdata[[#This Row],[FW]]<=rawdata[[#This Row],[FWmax]]),"YES"," - ") -> - | L16: =IF(rawdata[[#This Row],[Fhmatch 1]]="YES",((1-rawdata[[#This Row],[FWmin]]/rawdata[[#This Row],[FW]])+(1-rawdata[[#This Row],[FW]]/rawdata[[#This Row],[FWmax]]))/2,"") ->  | M16: =IF(AND($C$4>=rawdata[[#This Row],[KDmin]],$J$11=rawdata[[#This Row],[FHq]],rawdata[[#This Row],[FW]]/2>=rawdata[[#This Row],[FWmin]],rawdata[[#This Row],[FW]]/2<=rawdata[[#This Row],[FWmax]]),"YES"," - ") -> - | N16: =IFERROR(rawdata[[#This Row],[FWmin]]*2," - ") -> 4.6 | O16: =IFERROR(rawdata[[#This Row],[FWmax]]*2," - ") -> 6.6 | P16: =IF(rawdata[[#This Row],[Fhmatch 2]]="YES",((1-rawdata[[#This Row],[Fwmin 2]]/rawdata[[#This Row],[FW]])+(1-rawdata[[#This Row],[FW]]/rawdata[[#This Row],[FWmax 2]]))/2,"") -> 
B17: Standard | C17: 75 | D17: 400 | E17: 165 | F17: B | G17: =IF(rawdata[[#This Row],[Opening type]]="Standard",$C$10,$C$9) -> 4.54 | H17: 3.0 | I17: 5.8 | J17: 1.25 | K17: =IF(AND($C$4>=rawdata[[#This Row],[KDmin]],$J$11=rawdata[[#This Row],[FHq]],rawdata[[#This Row],[FW]]>=rawdata[[#This Row],[FWmin]],rawdata[[#This Row],[FW]]<=rawdata[[#This Row],[FWmax]]),"YES"," - ") -> - | L17: =IF(rawdata[[#This Row],[Fhmatch 1]]="YES",((1-rawdata[[#This Row],[FWmin]]/rawdata[[#This Row],[FW]])+(1-rawdata[[#This Row],[FW]]/rawdata[[#This Row],[FWmax]]))/2,"") ->  | M17: =IF(AND($C$4>=rawdata[[#This Row],[KDmin]],$J$11=rawdata[[#This Row],[FHq]],rawdata[[#This Row],[FW]]/2>=rawdata[[#This Row],[FWmin]],rawdata[[#This Row],[FW]]/2<=rawdata[[#This Row],[FWmax]]),"YES"," - ") -> - | N17: =IFERROR(rawdata[[#This Row],[FWmin]]*2," - ") -> 6.0 | O17: =IFERROR(rawdata[[#This Row],[FWmax]]*2," - ") -> 11.6 | P17: =IF(rawdata[[#This Row],[Fhmatch 2]]="YES",((1-rawdata[[#This Row],[Fwmin 2]]/rawdata[[#This Row],[FW]])+(1-rawdata[[#This Row],[FW]]/rawdata[[#This Row],[FWmax 2]]))/2,"") -> 
B18: Standard | C18: 75 | D18: 400 | E18: 165 | F18: D | G18: =IF(rawdata[[#This Row],[Opening type]]="Standard",$C$10,$C$9) -> 4.54 | H18: 5.6 | I18: 10.2 | J18: 1.25 | K18: =IF(AND($C$4>=rawdata[[#This Row],[KDmin]],$J$11=rawdata[[#This Row],[FHq]],rawdata[[#This Row],[FW]]>=rawdata[[#This Row],[FWmin]],rawdata[[#This Row],[FW]]<=rawdata[[#This Row],[FWmax]]),"YES"," - ") -> - | L18: =IF(rawdata[[#This Row],[Fhmatch 1]]="YES",((1-rawdata[[#This Row],[FWmin]]/rawdata[[#This Row],[FW]])+(1-rawdata[[#This Row],[FW]]/rawdata[[#This Row],[FWmax]]))/2,"") ->  | M18: =IF(AND($C$4>=rawdata[[#This Row],[KDmin]],$J$11=rawdata[[#This Row],[FHq]],rawdata[[#This Row],[FW]]/2>=rawdata[[#This Row],[FWmin]],rawdata[[#This Row],[FW]]/2<=rawdata[[#This Row],[FWmax]]),"YES"," - ") -> - | N18: =IFERROR(rawdata[[#This Row],[FWmin]]*2," - ") -> 11.2 | O18: =IFERROR(rawdata[[#This Row],[FWmax]]*2," - ") -> 20.4 | P18: =IF(rawdata[[#This Row],[Fhmatch 2]]="YES",((1-rawdata[[#This Row],[Fwmin 2]]/rawdata[[#This Row],[FW]])+(1-rawdata[[#This Row],[FW]]/rawdata[[#This Row],[FWmax 2]]))/2,"") -> 
B19: Standard | C19: 75 | D19: 450 | E19: 165 | F19: A | G19: =IF(rawdata[[#This Row],[Opening type]]="Standard",$C$10,$C$9) -> 4.54 | H19: 2.2 | I19: 3.1 | J19: 1.11 | K19: =IF(AND($C$4>=rawdata[[#This Row],[KDmin]],$J$11=rawdata[[#This Row],[FHq]],rawdata[[#This Row],[FW]]>=rawdata[[#This Row],[FWmin]],rawdata[[#This Row],[FW]]<=rawdata[[#This Row],[FWmax]]),"YES"," - ") -> - | L19: =IF(rawdata[[#This Row],[Fhmatch 1]]="YES",((1-rawdata[[#This Row],[FWmin]]/rawdata[[#This Row],[FW]])+(1-rawdata[[#This Row],[FW]]/rawdata[[#This Row],[FWmax]]))/2,"") ->  | M19: =IF(AND($C$4>=rawdata[[#This Row],[KDmin]],$J$11=rawdata[[#This Row],[FHq]],rawdata[[#This Row],[FW]]/2>=rawdata[[#This Row],[FWmin]],rawdata[[#This Row],[FW]]/2<=rawdata[[#This Row],[FWmax]]),"YES"," - ") -> - | N19: =IFERROR(rawdata[[#This Row],[FWmin]]*2," - ") -> 4.4 | O19: =IFERROR(rawdata[[#This Row],[FWmax]]*2," - ") -> 6.2 | P19: =IF(rawdata[[#This Row],[Fhmatch 2]]="YES",((1-rawdata[[#This Row],[Fwmin 2]]/rawdata[[#This Row],[FW]])+(1-rawdata[[#This Row],[FW]]/rawdata[[#This Row],[FWmax 2]]))/2,"") -> 
B20: Standard | C20: 75 | D20: 450 | E20: 165 | F20: B | G20: =IF(rawdata[[#This Row],[Opening type]]="Standard",$C$10,$C$9) -> 4.54 | H20: 2.7 | I20: 4.4 | J20: 1.11 | K20: =IF(AND($C$4>=rawdata[[#This Row],[KDmin]],$J$11=rawdata[[#This Row],[FHq]],rawdata[[#This Row],[FW]]>=rawdata[[#This Row],[FWmin]],rawdata[[#This Row],[FW]]<=rawdata[[#This Row],[FWmax]]),"YES"," - ") -> - | L20: =IF(rawdata[[#This Row],[Fhmatch 1]]="YES",((1-rawdata[[#This Row],[FWmin]]/rawdata[[#This Row],[FW]])+(1-rawdata[[#This Row],[FW]]/rawdata[[#This Row],[FWmax]]))/2,"") ->  | M20: =IF(AND($C$4>=rawdata[[#This Row],[KDmin]],$J$11=rawdata[[#This Row],[FHq]],rawdata[[#This Row],[FW]]/2>=rawdata[[#This Row],[FWmin]],rawdata[[#This Row],[FW]]/2<=rawdata[[#This Row],[FWmax]]),"YES"," - ") -> - | N20: =IFERROR(rawdata[[#This Row],[FWmin]]*2," - ") -> 5.4 | O20: =IFERROR(rawdata[[#This Row],[FWmax]]*2," - ") -> 8.7 | P20: =IF(rawdata[[#This Row],[Fhmatch 2]]="YES",((1-rawdata[[#This Row],[Fwmin 2]]/rawdata[[#This Row],[FW]])+(1-rawdata[[#This Row],[FW]]/rawdata[[#This Row],[FWmax 2]]))/2,"") -> 
B21: Standard | C21: 75 | D21: 450 | E21: 165 | F21: D | G21: =IF(rawdata[[#This Row],[Opening type]]="Standard",$C$10,$C$9) -> 4.54 | H21: 5.5 | I21: 9.7 | J21: 1.11 | K21: =IF(AND($C$4>=rawdata[[#This Row],[KDmin]],$J$11=rawdata[[#This Row],[FHq]],rawdata[[#This Row],[FW]]>=rawdata[[#This Row],[FWmin]],rawdata[[#This Row],[FW]]<=rawdata[[#This Row],[FWmax]]),"YES"," - ") -> - | L21: =IF(rawdata[[#This Row],[Fhmatch 1]]="YES",((1-rawdata[[#This Row],[FWmin]]/rawdata[[#This Row],[FW]])+(1-rawdata[[#This Row],[FW]]/rawdata[[#This Row],[FWmax]]))/2,"") ->  | M21: =IF(AND($C$4>=rawdata[[#This Row],[KDmin]],$J$11=rawdata[[#This Row],[FHq]],rawdata[[#This Row],[FW]]/2>=rawdata[[#This Row],[FWmin]],rawdata[[#This Row],[FW]]/2<=rawdata[[#This Row],[FWmax]]),"YES"," - ") -> - | N21: =IFERROR(rawdata[[#This Row],[FWmin]]*2," - ") -> 11.0 | O21: =IFERROR(rawdata[[#This Row],[FWmax]]*2," - ") -> 19.4 | P21: =IF(rawdata[[#This Row],[Fhmatch 2]]="YES",((1-rawdata[[#This Row],[Fwmin 2]]/rawdata[[#This Row],[FW]])+(1-rawdata[[#This Row],[FW]]/rawdata[[#This Row],[FWmax 2]]))/2,"") -> 
B22: Standard | C22: 75 | D22: 500 | E22: 165 | F22: A | G22: =IF(rawdata[[#This Row],[Opening type]]="Standard",$C$10,$C$9) -> 4.54 | H22: 1.7 | I22: 2.8 | J22: 1.00 | K22: =IF(AND($C$4>=rawdata[[#This Row],[KDmin]],$J$11=rawdata[[#This Row],[FHq]],rawdata[[#This Row],[FW]]>=rawdata[[#This Row],[FWmin]],rawdata[[#This Row],[FW]]<=rawdata[[#This Row],[FWmax]]),"YES"," - ") -> - | L22: =IF(rawdata[[#This Row],[Fhmatch 1]]="YES",((1-rawdata[[#This Row],[FWmin]]/rawdata[[#This Row],[FW]])+(1-rawdata[[#This Row],[FW]]/rawdata[[#This Row],[FWmax]]))/2,"") ->  | M22: =IF(AND($C$4>=rawdata[[#This Row],[KDmin]],$J$11=rawdata[[#This Row],[FHq]],rawdata[[#This Row],[FW]]/2>=rawdata[[#This Row],[FWmin]],rawdata[[#This Row],[FW]]/2<=rawdata[[#This Row],[FWmax]]),"YES"," - ") -> YES | N22: =IFERROR(rawdata[[#This Row],[FWmin]]*2," - ") -> 3.4 | O22: =IFERROR(rawdata[[#This Row],[FWmax]]*2," - ") -> 5.6 | P22: =IF(rawdata[[#This Row],[Fhmatch 2]]="YES",((1-rawdata[[#This Row],[Fwmin 2]]/rawdata[[#This Row],[FW]])+(1-rawdata[[#This Row],[FW]]/rawdata[[#This Row],[FWmax 2]]))/2,"") -> 22.02%
B23: Standard | C23: 75 | D23: 500 | E23: 165 | F23: B | G23: =IF(rawdata[[#This Row],[Opening type]]="Standard",$C$10,$C$9) -> 4.54 | H23: 2.3 | I23: 4.6 | J23: 1.00 | K23: =IF(AND($C$4>=rawdata[[#This Row],[KDmin]],$J$11=rawdata[[#This Row],[FHq]],rawdata[[#This Row],[FW]]>=rawdata[[#This Row],[FWmin]],rawdata[[#This Row],[FW]]<=rawdata[[#This Row],[FWmax]]),"YES"," - ") -> YES | L23: =IF(rawdata[[#This Row],[Fhmatch 1]]="YES",((1-rawdata[[#This Row],[FWmin]]/rawdata[[#This Row],[FW]])+(1-rawdata[[#This Row],[FW]]/rawdata[[#This Row],[FWmax]]))/2,"") -> 25.33% | M23: =IF(AND($C$4>=rawdata[[#This Row],[KDmin]],$J$11=rawdata[[#This Row],[FHq]],rawdata[[#This Row],[FW]]/2>=rawdata[[#This Row],[FWmin]],rawdata[[#This Row],[FW]]/2<=rawdata[[#This Row],[FWmax]]),"YES"," - ") -> - | N23: =IFERROR(rawdata[[#This Row],[FWmin]]*2," - ") -> 4.6 | O23: =IFERROR(rawdata[[#This Row],[FWmax]]*2," - ") -> 9.2 | P23: =IF(rawdata[[#This Row],[Fhmatch 2]]="YES",((1-rawdata[[#This Row],[Fwmin 2]]/rawdata[[#This Row],[FW]])+(1-rawdata[[#This Row],[FW]]/rawdata[[#This Row],[FWmax 2]]))/2,"") -> 
B24: Standard | C24: 75 | D24: 500 | E24: 165 | F24: D | G24: =IF(rawdata[[#This Row],[Opening type]]="Standard",$C$10,$C$9) -> 4.54 | H24: 4.6 | I24: 8.5 | J24: 1.00 | K24: =IF(AND($C$4>=rawdata[[#This Row],[KDmin]],$J$11=rawdata[[#This Row],[FHq]],rawdata[[#This Row],[FW]]>=rawdata[[#This Row],[FWmin]],rawdata[[#This Row],[FW]]<=rawdata[[#This Row],[FWmax]]),"YES"," - ") -> - | L24: =IF(rawdata[[#This Row],[Fhmatch 1]]="YES",((1-rawdata[[#This Row],[FWmin]]/rawdata[[#This Row],[FW]])+(1-rawdata[[#This Row],[FW]]/rawdata[[#This Row],[FWmax]]))/2,"") ->  | M24: =IF(AND($C$4>=rawdata[[#This Row],[KDmin]],$J$11=rawdata[[#This Row],[FHq]],rawdata[[#This Row],[FW]]/2>=rawdata[[#This Row],[FWmin]],rawdata[[#This Row],[FW]]/2<=rawdata[[#This Row],[FWmax]]),"YES"," - ") -> - | N24: =IFERROR(rawdata[[#This Row],[FWmin]]*2," - ") -> 9.2 | O24: =IFERROR(rawdata[[#This Row],[FWmax]]*2," - ") -> 17.0 | P24: =IF(rawdata[[#This Row],[Fhmatch 2]]="YES",((1-rawdata[[#This Row],[Fwmin 2]]/rawdata[[#This Row],[FW]])+(1-rawdata[[#This Row],[FW]]/rawdata[[#This Row],[FWmax 2]]))/2,"") -> 
B25: Standard | C25: 75 | D25: 550 | E25: 165 | F25: A | G25: =IF(rawdata[[#This Row],[Opening type]]="Standard",$C$10,$C$9) -> 4.54 | H25: 1.6 | I25: 2.6 | J25: 0.91 | K25: =IF(AND($C$4>=rawdata[[#This Row],[KDmin]],$J$11=rawdata[[#This Row],[FHq]],rawdata[[#This Row],[FW]]>=rawdata[[#This Row],[FWmin]],rawdata[[#This Row],[FW]]<=rawdata[[#This Row],[FWmax]]),"YES"," - ") -> - | L25: =IF(rawdata[[#This Row],[Fhmatch 1]]="YES",((1-rawdata[[#This Row],[FWmin]]/rawdata[[#This Row],[FW]])+(1-rawdata[[#This Row],[FW]]/rawdata[[#This Row],[FWmax]]))/2,"") ->  | M25: =IF(AND($C$4>=rawdata[[#This Row],[KDmin]],$J$11=rawdata[[#This Row],[FHq]],rawdata[[#This Row],[FW]]/2>=rawdata[[#This Row],[FWmin]],rawdata[[#This Row],[FW]]/2<=rawdata[[#This Row],[FWmax]]),"YES"," - ") -> - | N25: =IFERROR(rawdata[[#This Row],[FWmin]]*2," - ") -> 3.2 | O25: =IFERROR(rawdata[[#This Row],[FWmax]]*2," - ") -> 5.2 | P25: =IF(rawdata[[#This Row],[Fhmatch 2]]="YES",((1-rawdata[[#This Row],[Fwmin 2]]/rawdata[[#This Row],[FW]])+(1-rawdata[[#This Row],[FW]]/rawdata[[#This Row],[FWmax 2]]))/2,"") -> 
B26: Standard | C26: 75 | D26: 550 | E26: 165 | F26: B | G26: =IF(rawdata[[#This Row],[Opening type]]="Standard",$C$10,$C$9) -> 4.54 | H26: 2.2 | I26: 4.2 | J26: 0.91 | K26: =IF(AND($C$4>=rawdata[[#This Row],[KDmin]],$J$11=rawdata[[#This Row],[FHq]],rawdata[[#This Row],[FW]]>=rawdata[[#This Row],[FWmin]],rawdata[[#This Row],[FW]]<=rawdata[[#This Row],[FWmax]]),"YES"," - ") -> - | L26: =IF(rawdata[[#This Row],[Fhmatch 1]]="YES",((1-rawdata[[#This Row],[FWmin]]/rawdata[[#This Row],[FW]])+(1-rawdata[[#This Row],[FW]]/rawdata[[#This Row],[FWmax]]))/2,"") ->  | M26: =IF(AND($C$4>=rawdata[[#This Row],[KDmin]],$J$11=rawdata[[#This Row],[FHq]],rawdata[[#This Row],[FW]]/2>=rawdata[[#This Row],[FWmin]],rawdata[[#This Row],[FW]]/2<=rawdata[[#This Row],[FWmax]]),"YES"," - ") -> - | N26: =IFERROR(rawdata[[#This Row],[FWmin]]*2," - ") -> 4.4 | O26: =IFERROR(rawdata[[#This Row],[FWmax]]*2," - ") -> 8.4 | P26: =IF(rawdata[[#This Row],[Fhmatch 2]]="YES",((1-rawdata[[#This Row],[Fwmin 2]]/rawdata[[#This Row],[FW]])+(1-rawdata[[#This Row],[FW]]/rawdata[[#This Row],[FWmax 2]]))/2,"") -> 
B27: Standard | C27: 75 | D27: 550 | E27: 165 | F27: D | G27: =IF(rawdata[[#This Row],[Opening type]]="Standard",$C$10,$C$9) -> 4.54 | H27: 4.1 | I27: 6.6 | J27: 0.91 | K27: =IF(AND($C$4>=rawdata[[#This Row],[KDmin]],$J$11=rawdata[[#This Row],[FHq]],rawdata[[#This Row],[FW]]>=rawdata[[#This Row],[FWmin]],rawdata[[#This Row],[FW]]<=rawdata[[#This Row],[FWmax]]),"YES"," - ") -> - | L27: =IF(rawdata[[#This Row],[Fhmatch 1]]="YES",((1-rawdata[[#This Row],[FWmin]]/rawdata[[#This Row],[FW]])+(1-rawdata[[#This Row],[FW]]/rawdata[[#This Row],[FWmax]]))/2,"") ->  | M27: =IF(AND($C$4>=rawdata[[#This Row],[KDmin]],$J$11=rawdata[[#This Row],[FHq]],rawdata[[#This Row],[FW]]/2>=rawdata[[#This Row],[FWmin]],rawdata[[#This Row],[FW]]/2<=rawdata[[#This Row],[FWmax]]),"YES"," - ") -> - | N27: =IFERROR(rawdata[[#This Row],[FWmin]]*2," - ") -> 8.2 | O27: =IFERROR(rawdata[[#This Row],[FWmax]]*2," - ") -> 13.2 | P27: =IF(rawdata[[#This Row],[Fhmatch 2]]="YES",((1-rawdata[[#This Row],[Fwmin 2]]/rawdata[[#This Row],[FW]])+(1-rawdata[[#This Row],[FW]]/rawdata[[#This Row],[FWmax 2]]))/2,"") -> 
B28: Standard | C28: 75 | D28: 600 | E28: 165 | F28: A | G28: =IF(rawdata[[#This Row],[Opening type]]="Standard",$C$10,$C$9) -> 4.54 | H28: 1.2 | I28: 2.3 | J28: 0.83 | K28: =IF(AND($C$4>=rawdata[[#This Row],[KDmin]],$J$11=rawdata[[#This Row],[FHq]],rawdata[[#This Row],[FW]]>=rawdata[[#This Row],[FWmin]],rawdata[[#This Row],[FW]]<=rawdata[[#This Row],[FWmax]]),"YES"," - ") -> - | L28: =IF(rawdata[[#This Row],[Fhmatch 1]]="YES",((1-rawdata[[#This Row],[FWmin]]/rawdata[[#This Row],[FW]])+(1-rawdata[[#This Row],[FW]]/rawdata[[#This Row],[FWmax]]))/2,"") ->  | M28: =IF(AND($C$4>=rawdata[[#This Row],[KDmin]],$J$11=rawdata[[#This Row],[FHq]],rawdata[[#This Row],[FW]]/2>=rawdata[[#This Row],[FWmin]],rawdata[[#This Row],[FW]]/2<=rawdata[[#This Row],[FWmax]]),"YES"," - ") -> - | N28: =IFERROR(rawdata[[#This Row],[FWmin]]*2," - ") -> 2.4 | O28: =IFERROR(rawdata[[#This Row],[FWmax]]*2," - ") -> 4.6 | P28: =IF(rawdata[[#This Row],[Fhmatch 2]]="YES",((1-rawdata[[#This Row],[Fwmin 2]]/rawdata[[#This Row],[FW]])+(1-rawdata[[#This Row],[FW]]/rawdata[[#This Row],[FWmax 2]]))/2,"") -> 
B29: Standard | C29: 75 | D29: 600 | E29: 165 | F29: B | G29: =IF(rawdata[[#This Row],[Opening type]]="Standard",$C$10,$C$9) -> 4.54 | H29: 2.1 | I29: 3.9 | J29: 0.83 | K29: =IF(AND($C$4>=rawdata[[#This Row],[KDmin]],$J$11=rawdata[[#This Row],[FHq]],rawdata[[#This Row],[FW]]>=rawdata[[#This Row],[FWmin]],rawdata[[#This Row],[FW]]<=rawdata[[#This Row],[FWmax]]),"YES"," - ") -> - | L29: =IF(rawdata[[#This Row],[Fhmatch 1]]="YES",((1-rawdata[[#This Row],[FWmin]]/rawdata[[#This Row],[FW]])+(1-rawdata[[#This Row],[FW]]/rawdata[[#This Row],[FWmax]]))/2,"") ->  | M29: =IF(AND($C$4>=rawdata[[#This Row],[KDmin]],$J$11=rawdata[[#This Row],[FHq]],rawdata[[#This Row],[FW]]/2>=rawdata[[#This Row],[FWmin]],rawdata[[#This Row],[FW]]/2<=rawdata[[#This Row],[FWmax]]),"YES"," - ") -> - | N29: =IFERROR(rawdata[[#This Row],[FWmin]]*2," - ") -> 4.2 | O29: =IFERROR(rawdata[[#This Row],[FWmax]]*2," - ") -> 7.8 | P29: =IF(rawdata[[#This Row],[Fhmatch 2]]="YES",((1-rawdata[[#This Row],[Fwmin 2]]/rawdata[[#This Row],[FW]])+(1-rawdata[[#This Row],[FW]]/rawdata[[#This Row],[FWmax 2]]))/2,"") -> 
B30: Standard | C30: 75 | D30: 600 | E30: 165 | F30: D | G30: =IF(rawdata[[#This Row],[Opening type]]="Standard",$C$10,$C$9) -> 4.54 | H30: 3.9 | I30: 6.0 | J30: 0.83 | K30: =IF(AND($C$4>=rawdata[[#This Row],[KDmin]],$J$11=rawdata[[#This Row],[FHq]],rawdata[[#This Row],[FW]]>=rawdata[[#This Row],[FWmin]],rawdata[[#This Row],[FW]]<=rawdata[[#This Row],[FWmax]]),"YES"," - ") -> - | L30: =IF(rawdata[[#This Row],[Fhmatch 1]]="YES",((1-rawdata[[#This Row],[FWmin]]/rawdata[[#This Row],[FW]])+(1-rawdata[[#This Row],[FW]]/rawdata[[#This Row],[FWmax]]))/2,"") ->  | M30: =IF(AND($C$4>=rawdata[[#This Row],[KDmin]],$J$11=rawdata[[#This Row],[FHq]],rawdata[[#This Row],[FW]]/2>=rawdata[[#This Row],[FWmin]],rawdata[[#This Row],[FW]]/2<=rawdata[[#This Row],[FWmax]]),"YES"," - ") -> - | N30: =IFERROR(rawdata[[#This Row],[FWmin]]*2," - ") -> 7.8 | O30: =IFERROR(rawdata[[#This Row],[FWmax]]*2," - ") -> 12.0 | P30: =IF(rawdata[[#This Row],[Fhmatch 2]]="YES",((1-rawdata[[#This Row],[Fwmin 2]]/rawdata[[#This Row],[FW]])+(1-rawdata[[#This Row],[FW]]/rawdata[[#This Row],[FWmax 2]]))/2,"") -> 
B31: Standard | C31: 90 | D31: 275 | E31: 149 | F31: A | G31: =IF(rawdata[[#This Row],[Opening type]]="Standard",$C$10,$C$9) -> 4.54 | H31: 2.8 | I31: 3.8 | J31: 1.82 | K31: =IF(AND($C$4>=rawdata[[#This Row],[KDmin]],$J$11=rawdata[[#This Row],[FHq]],rawdata[[#This Row],[FW]]>=rawdata[[#This Row],[FWmin]],rawdata[[#This Row],[FW]]<=rawdata[[#This Row],[FWmax]]),"YES"," - ") -> - | L31: =IF(rawdata[[#This Row],[Fhmatch 1]]="YES",((1-rawdata[[#This Row],[FWmin]]/rawdata[[#This Row],[FW]])+(1-rawdata[[#This Row],[FW]]/rawdata[[#This Row],[FWmax]]))/2,"") ->  | M31: =IF(AND($C$4>=rawdata[[#This Row],[KDmin]],$J$11=rawdata[[#This Row],[FHq]],rawdata[[#This Row],[FW]]/2>=rawdata[[#This Row],[FWmin]],rawdata[[#This Row],[FW]]/2<=rawdata[[#This Row],[FWmax]]),"YES"," - ") -> - | N31: =IFERROR(rawdata[[#This Row],[FWmin]]*2," - ") -> 5.6 | O31: =IFERROR(rawdata[[#This Row],[FWmax]]*2," - ") -> 7.6 | P31: =IF(rawdata[[#This Row],[Fhmatch 2]]="YES",((1-rawdata[[#This Row],[Fwmin 2]]/rawdata[[#This Row],[FW]])+(1-rawdata[[#This Row],[FW]]/rawdata[[#This Row],[FWmax 2]]))/2,"") -> 
B32: Standard | C32: 90 | D32: 275 | E32: 149 | F32: B | G32: =IF(rawdata[[#This Row],[Opening type]]="Standard",$C$10,$C$9) -> 4.54 | H32: 3.5 | I32: 6.0 | J32: 1.82 | K32: =IF(AND($C$4>=rawdata[[#This Row],[KDmin]],$J$11=rawdata[[#This Row],[FHq]],rawdata[[#This Row],[FW]]>=rawdata[[#This Row],[FWmin]],rawdata[[#This Row],[FW]]<=rawdata[[#This Row],[FWmax]]),"YES"," - ") -> - | L32: =IF(rawdata[[#This Row],[Fhmatch 1]]="YES",((1-rawdata[[#This Row],[FWmin]]/rawdata[[#This Row],[FW]])+(1-rawdata[[#This Row],[FW]]/rawdata[[#This Row],[FWmax]]))/2,"") ->  | M32: =IF(AND($C$4>=rawdata[[#This Row],[KDmin]],$J$11=rawdata[[#This Row],[FHq]],rawdata[[#This Row],[FW]]/2>=rawdata[[#This Row],[FWmin]],rawdata[[#This Row],[FW]]/2<=rawdata[[#This Row],[FWmax]]),"YES"," - ") -> - | N32: =IFERROR(rawdata[[#This Row],[FWmin]]*2," - ") -> 7.0 | O32: =IFERROR(rawdata[[#This Row],[FWmax]]*2," - ") -> 12.0 | P32: =IF(rawdata[[#This Row],[Fhmatch 2]]="YES",((1-rawdata[[#This Row],[Fwmin 2]]/rawdata[[#This Row],[FW]])+(1-rawdata[[#This Row],[FW]]/rawdata[[#This Row],[FWmax 2]]))/2,"") -> 
B33: Standard | C33: 90 | D33: 275 | E33: 149 | F33: D | G33: =IF(rawdata[[#This Row],[Opening type]]="Standard",$C$10,$C$9) -> 4.54 | H33: 5.8 | I33: 10.5 | J33: 1.82 | K33: =IF(AND($C$4>=rawdata[[#This Row],[KDmin]],$J$11=rawdata[[#This Row],[FHq]],rawdata[[#This Row],[FW]]>=rawdata[[#This Row],[FWmin]],rawdata[[#This Row],[FW]]<=rawdata[[#This Row],[FWmax]]),"YES"," - ") -> - | L33: =IF(rawdata[[#This Row],[Fhmatch 1]]="YES",((1-rawdata[[#This Row],[FWmin]]/rawdata[[#This Row],[FW]])+(1-rawdata[[#This Row],[FW]]/rawdata[[#This Row],[FWmax]]))/2,"") ->  | M33: =IF(AND($C$4>=rawdata[[#This Row],[KDmin]],$J$11=rawdata[[#This Row],[FHq]],rawdata[[#This Row],[FW]]/2>=rawdata[[#This Row],[FWmin]],rawdata[[#This Row],[FW]]/2<=rawdata[[#This Row],[FWmax]]),"YES"," - ") -> - | N33: =IFERROR(rawdata[[#This Row],[FWmin]]*2," - ") -> 11.6 | O33: =IFERROR(rawdata[[#This Row],[FWmax]]*2," - ") -> 21.0 | P33: =IF(rawdata[[#This Row],[Fhmatch 2]]="YES",((1-rawdata[[#This Row],[Fwmin 2]]/rawdata[[#This Row],[FW]])+(1-rawdata[[#This Row],[FW]]/rawdata[[#This Row],[FWmax 2]]))/2,"") -> 
B34: Standard | C34: 90 | D34: 300 | E34: 149 | F34: A | G34: =IF(rawdata[[#This Row],[Opening type]]="Standard",$C$10,$C$9) -> 4.54 | H34: 2.2 | I34: 3.8 | J34: 1.67 | K34: =IF(AND($C$4>=rawdata[[#This Row],[KDmin]],$J$11=rawdata[[#This Row],[FHq]],rawdata[[#This Row],[FW]]>=rawdata[[#This Row],[FWmin]],rawdata[[#This Row],[FW]]<=rawdata[[#This Row],[FWmax]]),"YES"," - ") -> - | L34: =IF(rawdata[[#This Row],[Fhmatch 1]]="YES",((1-rawdata[[#This Row],[FWmin]]/rawdata[[#This Row],[FW]])+(1-rawdata[[#This Row],[FW]]/rawdata[[#This Row],[FWmax]]))/2,"") ->  | M34: =IF(AND($C$4>=rawdata[[#This Row],[KDmin]],$J$11=rawdata[[#This Row],[FHq]],rawdata[[#This Row],[FW]]/2>=rawdata[[#This Row],[FWmin]],rawdata[[#This Row],[FW]]/2<=rawdata[[#This Row],[FWmax]]),"YES"," - ") -> - | N34: =IFERROR(rawdata[[#This Row],[FWmin]]*2," - ") -> 4.4 | O34: =IFERROR(rawdata[[#This Row],[FWmax]]*2," - ") -> 7.6 | P34: =IF(rawdata[[#This Row],[Fhmatch 2]]="YES",((1-rawdata[[#This Row],[Fwmin 2]]/rawdata[[#This Row],[FW]])+(1-rawdata[[#This Row],[FW]]/rawdata[[#This Row],[FWmax 2]]))/2,"") -> 
B35: Standard | C35: 90 | D35: 300 | E35: 149 | F35: B | G35: =IF(rawdata[[#This Row],[Opening type]]="Standard",$C$10,$C$9) -> 4.54 | H35: 3.3 | I35: 5.7 | J35: 1.67 | K35: =IF(AND($C$4>=rawdata[[#This Row],[KDmin]],$J$11=rawdata[[#This Row],[FHq]],rawdata[[#This Row],[FW]]>=rawdata[[#This Row],[FWmin]],rawdata[[#This Row],[FW]]<=rawdata[[#This Row],[FWmax]]),"YES"," - ") -> - | L35: =IF(rawdata[[#This Row],[Fhmatch 1]]="YES",((1-rawdata[[#This Row],[FWmin]]/rawdata[[#This Row],[FW]])+(1-rawdata[[#This Row],[FW]]/rawdata[[#This Row],[FWmax]]))/2,"") ->  | M35: =IF(AND($C$4>=rawdata[[#This Row],[KDmin]],$J$11=rawdata[[#This Row],[FHq]],rawdata[[#This Row],[FW]]/2>=rawdata[[#This Row],[FWmin]],rawdata[[#This Row],[FW]]/2<=rawdata[[#This Row],[FWmax]]),"YES"," - ") -> - | N35: =IFERROR(rawdata[[#This Row],[FWmin]]*2," - ") -> 6.6 | O35: =IFERROR(rawdata[[#This Row],[FWmax]]*2," - ") -> 11.4 | P35: =IF(rawdata[[#This Row],[Fhmatch 2]]="YES",((1-rawdata[[#This Row],[Fwmin 2]]/rawdata[[#This Row],[FW]])+(1-rawdata[[#This Row],[FW]]/rawdata[[#This Row],[FWmax 2]]))/2,"") -> 
B36: Standard | C36: 90 | D36: 300 | E36: 149 | F36: D | G36: =IF(rawdata[[#This Row],[Opening type]]="Standard",$C$10,$C$9) -> 4.54 | H36: 5.2 | I36: 9.0 | J36: 1.67 | K36: =IF(AND($C$4>=rawdata[[#This Row],[KDmin]],$J$11=rawdata[[#This Row],[FHq]],rawdata[[#This Row],[FW]]>=rawdata[[#This Row],[FWmin]],rawdata[[#This Row],[FW]]<=rawdata[[#This Row],[FWmax]]),"YES"," - ") -> - | L36: =IF(rawdata[[#This Row],[Fhmatch 1]]="YES",((1-rawdata[[#This Row],[FWmin]]/rawdata[[#This Row],[FW]])+(1-rawdata[[#This Row],[FW]]/rawdata[[#This Row],[FWmax]]))/2,"") ->  | M36: =IF(AND($C$4>=rawdata[[#This Row],[KDmin]],$J$11=rawdata[[#This Row],[FHq]],rawdata[[#This Row],[FW]]/2>=rawdata[[#This Row],[FWmin]],rawdata[[#This Row],[FW]]/2<=rawdata[[#This Row],[FWmax]]),"YES"," - ") -> - | N36: =IFERROR(rawdata[[#This Row],[FWmin]]*2," - ") -> 10.4 | O36: =IFERROR(rawdata[[#This Row],[FWmax]]*2," - ") -> 18.0 | P36: =IF(rawdata[[#This Row],[Fhmatch 2]]="YES",((1-rawdata[[#This Row],[Fwmin 2]]/rawdata[[#This Row],[FW]])+(1-rawdata[[#This Row],[FW]]/rawdata[[#This Row],[FWmax 2]]))/2,"") -> 
B37: Standard | C37: 90 | D37: 350 | E37: 149 | F37: A | G37: =IF(rawdata[[#This Row],[Opening type]]="Standard",$C$10,$C$9) -> 4.54 | H37: 2.1 | I37: 2.9 | J37: 1.43 | K37: =IF(AND($C$4>=rawdata[[#This Row],[KDmin]],$J$11=rawdata[[#This Row],[FHq]],rawdata[[#This Row],[FW]]>=rawdata[[#This Row],[FWmin]],rawdata[[#This Row],[FW]]<=rawdata[[#This Row],[FWmax]]),"YES"," - ") -> - | L37: =IF(rawdata[[#This Row],[Fhmatch 1]]="YES",((1-rawdata[[#This Row],[FWmin]]/rawdata[[#This Row],[FW]])+(1-rawdata[[#This Row],[FW]]/rawdata[[#This Row],[FWmax]]))/2,"") ->  | M37: =IF(AND($C$4>=rawdata[[#This Row],[KDmin]],$J$11=rawdata[[#This Row],[FHq]],rawdata[[#This Row],[FW]]/2>=rawdata[[#This Row],[FWmin]],rawdata[[#This Row],[FW]]/2<=rawdata[[#This Row],[FWmax]]),"YES"," - ") -> - | N37: =IFERROR(rawdata[[#This Row],[FWmin]]*2," - ") -> 4.2 | O37: =IFERROR(rawdata[[#This Row],[FWmax]]*2," - ") -> 5.8 | P37: =IF(rawdata[[#This Row],[Fhmatch 2]]="YES",((1-rawdata[[#This Row],[Fwmin 2]]/rawdata[[#This Row],[FW]])+(1-rawdata[[#This Row],[FW]]/rawdata[[#This Row],[FWmax 2]]))/2,"") -> 
B38: Standard | C38: 90 | D38: 350 | E38: 149 | F38: B | G38: =IF(rawdata[[#This Row],[Opening type]]="Standard",$C$10,$C$9) -> 4.54 | H38: 2.7 | I38: 4.9 | J38: 1.43 | K38: =IF(AND($C$4>=rawdata[[#This Row],[KDmin]],$J$11=rawdata[[#This Row],[FHq]],rawdata[[#This Row],[FW]]>=rawdata[[#This Row],[FWmin]],rawdata[[#This Row],[FW]]<=rawdata[[#This Row],[FWmax]]),"YES"," - ") -> - | L38: =IF(rawdata[[#This Row],[Fhmatch 1]]="YES",((1-rawdata[[#This Row],[FWmin]]/rawdata[[#This Row],[FW]])+(1-rawdata[[#This Row],[FW]]/rawdata[[#This Row],[FWmax]]))/2,"") ->  | M38: =IF(AND($C$4>=rawdata[[#This Row],[KDmin]],$J$11=rawdata[[#This Row],[FHq]],rawdata[[#This Row],[FW]]/2>=rawdata[[#This Row],[FWmin]],rawdata[[#This Row],[FW]]/2<=rawdata[[#This Row],[FWmax]]),"YES"," - ") -> - | N38: =IFERROR(rawdata[[#This Row],[FWmin]]*2," - ") -> 5.4 | O38: =IFERROR(rawdata[[#This Row],[FWmax]]*2," - ") -> 9.8 | P38: =IF(rawdata[[#This Row],[Fhmatch 2]]="YES",((1-rawdata[[#This Row],[Fwmin 2]]/rawdata[[#This Row],[FW]])+(1-rawdata[[#This Row],[FW]]/rawdata[[#This Row],[FWmax 2]]))/2,"") -> 
B39: Standard | C39: 90 | D39: 350 | E39: 149 | F39: D | G39: =IF(rawdata[[#This Row],[Opening type]]="Standard",$C$10,$C$9) -> 4.54 | H39: 4.8 | I39: 8.0 | J39: 1.43 | K39: =IF(AND($C$4>=rawdata[[#This Row],[KDmin]],$J$11=rawdata[[#This Row],[FHq]],rawdata[[#This Row],[FW]]>=rawdata[[#This Row],[FWmin]],rawdata[[#This Row],[FW]]<=rawdata[[#This Row],[FWmax]]),"YES"," - ") -> - | L39: =IF(rawdata[[#This Row],[Fhmatch 1]]="YES",((1-rawdata[[#This Row],[FWmin]]/rawdata[[#This Row],[FW]])+(1-rawdata[[#This Row],[FW]]/rawdata[[#This Row],[FWmax]]))/2,"") ->  | M39: =IF(AND($C$4>=rawdata[[#This Row],[KDmin]],$J$11=rawdata[[#This Row],[FHq]],rawdata[[#This Row],[FW]]/2>=rawdata[[#This Row],[FWmin]],rawdata[[#This Row],[FW]]/2<=rawdata[[#This Row],[FWmax]]),"YES"," - ") -> - | N39: =IFERROR(rawdata[[#This Row],[FWmin]]*2," - ") -> 9.6 | O39: =IFERROR(rawdata[[#This Row],[FWmax]]*2," - ") -> 16.0 | P39: =IF(rawdata[[#This Row],[Fhmatch 2]]="YES",((1-rawdata[[#This Row],[Fwmin 2]]/rawdata[[#This Row],[FW]])+(1-rawdata[[#This Row],[FW]]/rawdata[[#This Row],[FWmax 2]]))/2,"") -> 
B40: Standard | C40: 90 | D40: 400 | E40: 149 | F40: A | G40: =IF(rawdata[[#This Row],[Opening type]]="Standard",$C$10,$C$9) -> 4.54 | H40: 1.6 | I40: 2.3 | J40: 1.25 | K40: =IF(AND($C$4>=rawdata[[#This Row],[KDmin]],$J$11=rawdata[[#This Row],[FHq]],rawdata[[#This Row],[FW]]>=rawdata[[#This Row],[FWmin]],rawdata[[#This Row],[FW]]<=rawdata[[#This Row],[FWmax]]),"YES"," - ") -> - | L40: =IF(rawdata[[#This Row],[Fhmatch 1]]="YES",((1-rawdata[[#This Row],[FWmin]]/rawdata[[#This Row],[FW]])+(1-rawdata[[#This Row],[FW]]/rawdata[[#This Row],[FWmax]]))/2,"") ->  | M40: =IF(AND($C$4>=rawdata[[#This Row],[KDmin]],$J$11=rawdata[[#This Row],[FHq]],rawdata[[#This Row],[FW]]/2>=rawdata[[#This Row],[FWmin]],rawdata[[#This Row],[FW]]/2<=rawdata[[#This Row],[FWmax]]),"YES"," - ") -> - | N40: =IFERROR(rawdata[[#This Row],[FWmin]]*2," - ") -> 3.2 | O40: =IFERROR(rawdata[[#This Row],[FWmax]]*2," - ") -> 4.6 | P40: =IF(rawdata[[#This Row],[Fhmatch 2]]="YES",((1-rawdata[[#This Row],[Fwmin 2]]/rawdata[[#This Row],[FW]])+(1-rawdata[[#This Row],[FW]]/rawdata[[#This Row],[FWmax 2]]))/2,"") -> 
B41: Standard | C41: 90 | D41: 400 | E41: 149 | F41: B | G41: =IF(rawdata[[#This Row],[Opening type]]="Standard",$C$10,$C$9) -> 4.54 | H41: 2.3 | I41: 4.6 | J41: 1.25 | K41: =IF(AND($C$4>=rawdata[[#This Row],[KDmin]],$J$11=rawdata[[#This Row],[FHq]],rawdata[[#This Row],[FW]]>=rawdata[[#This Row],[FWmin]],rawdata[[#This Row],[FW]]<=rawdata[[#This Row],[FWmax]]),"YES"," - ") -> - | L41: =IF(rawdata[[#This Row],[Fhmatch 1]]="YES",((1-rawdata[[#This Row],[FWmin]]/rawdata[[#This Row],[FW]])+(1-rawdata[[#This Row],[FW]]/rawdata[[#This Row],[FWmax]]))/2,"") ->  | M41: =IF(AND($C$4>=rawdata[[#This Row],[KDmin]],$J$11=rawdata[[#This Row],[FHq]],rawdata[[#This Row],[FW]]/2>=rawdata[[#This Row],[FWmin]],rawdata[[#This Row],[FW]]/2<=rawdata[[#This Row],[FWmax]]),"YES"," - ") -> - | N41: =IFERROR(rawdata[[#This Row],[FWmin]]*2," - ") -> 4.6 | O41: =IFERROR(rawdata[[#This Row],[FWmax]]*2," - ") -> 9.2 | P41: =IF(rawdata[[#This Row],[Fhmatch 2]]="YES",((1-rawdata[[#This Row],[Fwmin 2]]/rawdata[[#This Row],[FW]])+(1-rawdata[[#This Row],[FW]]/rawdata[[#This Row],[FWmax 2]]))/2,"") -> 
B42: Standard | C42: 90 | D42: 400 | E42: 149 | F42: D | G42: =IF(rawdata[[#This Row],[Opening type]]="Standard",$C$10,$C$9) -> 4.54 | H42: 4.3 | I42: 7.9 | J42: 1.25 | K42: =IF(AND($C$4>=rawdata[[#This Row],[KDmin]],$J$11=rawdata[[#This Row],[FHq]],rawdata[[#This Row],[FW]]>=rawdata[[#This Row],[FWmin]],rawdata[[#This Row],[FW]]<=rawdata[[#This Row],[FWmax]]),"YES"," - ") -> - | L42: =IF(rawdata[[#This Row],[Fhmatch 1]]="YES",((1-rawdata[[#This Row],[FWmin]]/rawdata[[#This Row],[FW]])+(1-rawdata[[#This Row],[FW]]/rawdata[[#This Row],[FWmax]]))/2,"") ->  | M42: =IF(AND($C$4>=rawdata[[#This Row],[KDmin]],$J$11=rawdata[[#This Row],[FHq]],rawdata[[#This Row],[FW]]/2>=rawdata[[#This Row],[FWmin]],rawdata[[#This Row],[FW]]/2<=rawdata[[#This Row],[FWmax]]),"YES"," - ") -> - | N42: =IFERROR(rawdata[[#This Row],[FWmin]]*2," - ") -> 8.6 | O42: =IFERROR(rawdata[[#This Row],[FWmax]]*2," - ") -> 15.8 | P42: =IF(rawdata[[#This Row],[Fhmatch 2]]="YES",((1-rawdata[[#This Row],[Fwmin 2]]/rawdata[[#This Row],[FW]])+(1-rawdata[[#This Row],[FW]]/rawdata[[#This Row],[FWmax 2]]))/2,"") -> 
B43: Standard | C43: 90 | D43: 450 | E43: 149 | F43: A | G43: =IF(rawdata[[#This Row],[Opening type]]="Standard",$C$10,$C$9) -> 4.54 | H43: 1.3 | I43: 2.2 | J43: 1.11 | K43: =IF(AND($C$4>=rawdata[[#This Row],[KDmin]],$J$11=rawdata[[#This Row],[FHq]],rawdata[[#This Row],[FW]]>=rawdata[[#This Row],[FWmin]],rawdata[[#This Row],[FW]]<=rawdata[[#This Row],[FWmax]]),"YES"," - ") -> - | L43: =IF(rawdata[[#This Row],[Fhmatch 1]]="YES",((1-rawdata[[#This Row],[FWmin]]/rawdata[[#This Row],[FW]])+(1-rawdata[[#This Row],[FW]]/rawdata[[#This Row],[FWmax]]))/2,"") ->  | M43: =IF(AND($C$4>=rawdata[[#This Row],[KDmin]],$J$11=rawdata[[#This Row],[FHq]],rawdata[[#This Row],[FW]]/2>=rawdata[[#This Row],[FWmin]],rawdata[[#This Row],[FW]]/2<=rawdata[[#This Row],[FWmax]]),"YES"," - ") -> - | N43: =IFERROR(rawdata[[#This Row],[FWmin]]*2," - ") -> 2.6 | O43: =IFERROR(rawdata[[#This Row],[FWmax]]*2," - ") -> 4.4 | P43: =IF(rawdata[[#This Row],[Fhmatch 2]]="YES",((1-rawdata[[#This Row],[Fwmin 2]]/rawdata[[#This Row],[FW]])+(1-rawdata[[#This Row],[FW]]/rawdata[[#This Row],[FWmax 2]]))/2,"") -> 
B44: Standard | C44: 90 | D44: 450 | E44: 149 | F44: B | G44: =IF(rawdata[[#This Row],[Opening type]]="Standard",$C$10,$C$9) -> 4.54 | H44: 2.0 | I44: 3.8 | J44: 1.11 | K44: =IF(AND($C$4>=rawdata[[#This Row],[KDmin]],$J$11=rawdata[[#This Row],[FHq]],rawdata[[#This Row],[FW]]>=rawdata[[#This Row],[FWmin]],rawdata[[#This Row],[FW]]<=rawdata[[#This Row],[FWmax]]),"YES"," - ") -> - | L44: =IF(rawdata[[#This Row],[Fhmatch 1]]="YES",((1-rawdata[[#This Row],[FWmin]]/rawdata[[#This Row],[FW]])+(1-rawdata[[#This Row],[FW]]/rawdata[[#This Row],[FWmax]]))/2,"") ->  | M44: =IF(AND($C$4>=rawdata[[#This Row],[KDmin]],$J$11=rawdata[[#This Row],[FHq]],rawdata[[#This Row],[FW]]/2>=rawdata[[#This Row],[FWmin]],rawdata[[#This Row],[FW]]/2<=rawdata[[#This Row],[FWmax]]),"YES"," - ") -> - | N44: =IFERROR(rawdata[[#This Row],[FWmin]]*2," - ") -> 4.0 | O44: =IFERROR(rawdata[[#This Row],[FWmax]]*2," - ") -> 7.6 | P44: =IF(rawdata[[#This Row],[Fhmatch 2]]="YES",((1-rawdata[[#This Row],[Fwmin 2]]/rawdata[[#This Row],[FW]])+(1-rawdata[[#This Row],[FW]]/rawdata[[#This Row],[FWmax 2]]))/2,"") -> 
B45: Standard | C45: 90 | D45: 450 | E45: 149 | F45: D | G45: =IF(rawdata[[#This Row],[Opening type]]="Standard",$C$10,$C$9) -> 4.54 | H45: 3.8 | I45: 6.3 | J45: =$C$2/D45 -> 1.11 | K45: =IF(AND($C$4>=rawdata[[#This Row],[KDmin]],$J$11=rawdata[[#This Row],[FHq]],rawdata[[#This Row],[FW]]>=rawdata[[#This Row],[FWmin]],rawdata[[#This Row],[FW]]<=rawdata[[#This Row],[FWmax]]),"YES"," - ") -> - | L45: =IF(rawdata[[#This Row],[Fhmatch 1]]="YES",((1-rawdata[[#This Row],[FWmin]]/rawdata[[#This Row],[FW]])+(1-rawdata[[#This Row],[FW]]/rawdata[[#This Row],[FWmax]]))/2,"") ->  | M45: =IF(AND($C$4>=rawdata[[#This Row],[KDmin]],$J$11=rawdata[[#This Row],[FHq]],rawdata[[#This Row],[FW]]/2>=rawdata[[#This Row],[FWmin]],rawdata[[#This Row],[FW]]/2<=rawdata[[#This Row],[FWmax]]),"YES"," - ") -> - | N45: =IFERROR(rawdata[[#This Row],[FWmin]]*2," - ") -> 7.6 | O45: =IFERROR(rawdata[[#This Row],[FWmax]]*2," - ") -> 12.6 | P45: =IF(rawdata[[#This Row],[Fhmatch 2]]="YES",((1-rawdata[[#This Row],[Fwmin 2]]/rawdata[[#This Row],[FW]])+(1-rawdata[[#This Row],[FW]]/rawdata[[#This Row],[FWmax 2]]))/2,"") -> 
B46: Standard | C46: 90 | D46: 500 | E46: 149 | F46: A | G46: =IF(rawdata[[#This Row],[Opening type]]="Standard",$C$10,$C$9) -> 4.54 | H46: 1.2 | I46: 2.0 | J46: 1.00 | K46: =IF(AND($C$4>=rawdata[[#This Row],[KDmin]],$J$11=rawdata[[#This Row],[FHq]],rawdata[[#This Row],[FW]]>=rawdata[[#This Row],[FWmin]],rawdata[[#This Row],[FW]]<=rawdata[[#This Row],[FWmax]]),"YES"," - ") -> - | L46: =IF(rawdata[[#This Row],[Fhmatch 1]]="YES",((1-rawdata[[#This Row],[FWmin]]/rawdata[[#This Row],[FW]])+(1-rawdata[[#This Row],[FW]]/rawdata[[#This Row],[FWmax]]))/2,"") ->  | M46: =IF(AND($C$4>=rawdata[[#This Row],[KDmin]],$J$11=rawdata[[#This Row],[FHq]],rawdata[[#This Row],[FW]]/2>=rawdata[[#This Row],[FWmin]],rawdata[[#This Row],[FW]]/2<=rawdata[[#This Row],[FWmax]]),"YES"," - ") -> - | N46: =IFERROR(rawdata[[#This Row],[FWmin]]*2," - ") -> 2.4 | O46: =IFERROR(rawdata[[#This Row],[FWmax]]*2," - ") -> 4.0 | P46: =IF(rawdata[[#This Row],[Fhmatch 2]]="YES",((1-rawdata[[#This Row],[Fwmin 2]]/rawdata[[#This Row],[FW]])+(1-rawdata[[#This Row],[FW]]/rawdata[[#This Row],[FWmax 2]]))/2,"") -> 
B47: Standard | C47: 90 | D47: 500 | E47: 149 | F47: B | G47: =IF(rawdata[[#This Row],[Opening type]]="Standard",$C$10,$C$9) -> 4.54 | H47: 1.7 | I47: 3.4 | J47: 1.00 | K47: =IF(AND($C$4>=rawdata[[#This Row],[KDmin]],$J$11=rawdata[[#This Row],[FHq]],rawdata[[#This Row],[FW]]>=rawdata[[#This Row],[FWmin]],rawdata[[#This Row],[FW]]<=rawdata[[#This Row],[FWmax]]),"YES"," - ") -> - | L47: =IF(rawdata[[#This Row],[Fhmatch 1]]="YES",((1-rawdata[[#This Row],[FWmin]]/rawdata[[#This Row],[FW]])+(1-rawdata[[#This Row],[FW]]/rawdata[[#This Row],[FWmax]]))/2,"") ->  | M47: =IF(AND($C$4>=rawdata[[#This Row],[KDmin]],$J$11=rawdata[[#This Row],[FHq]],rawdata[[#This Row],[FW]]/2>=rawdata[[#This Row],[FWmin]],rawdata[[#This Row],[FW]]/2<=rawdata[[#This Row],[FWmax]]),"YES"," - ") -> YES | N47: =IFERROR(rawdata[[#This Row],[FWmin]]*2," - ") -> 3.4 | O47: =IFERROR(rawdata[[#This Row],[FWmax]]*2," - ") -> 6.8 | P47: =IF(rawdata[[#This Row],[Fhmatch 2]]="YES",((1-rawdata[[#This Row],[Fwmin 2]]/rawdata[[#This Row],[FW]])+(1-rawdata[[#This Row],[FW]]/rawdata[[#This Row],[FWmax 2]]))/2,"") -> 29.17%
B48: Standard | C48: 90 | D48: 500 | E48: 149 | F48: D | G48: =IF(rawdata[[#This Row],[Opening type]]="Standard",$C$10,$C$9) -> 4.54 | H48: 3.4 | I48: 6.0 | J48: 1.00 | K48: =IF(AND($C$4>=rawdata[[#This Row],[KDmin]],$J$11=rawdata[[#This Row],[FHq]],rawdata[[#This Row],[FW]]>=rawdata[[#This Row],[FWmin]],rawdata[[#This Row],[FW]]<=rawdata[[#This Row],[FWmax]]),"YES"," - ") -> YES | L48: =IF(rawdata[[#This Row],[Fhmatch 1]]="YES",((1-rawdata[[#This Row],[FWmin]]/rawdata[[#This Row],[FW]])+(1-rawdata[[#This Row],[FW]]/rawdata[[#This Row],[FWmax]]))/2,"") -> 24.72% | M48: =IF(AND($C$4>=rawdata[[#This Row],[KDmin]],$J$11=rawdata[[#This Row],[FHq]],rawdata[[#This Row],[FW]]/2>=rawdata[[#This Row],[FWmin]],rawdata[[#This Row],[FW]]/2<=rawdata[[#This Row],[FWmax]]),"YES"," - ") -> - | N48: =IFERROR(rawdata[[#This Row],[FWmin]]*2," - ") -> 6.8 | O48: =IFERROR(rawdata[[#This Row],[FWmax]]*2," - ") -> 12.0 | P48: =IF(rawdata[[#This Row],[Fhmatch 2]]="YES",((1-rawdata[[#This Row],[Fwmin 2]]/rawdata[[#This Row],[FW]])+(1-rawdata[[#This Row],[FW]]/rawdata[[#This Row],[FWmax 2]]))/2,"") -> 
B49: Standard | C49: 90 | D49: 550 | E49: 149 | F49: A | G49: =IF(rawdata[[#This Row],[Opening type]]="Standard",$C$10,$C$9) -> 4.54 | H49: 1.2 | I49: 1.9 | J49: 0.91 | K49: =IF(AND($C$4>=rawdata[[#This Row],[KDmin]],$J$11=rawdata[[#This Row],[FHq]],rawdata[[#This Row],[FW]]>=rawdata[[#This Row],[FWmin]],rawdata[[#This Row],[FW]]<=rawdata[[#This Row],[FWmax]]),"YES"," - ") -> - | L49: =IF(rawdata[[#This Row],[Fhmatch 1]]="YES",((1-rawdata[[#This Row],[FWmin]]/rawdata[[#This Row],[FW]])+(1-rawdata[[#This Row],[FW]]/rawdata[[#This Row],[FWmax]]))/2,"") ->  | M49: =IF(AND($C$4>=rawdata[[#This Row],[KDmin]],$J$11=rawdata[[#This Row],[FHq]],rawdata[[#This Row],[FW]]/2>=rawdata[[#This Row],[FWmin]],rawdata[[#This Row],[FW]]/2<=rawdata[[#This Row],[FWmax]]),"YES"," - ") -> - | N49: =IFERROR(rawdata[[#This Row],[FWmin]]*2," - ") -> 2.4 | O49: =IFERROR(rawdata[[#This Row],[FWmax]]*2," - ") -> 3.8 | P49: =IF(rawdata[[#This Row],[Fhmatch 2]]="YES",((1-rawdata[[#This Row],[Fwmin 2]]/rawdata[[#This Row],[FW]])+(1-rawdata[[#This Row],[FW]]/rawdata[[#This Row],[FWmax 2]]))/2,"") -> 
B50: Standard | C50: 90 | D50: 550 | E50: 149 | F50: B | G50: =IF(rawdata[[#This Row],[Opening type]]="Standard",$C$10,$C$9) -> 4.54 | H50: 1.7 | I50: 3.0 | J50: 0.91 | K50: =IF(AND($C$4>=rawdata[[#This Row],[KDmin]],$J$11=rawdata[[#This Row],[FHq]],rawdata[[#This Row],[FW]]>=rawdata[[#This Row],[FWmin]],rawdata[[#This Row],[FW]]<=rawdata[[#This Row],[FWmax]]),"YES"," - ") -> - | L50: =IF(rawdata[[#This Row],[Fhmatch 1]]="YES",((1-rawdata[[#This Row],[FWmin]]/rawdata[[#This Row],[FW]])+(1-rawdata[[#This Row],[FW]]/rawdata[[#This Row],[FWmax]]))/2,"") ->  | M50: =IF(AND($C$4>=rawdata[[#This Row],[KDmin]],$J$11=rawdata[[#This Row],[FHq]],rawdata[[#This Row],[FW]]/2>=rawdata[[#This Row],[FWmin]],rawdata[[#This Row],[FW]]/2<=rawdata[[#This Row],[FWmax]]),"YES"," - ") -> - | N50: =IFERROR(rawdata[[#This Row],[FWmin]]*2," - ") -> 3.4 | O50: =IFERROR(rawdata[[#This Row],[FWmax]]*2," - ") -> 6.0 | P50: =IF(rawdata[[#This Row],[Fhmatch 2]]="YES",((1-rawdata[[#This Row],[Fwmin 2]]/rawdata[[#This Row],[FW]])+(1-rawdata[[#This Row],[FW]]/rawdata[[#This Row],[FWmax 2]]))/2,"") -> 
B51: Standard | C51: 90 | D51: 550 | E51: 149 | F51: D | G51: =IF(rawdata[[#This Row],[Opening type]]="Standard",$C$10,$C$9) -> 4.54 | H51: 3.0 | I51: 5.1 | J51: 0.91 | K51: =IF(AND($C$4>=rawdata[[#This Row],[KDmin]],$J$11=rawdata[[#This Row],[FHq]],rawdata[[#This Row],[FW]]>=rawdata[[#This Row],[FWmin]],rawdata[[#This Row],[FW]]<=rawdata[[#This Row],[FWmax]]),"YES"," - ") -> - | L51: =IF(rawdata[[#This Row],[Fhmatch 1]]="YES",((1-rawdata[[#This Row],[FWmin]]/rawdata[[#This Row],[FW]])+(1-rawdata[[#This Row],[FW]]/rawdata[[#This Row],[FWmax]]))/2,"") ->  | M51: =IF(AND($C$4>=rawdata[[#This Row],[KDmin]],$J$11=rawdata[[#This Row],[FHq]],rawdata[[#This Row],[FW]]/2>=rawdata[[#This Row],[FWmin]],rawdata[[#This Row],[FW]]/2<=rawdata[[#This Row],[FWmax]]),"YES"," - ") -> - | N51: =IFERROR(rawdata[[#This Row],[FWmin]]*2," - ") -> 6.0 | O51: =IFERROR(rawdata[[#This Row],[FWmax]]*2," - ") -> 10.2 | P51: =IF(rawdata[[#This Row],[Fhmatch 2]]="YES",((1-rawdata[[#This Row],[Fwmin 2]]/rawdata[[#This Row],[FW]])+(1-rawdata[[#This Row],[FW]]/rawdata[[#This Row],[FWmax 2]]))/2,"") -> 
B52: Standard | C52: 90 | D52: 600 | E52: 149 | F52: A | G52: =IF(rawdata[[#This Row],[Opening type]]="Standard",$C$10,$C$9) -> 4.54 | H52: 0.9 | I52: 1.6 | J52: 0.83 | K52: =IF(AND($C$4>=rawdata[[#This Row],[KDmin]],$J$11=rawdata[[#This Row],[FHq]],rawdata[[#This Row],[FW]]>=rawdata[[#This Row],[FWmin]],rawdata[[#This Row],[FW]]<=rawdata[[#This Row],[FWmax]]),"YES"," - ") -> - | L52: =IF(rawdata[[#This Row],[Fhmatch 1]]="YES",((1-rawdata[[#This Row],[FWmin]]/rawdata[[#This Row],[FW]])+(1-rawdata[[#This Row],[FW]]/rawdata[[#This Row],[FWmax]]))/2,"") ->  | M52: =IF(AND($C$4>=rawdata[[#This Row],[KDmin]],$J$11=rawdata[[#This Row],[FHq]],rawdata[[#This Row],[FW]]/2>=rawdata[[#This Row],[FWmin]],rawdata[[#This Row],[FW]]/2<=rawdata[[#This Row],[FWmax]]),"YES"," - ") -> - | N52: =IFERROR(rawdata[[#This Row],[FWmin]]*2," - ") -> 1.8 | O52: =IFERROR(rawdata[[#This Row],[FWmax]]*2," - ") -> 3.2 | P52: =IF(rawdata[[#This Row],[Fhmatch 2]]="YES",((1-rawdata[[#This Row],[Fwmin 2]]/rawdata[[#This Row],[FW]])+(1-rawdata[[#This Row],[FW]]/rawdata[[#This Row],[FWmax 2]]))/2,"") -> 
B53: Standard | C53: 90 | D53: 600 | E53: 149 | F53: B | G53: =IF(rawdata[[#This Row],[Opening type]]="Standard",$C$10,$C$9) -> 4.54 | H53: 1.6 | I53: 3.0 | J53: 0.83 | K53: =IF(AND($C$4>=rawdata[[#This Row],[KDmin]],$J$11=rawdata[[#This Row],[FHq]],rawdata[[#This Row],[FW]]>=rawdata[[#This Row],[FWmin]],rawdata[[#This Row],[FW]]<=rawdata[[#This Row],[FWmax]]),"YES"," - ") -> - | L53: =IF(rawdata[[#This Row],[Fhmatch 1]]="YES",((1-rawdata[[#This Row],[FWmin]]/rawdata[[#This Row],[FW]])+(1-rawdata[[#This Row],[FW]]/rawdata[[#This Row],[FWmax]]))/2,"") ->  | M53: =IF(AND($C$4>=rawdata[[#This Row],[KDmin]],$J$11=rawdata[[#This Row],[FHq]],rawdata[[#This Row],[FW]]/2>=rawdata[[#This Row],[FWmin]],rawdata[[#This Row],[FW]]/2<=rawdata[[#This Row],[FWmax]]),"YES"," - ") -> - | N53: =IFERROR(rawdata[[#This Row],[FWmin]]*2," - ") -> 3.2 | O53: =IFERROR(rawdata[[#This Row],[FWmax]]*2," - ") -> 6.0 | P53: =IF(rawdata[[#This Row],[Fhmatch 2]]="YES",((1-rawdata[[#This Row],[Fwmin 2]]/rawdata[[#This Row],[FW]])+(1-rawdata[[#This Row],[FW]]/rawdata[[#This Row],[FWmax 2]]))/2,"") -> 
B54: Standard | C54: 90 | D54: 600 | E54: 149 | F54: D | G54: =IF(rawdata[[#This Row],[Opening type]]="Standard",$C$10,$C$9) -> 4.54 | H54: 3.0 | I54: 4.7 | J54: 0.83 | K54: =IF(AND($C$4>=rawdata[[#This Row],[KDmin]],$J$11=rawdata[[#This Row],[FHq]],rawdata[[#This Row],[FW]]>=rawdata[[#This Row],[FWmin]],rawdata[[#This Row],[FW]]<=rawdata[[#This Row],[FWmax]]),"YES"," - ") -> - | L54: =IF(rawdata[[#This Row],[Fhmatch 1]]="YES",((1-rawdata[[#This Row],[FWmin]]/rawdata[[#This Row],[FW]])+(1-rawdata[[#This Row],[FW]]/rawdata[[#This Row],[FWmax]]))/2,"") ->  | M54: =IF(AND($C$4>=rawdata[[#This Row],[KDmin]],$J$11=rawdata[[#This Row],[FHq]],rawdata[[#This Row],[FW]]/2>=rawdata[[#This Row],[FWmin]],rawdata[[#This Row],[FW]]/2<=rawdata[[#This Row],[FWmax]]),"YES"," - ") -> - | N54: =IFERROR(rawdata[[#This Row],[FWmin]]*2," - ") -> 6.0 | O54: =IFERROR(rawdata[[#This Row],[FWmax]]*2," - ") -> 9.4 | P54: =IF(rawdata[[#This Row],[Fhmatch 2]]="YES",((1-rawdata[[#This Row],[Fwmin 2]]/rawdata[[#This Row],[FW]])+(1-rawdata[[#This Row],[FW]]/rawdata[[#This Row],[FWmax 2]]))/2,"") -> 
B55: Standard | C55: 110 | D55: 275 | E55: 188 | F55: A | G55: =IF(rawdata[[#This Row],[Opening type]]="Standard",$C$10,$C$9) -> 4.54 | H55: 1.9 | I55: 2.8 | J55: 1.82 | K55: =IF(AND($C$4>=rawdata[[#This Row],[KDmin]],$J$11=rawdata[[#This Row],[FHq]],rawdata[[#This Row],[FW]]>=rawdata[[#This Row],[FWmin]],rawdata[[#This Row],[FW]]<=rawdata[[#This Row],[FWmax]]),"YES"," - ") -> - | L55: =IF(rawdata[[#This Row],[Fhmatch 1]]="YES",((1-rawdata[[#This Row],[FWmin]]/rawdata[[#This Row],[FW]])+(1-rawdata[[#This Row],[FW]]/rawdata[[#This Row],[FWmax]]))/2,"") ->  | M55: =IF(AND($C$4>=rawdata[[#This Row],[KDmin]],$J$11=rawdata[[#This Row],[FHq]],rawdata[[#This Row],[FW]]/2>=rawdata[[#This Row],[FWmin]],rawdata[[#This Row],[FW]]/2<=rawdata[[#This Row],[FWmax]]),"YES"," - ") -> - | N55: =IFERROR(rawdata[[#This Row],[FWmin]]*2," - ") -> 3.8 | O55: =IFERROR(rawdata[[#This Row],[FWmax]]*2," - ") -> 5.6 | P55: =IF(rawdata[[#This Row],[Fhmatch 2]]="YES",((1-rawdata[[#This Row],[Fwmin 2]]/rawdata[[#This Row],[FW]])+(1-rawdata[[#This Row],[FW]]/rawdata[[#This Row],[FWmax 2]]))/2,"") -> 
B56: Standard | C56: 110 | D56: 275 | E56: 188 | F56: B | G56: =IF(rawdata[[#This Row],[Opening type]]="Standard",$C$10,$C$9) -> 4.54 | H56: 2.6 | I56: 4.3 | J56: 1.82 | K56: =IF(AND($C$4>=rawdata[[#This Row],[KDmin]],$J$11=rawdata[[#This Row],[FHq]],rawdata[[#This Row],[FW]]>=rawdata[[#This Row],[FWmin]],rawdata[[#This Row],[FW]]<=rawdata[[#This Row],[FWmax]]),"YES"," - ") -> - | L56: =IF(rawdata[[#This Row],[Fhmatch 1]]="YES",((1-rawdata[[#This Row],[FWmin]]/rawdata[[#This Row],[FW]])+(1-rawdata[[#This Row],[FW]]/rawdata[[#This Row],[FWmax]]))/2,"") ->  | M56: =IF(AND($C$4>=rawdata[[#This Row],[KDmin]],$J$11=rawdata[[#This Row],[FHq]],rawdata[[#This Row],[FW]]/2>=rawdata[[#This Row],[FWmin]],rawdata[[#This Row],[FW]]/2<=rawdata[[#This Row],[FWmax]]),"YES"," - ") -> - | N56: =IFERROR(rawdata[[#This Row],[FWmin]]*2," - ") -> 5.2 | O56: =IFERROR(rawdata[[#This Row],[FWmax]]*2," - ") -> 8.6 | P56: =IF(rawdata[[#This Row],[Fhmatch 2]]="YES",((1-rawdata[[#This Row],[Fwmin 2]]/rawdata[[#This Row],[FW]])+(1-rawdata[[#This Row],[FW]]/rawdata[[#This Row],[FWmax 2]]))/2,"") -> 
B57: Standard | C57: 110 | D57: 275 | E57: 188 | F57: D | G57: =IF(rawdata[[#This Row],[Opening type]]="Standard",$C$10,$C$9) -> 4.54 | H57: 4.2 | I57: 7.1 | J57: 1.82 | K57: =IF(AND($C$4>=rawdata[[#This Row],[KDmin]],$J$11=rawdata[[#This Row],[FHq]],rawdata[[#This Row],[FW]]>=rawdata[[#This Row],[FWmin]],rawdata[[#This Row],[FW]]<=rawdata[[#This Row],[FWmax]]),"YES"," - ") -> - | L57: =IF(rawdata[[#This Row],[Fhmatch 1]]="YES",((1-rawdata[[#This Row],[FWmin]]/rawdata[[#This Row],[FW]])+(1-rawdata[[#This Row],[FW]]/rawdata[[#This Row],[FWmax]]))/2,"") ->  | M57: =IF(AND($C$4>=rawdata[[#This Row],[KDmin]],$J$11=rawdata[[#This Row],[FHq]],rawdata[[#This Row],[FW]]/2>=rawdata[[#This Row],[FWmin]],rawdata[[#This Row],[FW]]/2<=rawdata[[#This Row],[FWmax]]),"YES"," - ") -> - | N57: =IFERROR(rawdata[[#This Row],[FWmin]]*2," - ") -> 8.4 | O57: =IFERROR(rawdata[[#This Row],[FWmax]]*2," - ") -> 14.2 | P57: =IF(rawdata[[#This Row],[Fhmatch 2]]="YES",((1-rawdata[[#This Row],[Fwmin 2]]/rawdata[[#This Row],[FW]])+(1-rawdata[[#This Row],[FW]]/rawdata[[#This Row],[FWmax 2]]))/2,"") -> 
B58: Standard | C58: 110 | D58: 300 | E58: 188 | F58: A | G58: =IF(rawdata[[#This Row],[Opening type]]="Standard",$C$10,$C$9) -> 4.54 | H58: 1.1 | I58: 2.4 | J58: 1.67 | K58: =IF(AND($C$4>=rawdata[[#This Row],[KDmin]],$J$11=rawdata[[#This Row],[FHq]],rawdata[[#This Row],[FW]]>=rawdata[[#This Row],[FWmin]],rawdata[[#This Row],[FW]]<=rawdata[[#This Row],[FWmax]]),"YES"," - ") -> - | L58: =IF(rawdata[[#This Row],[Fhmatch 1]]="YES",((1-rawdata[[#This Row],[FWmin]]/rawdata[[#This Row],[FW]])+(1-rawdata[[#This Row],[FW]]/rawdata[[#This Row],[FWmax]]))/2,"") ->  | M58: =IF(AND($C$4>=rawdata[[#This Row],[KDmin]],$J$11=rawdata[[#This Row],[FHq]],rawdata[[#This Row],[FW]]/2>=rawdata[[#This Row],[FWmin]],rawdata[[#This Row],[FW]]/2<=rawdata[[#This Row],[FWmax]]),"YES"," - ") -> - | N58: =IFERROR(rawdata[[#This Row],[FWmin]]*2," - ") -> 2.2 | O58: =IFERROR(rawdata[[#This Row],[FWmax]]*2," - ") -> 4.8 | P58: =IF(rawdata[[#This Row],[Fhmatch 2]]="YES",((1-rawdata[[#This Row],[Fwmin 2]]/rawdata[[#This Row],[FW]])+(1-rawdata[[#This Row],[FW]]/rawdata[[#This Row],[FWmax 2]]))/2,"") -> 
B59: Standard | C59: 110 | D59: 300 | E59: 188 | F59: B | G59: =IF(rawdata[[#This Row],[Opening type]]="Standard",$C$10,$C$9) -> 4.54 | H59: 2.4 | I59: 4.1 | J59: 1.67 | K59: =IF(AND($C$4>=rawdata[[#This Row],[KDmin]],$J$11=rawdata[[#This Row],[FHq]],rawdata[[#This Row],[FW]]>=rawdata[[#This Row],[FWmin]],rawdata[[#This Row],[FW]]<=rawdata[[#This Row],[FWmax]]),"YES"," - ") -> - | L59: =IF(rawdata[[#This Row],[Fhmatch 1]]="YES",((1-rawdata[[#This Row],[FWmin]]/rawdata[[#This Row],[FW]])+(1-rawdata[[#This Row],[FW]]/rawdata[[#This Row],[FWmax]]))/2,"") ->  | M59: =IF(AND($C$4>=rawdata[[#This Row],[KDmin]],$J$11=rawdata[[#This Row],[FHq]],rawdata[[#This Row],[FW]]/2>=rawdata[[#This Row],[FWmin]],rawdata[[#This Row],[FW]]/2<=rawdata[[#This Row],[FWmax]]),"YES"," - ") -> - | N59: =IFERROR(rawdata[[#This Row],[FWmin]]*2," - ") -> 4.8 | O59: =IFERROR(rawdata[[#This Row],[FWmax]]*2," - ") -> 8.2 | P59: =IF(rawdata[[#This Row],[Fhmatch 2]]="YES",((1-rawdata[[#This Row],[Fwmin 2]]/rawdata[[#This Row],[FW]])+(1-rawdata[[#This Row],[FW]]/rawdata[[#This Row],[FWmax 2]]))/2,"") -> 
B60: Standard | C60: 110 | D60: 300 | E60: 188 | F60: D | G60: =IF(rawdata[[#This Row],[Opening type]]="Standard",$C$10,$C$9) -> 4.54 | H60: 4.0 | I60: 7.0 | J60: 1.67 | K60: =IF(AND($C$4>=rawdata[[#This Row],[KDmin]],$J$11=rawdata[[#This Row],[FHq]],rawdata[[#This Row],[FW]]>=rawdata[[#This Row],[FWmin]],rawdata[[#This Row],[FW]]<=rawdata[[#This Row],[FWmax]]),"YES"," - ") -> - | L60: =IF(rawdata[[#This Row],[Fhmatch 1]]="YES",((1-rawdata[[#This Row],[FWmin]]/rawdata[[#This Row],[FW]])+(1-rawdata[[#This Row],[FW]]/rawdata[[#This Row],[FWmax]]))/2,"") ->  | M60: =IF(AND($C$4>=rawdata[[#This Row],[KDmin]],$J$11=rawdata[[#This Row],[FHq]],rawdata[[#This Row],[FW]]/2>=rawdata[[#This Row],[FWmin]],rawdata[[#This Row],[FW]]/2<=rawdata[[#This Row],[FWmax]]),"YES"," - ") -> - | N60: =IFERROR(rawdata[[#This Row],[FWmin]]*2," - ") -> 8.0 | O60: =IFERROR(rawdata[[#This Row],[FWmax]]*2," - ") -> 14.0 | P60: =IF(rawdata[[#This Row],[Fhmatch 2]]="YES",((1-rawdata[[#This Row],[Fwmin 2]]/rawdata[[#This Row],[FW]])+(1-rawdata[[#This Row],[FW]]/rawdata[[#This Row],[FWmax 2]]))/2,"") -> 
B61: Standard | C61: 110 | D61: 350 | E61: 188 | F61: A | G61: =IF(rawdata[[#This Row],[Opening type]]="Standard",$C$10,$C$9) -> 4.54 | H61: 1.1 | I61: 2.1 | J61: 1.43 | K61: =IF(AND($C$4>=rawdata[[#This Row],[KDmin]],$J$11=rawdata[[#This Row],[FHq]],rawdata[[#This Row],[FW]]>=rawdata[[#This Row],[FWmin]],rawdata[[#This Row],[FW]]<=rawdata[[#This Row],[FWmax]]),"YES"," - ") -> - | L61: =IF(rawdata[[#This Row],[Fhmatch 1]]="YES",((1-rawdata[[#This Row],[FWmin]]/rawdata[[#This Row],[FW]])+(1-rawdata[[#This Row],[FW]]/rawdata[[#This Row],[FWmax]]))/2,"") ->  | M61: =IF(AND($C$4>=rawdata[[#This Row],[KDmin]],$J$11=rawdata[[#This Row],[FHq]],rawdata[[#This Row],[FW]]/2>=rawdata[[#This Row],[FWmin]],rawdata[[#This Row],[FW]]/2<=rawdata[[#This Row],[FWmax]]),"YES"," - ") -> - | N61: =IFERROR(rawdata[[#This Row],[FWmin]]*2," - ") -> 2.2 | O61: =IFERROR(rawdata[[#This Row],[FWmax]]*2," - ") -> 4.2 | P61: =IF(rawdata[[#This Row],[Fhmatch 2]]="YES",((1-rawdata[[#This Row],[Fwmin 2]]/rawdata[[#This Row],[FW]])+(1-rawdata[[#This Row],[FW]]/rawdata[[#This Row],[FWmax 2]]))/2,"") -> 
B62: Standard | C62: 110 | D62: 350 | E62: 188 | F62: B | G62: =IF(rawdata[[#This Row],[Opening type]]="Standard",$C$10,$C$9) -> 4.54 | H62: 2.1 | I62: 3.7 | J62: 1.43 | K62: =IF(AND($C$4>=rawdata[[#This Row],[KDmin]],$J$11=rawdata[[#This Row],[FHq]],rawdata[[#This Row],[FW]]>=rawdata[[#This Row],[FWmin]],rawdata[[#This Row],[FW]]<=rawdata[[#This Row],[FWmax]]),"YES"," - ") -> - | L62: =IF(rawdata[[#This Row],[Fhmatch 1]]="YES",((1-rawdata[[#This Row],[FWmin]]/rawdata[[#This Row],[FW]])+(1-rawdata[[#This Row],[FW]]/rawdata[[#This Row],[FWmax]]))/2,"") ->  | M62: =IF(AND($C$4>=rawdata[[#This Row],[KDmin]],$J$11=rawdata[[#This Row],[FHq]],rawdata[[#This Row],[FW]]/2>=rawdata[[#This Row],[FWmin]],rawdata[[#This Row],[FW]]/2<=rawdata[[#This Row],[FWmax]]),"YES"," - ") -> - | N62: =IFERROR(rawdata[[#This Row],[FWmin]]*2," - ") -> 4.2 | O62: =IFERROR(rawdata[[#This Row],[FWmax]]*2," - ") -> 7.4 | P62: =IF(rawdata[[#This Row],[Fhmatch 2]]="YES",((1-rawdata[[#This Row],[Fwmin 2]]/rawdata[[#This Row],[FW]])+(1-rawdata[[#This Row],[FW]]/rawdata[[#This Row],[FWmax 2]]))/2,"") -> 
B63: Standard | C63: 110 | D63: 350 | E63: 188 | F63: D | G63: =IF(rawdata[[#This Row],[Opening type]]="Standard",$C$10,$C$9) -> 4.54 | H63: 3.6 | I63: 6.4 | J63: 1.43 | K63: =IF(AND($C$4>=rawdata[[#This Row],[KDmin]],$J$11=rawdata[[#This Row],[FHq]],rawdata[[#This Row],[FW]]>=rawdata[[#This Row],[FWmin]],rawdata[[#This Row],[FW]]<=rawdata[[#This Row],[FWmax]]),"YES"," - ") -> - | L63: =IF(rawdata[[#This Row],[Fhmatch 1]]="YES",((1-rawdata[[#This Row],[FWmin]]/rawdata[[#This Row],[FW]])+(1-rawdata[[#This Row],[FW]]/rawdata[[#This Row],[FWmax]]))/2,"") ->  | M63: =IF(AND($C$4>=rawdata[[#This Row],[KDmin]],$J$11=rawdata[[#This Row],[FHq]],rawdata[[#This Row],[FW]]/2>=rawdata[[#This Row],[FWmin]],rawdata[[#This Row],[FW]]/2<=rawdata[[#This Row],[FWmax]]),"YES"," - ") -> - | N63: =IFERROR(rawdata[[#This Row],[FWmin]]*2," - ") -> 7.2 | O63: =IFERROR(rawdata[[#This Row],[FWmax]]*2," - ") -> 12.8 | P63: =IF(rawdata[[#This Row],[Fhmatch 2]]="YES",((1-rawdata[[#This Row],[Fwmin 2]]/rawdata[[#This Row],[FW]])+(1-rawdata[[#This Row],[FW]]/rawdata[[#This Row],[FWmax 2]]))/2,"") -> 
B64: Standard | C64: 110 | D64: 400 | E64: 188 | F64: A | G64: =IF(rawdata[[#This Row],[Opening type]]="Standard",$C$10,$C$9) -> 4.54 | H64: 1.1 | I64: 1.7 | J64: 1.25 | K64: =IF(AND($C$4>=rawdata[[#This Row],[KDmin]],$J$11=rawdata[[#This Row],[FHq]],rawdata[[#This Row],[FW]]>=rawdata[[#This Row],[FWmin]],rawdata[[#This Row],[FW]]<=rawdata[[#This Row],[FWmax]]),"YES"," - ") -> - | L64: =IF(rawdata[[#This Row],[Fhmatch 1]]="YES",((1-rawdata[[#This Row],[FWmin]]/rawdata[[#This Row],[FW]])+(1-rawdata[[#This Row],[FW]]/rawdata[[#This Row],[FWmax]]))/2,"") ->  | M64: =IF(AND($C$4>=rawdata[[#This Row],[KDmin]],$J$11=rawdata[[#This Row],[FHq]],rawdata[[#This Row],[FW]]/2>=rawdata[[#This Row],[FWmin]],rawdata[[#This Row],[FW]]/2<=rawdata[[#This Row],[FWmax]]),"YES"," - ") -> - | N64: =IFERROR(rawdata[[#This Row],[FWmin]]*2," - ") -> 2.2 | O64: =IFERROR(rawdata[[#This Row],[FWmax]]*2," - ") -> 3.4 | P64: =IF(rawdata[[#This Row],[Fhmatch 2]]="YES",((1-rawdata[[#This Row],[Fwmin 2]]/rawdata[[#This Row],[FW]])+(1-rawdata[[#This Row],[FW]]/rawdata[[#This Row],[FWmax 2]]))/2,"") -> 
B65: Standard | C65: 110 | D65: 400 | E65: 188 | F65: B | G65: =IF(rawdata[[#This Row],[Opening type]]="Standard",$C$10,$C$9) -> 4.54 | H65: 1.7 | I65: 3.2 | J65: 1.25 | K65: =IF(AND($C$4>=rawdata[[#This Row],[KDmin]],$J$11=rawdata[[#This Row],[FHq]],rawdata[[#This Row],[FW]]>=rawdata[[#This Row],[FWmin]],rawdata[[#This Row],[FW]]<=rawdata[[#This Row],[FWmax]]),"YES"," - ") -> - | L65: =IF(rawdata[[#This Row],[Fhmatch 1]]="YES",((1-rawdata[[#This Row],[FWmin]]/rawdata[[#This Row],[FW]])+(1-rawdata[[#This Row],[FW]]/rawdata[[#This Row],[FWmax]]))/2,"") ->  | M65: =IF(AND($C$4>=rawdata[[#This Row],[KDmin]],$J$11=rawdata[[#This Row],[FHq]],rawdata[[#This Row],[FW]]/2>=rawdata[[#This Row],[FWmin]],rawdata[[#This Row],[FW]]/2<=rawdata[[#This Row],[FWmax]]),"YES"," - ") -> - | N65: =IFERROR(rawdata[[#This Row],[FWmin]]*2," - ") -> 3.4 | O65: =IFERROR(rawdata[[#This Row],[FWmax]]*2," - ") -> 6.4 | P65: =IF(rawdata[[#This Row],[Fhmatch 2]]="YES",((1-rawdata[[#This Row],[Fwmin 2]]/rawdata[[#This Row],[FW]])+(1-rawdata[[#This Row],[FW]]/rawdata[[#This Row],[FWmax 2]]))/2,"") -> 
B66: Standard | C66: 110 | D66: 400 | E66: 188 | F66: D | G66: =IF(rawdata[[#This Row],[Opening type]]="Standard",$C$10,$C$9) -> 4.54 | H66: 3.2 | I66: 5.5 | J66: 1.25 | K66: =IF(AND($C$4>=rawdata[[#This Row],[KDmin]],$J$11=rawdata[[#This Row],[FHq]],rawdata[[#This Row],[FW]]>=rawdata[[#This Row],[FWmin]],rawdata[[#This Row],[FW]]<=rawdata[[#This Row],[FWmax]]),"YES"," - ") -> - | L66: =IF(rawdata[[#This Row],[Fhmatch 1]]="YES",((1-rawdata[[#This Row],[FWmin]]/rawdata[[#This Row],[FW]])+(1-rawdata[[#This Row],[FW]]/rawdata[[#This Row],[FWmax]]))/2,"") ->  | M66: =IF(AND($C$4>=rawdata[[#This Row],[KDmin]],$J$11=rawdata[[#This Row],[FHq]],rawdata[[#This Row],[FW]]/2>=rawdata[[#This Row],[FWmin]],rawdata[[#This Row],[FW]]/2<=rawdata[[#This Row],[FWmax]]),"YES"," - ") -> - | N66: =IFERROR(rawdata[[#This Row],[FWmin]]*2," - ") -> 6.4 | O66: =IFERROR(rawdata[[#This Row],[FWmax]]*2," - ") -> 11.0 | P66: =IF(rawdata[[#This Row],[Fhmatch 2]]="YES",((1-rawdata[[#This Row],[Fwmin 2]]/rawdata[[#This Row],[FW]])+(1-rawdata[[#This Row],[FW]]/rawdata[[#This Row],[FWmax 2]]))/2,"") -> 
B67: Standard | C67: 110 | D67: 450 | E67: 188 | F67: A | G67: =IF(rawdata[[#This Row],[Opening type]]="Standard",$C$10,$C$9) -> 4.54 | H67: 1.0 | I67: 1.6 | J67: 1.11 | K67: =IF(AND($C$4>=rawdata[[#This Row],[KDmin]],$J$11=rawdata[[#This Row],[FHq]],rawdata[[#This Row],[FW]]>=rawdata[[#This Row],[FWmin]],rawdata[[#This Row],[FW]]<=rawdata[[#This Row],[FWmax]]),"YES"," - ") -> - | L67: =IF(rawdata[[#This Row],[Fhmatch 1]]="YES",((1-rawdata[[#This Row],[FWmin]]/rawdata[[#This Row],[FW]])+(1-rawdata[[#This Row],[FW]]/rawdata[[#This Row],[FWmax]]))/2,"") ->  | M67: =IF(AND($C$4>=rawdata[[#This Row],[KDmin]],$J$11=rawdata[[#This Row],[FHq]],rawdata[[#This Row],[FW]]/2>=rawdata[[#This Row],[FWmin]],rawdata[[#This Row],[FW]]/2<=rawdata[[#This Row],[FWmax]]),"YES"," - ") -> - | N67: =IFERROR(rawdata[[#This Row],[FWmin]]*2," - ") -> 2.0 | O67: =IFERROR(rawdata[[#This Row],[FWmax]]*2," - ") -> 3.2 | P67: =IF(rawdata[[#This Row],[Fhmatch 2]]="YES",((1-rawdata[[#This Row],[Fwmin 2]]/rawdata[[#This Row],[FW]])+(1-rawdata[[#This Row],[FW]]/rawdata[[#This Row],[FWmax 2]]))/2,"") -> 
B68: Standard | C68: 110 | D68: 450 | E68: 188 | F68: B | G68: =IF(rawdata[[#This Row],[Opening type]]="Standard",$C$10,$C$9) -> 4.54 | H68: 1.6 | I68: 2.8 | J68: 1.11 | K68: =IF(AND($C$4>=rawdata[[#This Row],[KDmin]],$J$11=rawdata[[#This Row],[FHq]],rawdata[[#This Row],[FW]]>=rawdata[[#This Row],[FWmin]],rawdata[[#This Row],[FW]]<=rawdata[[#This Row],[FWmax]]),"YES"," - ") -> - | L68: =IF(rawdata[[#This Row],[Fhmatch 1]]="YES",((1-rawdata[[#This Row],[FWmin]]/rawdata[[#This Row],[FW]])+(1-rawdata[[#This Row],[FW]]/rawdata[[#This Row],[FWmax]]))/2,"") ->  | M68: =IF(AND($C$4>=rawdata[[#This Row],[KDmin]],$J$11=rawdata[[#This Row],[FHq]],rawdata[[#This Row],[FW]]/2>=rawdata[[#This Row],[FWmin]],rawdata[[#This Row],[FW]]/2<=rawdata[[#This Row],[FWmax]]),"YES"," - ") -> - | N68: =IFERROR(rawdata[[#This Row],[FWmin]]*2," - ") -> 3.2 | O68: =IFERROR(rawdata[[#This Row],[FWmax]]*2," - ") -> 5.6 | P68: =IF(rawdata[[#This Row],[Fhmatch 2]]="YES",((1-rawdata[[#This Row],[Fwmin 2]]/rawdata[[#This Row],[FW]])+(1-rawdata[[#This Row],[FW]]/rawdata[[#This Row],[FWmax 2]]))/2,"") -> 
B69: Standard | C69: 110 | D69: 450 | E69: 188 | F69: D | G69: =IF(rawdata[[#This Row],[Opening type]]="Standard",$C$10,$C$9) -> 4.54 | H69: 2.8 | I69: 5.5 | J69: 1.11 | K69: =IF(AND($C$4>=rawdata[[#This Row],[KDmin]],$J$11=rawdata[[#This Row],[FHq]],rawdata[[#This Row],[FW]]>=rawdata[[#This Row],[FWmin]],rawdata[[#This Row],[FW]]<=rawdata[[#This Row],[FWmax]]),"YES"," - ") -> - | L69: =IF(rawdata[[#This Row],[Fhmatch 1]]="YES",((1-rawdata[[#This Row],[FWmin]]/rawdata[[#This Row],[FW]])+(1-rawdata[[#This Row],[FW]]/rawdata[[#This Row],[FWmax]]))/2,"") ->  | M69: =IF(AND($C$4>=rawdata[[#This Row],[KDmin]],$J$11=rawdata[[#This Row],[FHq]],rawdata[[#This Row],[FW]]/2>=rawdata[[#This Row],[FWmin]],rawdata[[#This Row],[FW]]/2<=rawdata[[#This Row],[FWmax]]),"YES"," - ") -> - | N69: =IFERROR(rawdata[[#This Row],[FWmin]]*2," - ") -> 5.6 | O69: =IFERROR(rawdata[[#This Row],[FWmax]]*2," - ") -> 11.0 | P69: =IF(rawdata[[#This Row],[Fhmatch 2]]="YES",((1-rawdata[[#This Row],[Fwmin 2]]/rawdata[[#This Row],[FW]])+(1-rawdata[[#This Row],[FW]]/rawdata[[#This Row],[FWmax 2]]))/2,"") -> 
B70: Standard | C70: 110 | D70: 500 | E70: 188 | F70: A | G70: =IF(rawdata[[#This Row],[Opening type]]="Standard",$C$10,$C$9) -> 4.54 | H70: 1.0 | I70: 1.4 | J70: 1.00 | K70: =IF(AND($C$4>=rawdata[[#This Row],[KDmin]],$J$11=rawdata[[#This Row],[FHq]],rawdata[[#This Row],[FW]]>=rawdata[[#This Row],[FWmin]],rawdata[[#This Row],[FW]]<=rawdata[[#This Row],[FWmax]]),"YES"," - ") -> - | L70: =IF(rawdata[[#This Row],[Fhmatch 1]]="YES",((1-rawdata[[#This Row],[FWmin]]/rawdata[[#This Row],[FW]])+(1-rawdata[[#This Row],[FW]]/rawdata[[#This Row],[FWmax]]))/2,"") ->  | M70: =IF(AND($C$4>=rawdata[[#This Row],[KDmin]],$J$11=rawdata[[#This Row],[FHq]],rawdata[[#This Row],[FW]]/2>=rawdata[[#This Row],[FWmin]],rawdata[[#This Row],[FW]]/2<=rawdata[[#This Row],[FWmax]]),"YES"," - ") -> - | N70: =IFERROR(rawdata[[#This Row],[FWmin]]*2," - ") -> 2.0 | O70: =IFERROR(rawdata[[#This Row],[FWmax]]*2," - ") -> 2.8 | P70: =IF(rawdata[[#This Row],[Fhmatch 2]]="YES",((1-rawdata[[#This Row],[Fwmin 2]]/rawdata[[#This Row],[FW]])+(1-rawdata[[#This Row],[FW]]/rawdata[[#This Row],[FWmax 2]]))/2,"") -> 
B71: Standard | C71: 110 | D71: 500 | E71: 188 | F71: B | G71: =IF(rawdata[[#This Row],[Opening type]]="Standard",$C$10,$C$9) -> 4.54 | H71: 1.3 | I71: 2.5 | J71: 1.00 | K71: =IF(AND($C$4>=rawdata[[#This Row],[KDmin]],$J$11=rawdata[[#This Row],[FHq]],rawdata[[#This Row],[FW]]>=rawdata[[#This Row],[FWmin]],rawdata[[#This Row],[FW]]<=rawdata[[#This Row],[FWmax]]),"YES"," - ") -> - | L71: =IF(rawdata[[#This Row],[Fhmatch 1]]="YES",((1-rawdata[[#This Row],[FWmin]]/rawdata[[#This Row],[FW]])+(1-rawdata[[#This Row],[FW]]/rawdata[[#This Row],[FWmax]]))/2,"") ->  | M71: =IF(AND($C$4>=rawdata[[#This Row],[KDmin]],$J$11=rawdata[[#This Row],[FHq]],rawdata[[#This Row],[FW]]/2>=rawdata[[#This Row],[FWmin]],rawdata[[#This Row],[FW]]/2<=rawdata[[#This Row],[FWmax]]),"YES"," - ") -> YES | N71: =IFERROR(rawdata[[#This Row],[FWmin]]*2," - ") -> 2.6 | O71: =IFERROR(rawdata[[#This Row],[FWmax]]*2," - ") -> 5.0 | P71: =IF(rawdata[[#This Row],[Fhmatch 2]]="YES",((1-rawdata[[#This Row],[Fwmin 2]]/rawdata[[#This Row],[FW]])+(1-rawdata[[#This Row],[FW]]/rawdata[[#This Row],[FWmax 2]]))/2,"") -> 25.97%
B72: Standard | C72: 110 | D72: 500 | E72: 188 | F72: D | G72: =IF(rawdata[[#This Row],[Opening type]]="Standard",$C$10,$C$9) -> 4.54 | H72: 2.5 | I72: 4.5 | J72: 1.00 | K72: =IF(AND($C$4>=rawdata[[#This Row],[KDmin]],$J$11=rawdata[[#This Row],[FHq]],rawdata[[#This Row],[FW]]>=rawdata[[#This Row],[FWmin]],rawdata[[#This Row],[FW]]<=rawdata[[#This Row],[FWmax]]),"YES"," - ") -> - | L72: =IF(rawdata[[#This Row],[Fhmatch 1]]="YES",((1-rawdata[[#This Row],[FWmin]]/rawdata[[#This Row],[FW]])+(1-rawdata[[#This Row],[FW]]/rawdata[[#This Row],[FWmax]]))/2,"") ->  | M72: =IF(AND($C$4>=rawdata[[#This Row],[KDmin]],$J$11=rawdata[[#This Row],[FHq]],rawdata[[#This Row],[FW]]/2>=rawdata[[#This Row],[FWmin]],rawdata[[#This Row],[FW]]/2<=rawdata[[#This Row],[FWmax]]),"YES"," - ") -> - | N72: =IFERROR(rawdata[[#This Row],[FWmin]]*2," - ") -> 5.0 | O72: =IFERROR(rawdata[[#This Row],[FWmax]]*2," - ") -> 9.0 | P72: =IF(rawdata[[#This Row],[Fhmatch 2]]="YES",((1-rawdata[[#This Row],[Fwmin 2]]/rawdata[[#This Row],[FW]])+(1-rawdata[[#This Row],[FW]]/rawdata[[#This Row],[FWmax 2]]))/2,"") -> 
B73: Standard | C73: 110 | D73: 550 | E73: 188 | F73: A | G73: =IF(rawdata[[#This Row],[Opening type]]="Standard",$C$10,$C$9) -> 4.54 | H73: 0.8 | I73: 1.3 | J73: 0.91 | K73: =IF(AND($C$4>=rawdata[[#This Row],[KDmin]],$J$11=rawdata[[#This Row],[FHq]],rawdata[[#This Row],[FW]]>=rawdata[[#This Row],[FWmin]],rawdata[[#This Row],[FW]]<=rawdata[[#This Row],[FWmax]]),"YES"," - ") -> - | L73: =IF(rawdata[[#This Row],[Fhmatch 1]]="YES",((1-rawdata[[#This Row],[FWmin]]/rawdata[[#This Row],[FW]])+(1-rawdata[[#This Row],[FW]]/rawdata[[#This Row],[FWmax]]))/2,"") ->  | M73: =IF(AND($C$4>=rawdata[[#This Row],[KDmin]],$J$11=rawdata[[#This Row],[FHq]],rawdata[[#This Row],[FW]]/2>=rawdata[[#This Row],[FWmin]],rawdata[[#This Row],[FW]]/2<=rawdata[[#This Row],[FWmax]]),"YES"," - ") -> - | N73: =IFERROR(rawdata[[#This Row],[FWmin]]*2," - ") -> 1.6 | O73: =IFERROR(rawdata[[#This Row],[FWmax]]*2," - ") -> 2.6 | P73: =IF(rawdata[[#This Row],[Fhmatch 2]]="YES",((1-rawdata[[#This Row],[Fwmin 2]]/rawdata[[#This Row],[FW]])+(1-rawdata[[#This Row],[FW]]/rawdata[[#This Row],[FWmax 2]]))/2,"") -> 
B74: Standard | C74: 110 | D74: 550 | E74: 188 | F74: B | G74: =IF(rawdata[[#This Row],[Opening type]]="Standard",$C$10,$C$9) -> 4.54 | H74: 1.3 | I74: 2.2 | J74: 0.91 | K74: =IF(AND($C$4>=rawdata[[#This Row],[KDmin]],$J$11=rawdata[[#This Row],[FHq]],rawdata[[#This Row],[FW]]>=rawdata[[#This Row],[FWmin]],rawdata[[#This Row],[FW]]<=rawdata[[#This Row],[FWmax]]),"YES"," - ") -> - | L74: =IF(rawdata[[#This Row],[Fhmatch 1]]="YES",((1-rawdata[[#This Row],[FWmin]]/rawdata[[#This Row],[FW]])+(1-rawdata[[#This Row],[FW]]/rawdata[[#This Row],[FWmax]]))/2,"") ->  | M74: =IF(AND($C$4>=rawdata[[#This Row],[KDmin]],$J$11=rawdata[[#This Row],[FHq]],rawdata[[#This Row],[FW]]/2>=rawdata[[#This Row],[FWmin]],rawdata[[#This Row],[FW]]/2<=rawdata[[#This Row],[FWmax]]),"YES"," - ") -> - | N74: =IFERROR(rawdata[[#This Row],[FWmin]]*2," - ") -> 2.6 | O74: =IFERROR(rawdata[[#This Row],[FWmax]]*2," - ") -> 4.4 | P74: =IF(rawdata[[#This Row],[Fhmatch 2]]="YES",((1-rawdata[[#This Row],[Fwmin 2]]/rawdata[[#This Row],[FW]])+(1-rawdata[[#This Row],[FW]]/rawdata[[#This Row],[FWmax 2]]))/2,"") -> 
B75: Standard | C75: 110 | D75: 550 | E75: 188 | F75: D | G75: =IF(rawdata[[#This Row],[Opening type]]="Standard",$C$10,$C$9) -> 4.54 | H75: 2.2 | I75: 3.9 | J75: 0.91 | K75: =IF(AND($C$4>=rawdata[[#This Row],[KDmin]],$J$11=rawdata[[#This Row],[FHq]],rawdata[[#This Row],[FW]]>=rawdata[[#This Row],[FWmin]],rawdata[[#This Row],[FW]]<=rawdata[[#This Row],[FWmax]]),"YES"," - ") -> - | L75: =IF(rawdata[[#This Row],[Fhmatch 1]]="YES",((1-rawdata[[#This Row],[FWmin]]/rawdata[[#This Row],[FW]])+(1-rawdata[[#This Row],[FW]]/rawdata[[#This Row],[FWmax]]))/2,"") ->  | M75: =IF(AND($C$4>=rawdata[[#This Row],[KDmin]],$J$11=rawdata[[#This Row],[FHq]],rawdata[[#This Row],[FW]]/2>=rawdata[[#This Row],[FWmin]],rawdata[[#This Row],[FW]]/2<=rawdata[[#This Row],[FWmax]]),"YES"," - ") -> - | N75: =IFERROR(rawdata[[#This Row],[FWmin]]*2," - ") -> 4.4 | O75: =IFERROR(rawdata[[#This Row],[FWmax]]*2," - ") -> 7.8 | P75: =IF(rawdata[[#This Row],[Fhmatch 2]]="YES",((1-rawdata[[#This Row],[Fwmin 2]]/rawdata[[#This Row],[FW]])+(1-rawdata[[#This Row],[FW]]/rawdata[[#This Row],[FWmax 2]]))/2,"") -> 
B76: Standard | C76: 110 | D76: 600 | E76: 188 | F76: A | G76: =IF(rawdata[[#This Row],[Opening type]]="Standard",$C$10,$C$9) -> 4.54 | H76: 0.7 | I76: 1.2 | J76: 0.83 | K76: =IF(AND($C$4>=rawdata[[#This Row],[KDmin]],$J$11=rawdata[[#This Row],[FHq]],rawdata[[#This Row],[FW]]>=rawdata[[#This Row],[FWmin]],rawdata[[#This Row],[FW]]<=rawdata[[#This Row],[FWmax]]),"YES"," - ") -> - | L76: =IF(rawdata[[#This Row],[Fhmatch 1]]="YES",((1-rawdata[[#This Row],[FWmin]]/rawdata[[#This Row],[FW]])+(1-rawdata[[#This Row],[FW]]/rawdata[[#This Row],[FWmax]]))/2,"") ->  | M76: =IF(AND($C$4>=rawdata[[#This Row],[KDmin]],$J$11=rawdata[[#This Row],[FHq]],rawdata[[#This Row],[FW]]/2>=rawdata[[#This Row],[FWmin]],rawdata[[#This Row],[FW]]/2<=rawdata[[#This Row],[FWmax]]),"YES"," - ") -> - | N76: =IFERROR(rawdata[[#This Row],[FWmin]]*2," - ") -> 1.4 | O76: =IFERROR(rawdata[[#This Row],[FWmax]]*2," - ") -> 2.4 | P76: =IF(rawdata[[#This Row],[Fhmatch 2]]="YES",((1-rawdata[[#This Row],[Fwmin 2]]/rawdata[[#This Row],[FW]])+(1-rawdata[[#This Row],[FW]]/rawdata[[#This Row],[FWmax 2]]))/2,"") -> 
B77: Standard | C77: 110 | D77: 600 | E77: 188 | F77: B | G77: =IF(rawdata[[#This Row],[Opening type]]="Standard",$C$10,$C$9) -> 4.54 | H77: 1.2 | I77: 2.2 | J77: =$C$2/D77 -> 0.83 | K77: =IF(AND($C$4>=rawdata[[#This Row],[KDmin]],$J$11=rawdata[[#This Row],[FHq]],rawdata[[#This Row],[FW]]>=rawdata[[#This Row],[FWmin]],rawdata[[#This Row],[FW]]<=rawdata[[#This Row],[FWmax]]),"YES"," - ") -> - | L77: =IF(rawdata[[#This Row],[Fhmatch 1]]="YES",((1-rawdata[[#This Row],[FWmin]]/rawdata[[#This Row],[FW]])+(1-rawdata[[#This Row],[FW]]/rawdata[[#This Row],[FWmax]]))/2,"") ->  | M77: =IF(AND($C$4>=rawdata[[#This Row],[KDmin]],$J$11=rawdata[[#This Row],[FHq]],rawdata[[#This Row],[FW]]/2>=rawdata[[#This Row],[FWmin]],rawdata[[#This Row],[FW]]/2<=rawdata[[#This Row],[FWmax]]),"YES"," - ") -> - | N77: =IFERROR(rawdata[[#This Row],[FWmin]]*2," - ") -> 2.4 | O77: =IFERROR(rawdata[[#This Row],[FWmax]]*2," - ") -> 4.4 | P77: =IF(rawdata[[#This Row],[Fhmatch 2]]="YES",((1-rawdata[[#This Row],[Fwmin 2]]/rawdata[[#This Row],[FW]])+(1-rawdata[[#This Row],[FW]]/rawdata[[#This Row],[FWmax 2]]))/2,"") -> 
B78: Standard | C78: 110 | D78: 600 | E78: 188 | F78: D | G78: =IF(rawdata[[#This Row],[Opening type]]="Standard",$C$10,$C$9) -> 4.54 | H78: 2.2 | I78: 4.3 | J78: 0.83 | K78: =IF(AND($C$4>=rawdata[[#This Row],[KDmin]],$J$11=rawdata[[#This Row],[FHq]],rawdata[[#This Row],[FW]]>=rawdata[[#This Row],[FWmin]],rawdata[[#This Row],[FW]]<=rawdata[[#This Row],[FWmax]]),"YES"," - ") -> - | L78: =IF(rawdata[[#This Row],[Fhmatch 1]]="YES",((1-rawdata[[#This Row],[FWmin]]/rawdata[[#This Row],[FW]])+(1-rawdata[[#This Row],[FW]]/rawdata[[#This Row],[FWmax]]))/2,"") ->  | M78: =IF(AND($C$4>=rawdata[[#This Row],[KDmin]],$J$11=rawdata[[#This Row],[FHq]],rawdata[[#This Row],[FW]]/2>=rawdata[[#This Row],[FWmin]],rawdata[[#This Row],[FW]]/2<=rawdata[[#This Row],[FWmax]]),"YES"," - ") -> - | N78: =IFERROR(rawdata[[#This Row],[FWmin]]*2," - ") -> 4.4 | O78: =IFERROR(rawdata[[#This Row],[FWmax]]*2," - ") -> 8.6 | P78: =IF(rawdata[[#This Row],[Fhmatch 2]]="YES",((1-rawdata[[#This Row],[Fwmin 2]]/rawdata[[#This Row],[FW]])+(1-rawdata[[#This Row],[FW]]/rawdata[[#This Row],[FWmax 2]]))/2,"") -> 
B79: Touch opening | C79: 75 | D79: 350 | E79: 192 | F79: B | G79: =IF(rawdata[[#This Row],[Opening type]]="Standard",$C$10,$C$9) -> 4.39 | H79: 4.6 | I79: 5.3 | J79: 1.43 | K79: =IF(AND($C$4>=rawdata[[#This Row],[KDmin]],$J$11=rawdata[[#This Row],[FHq]],rawdata[[#This Row],[FW]]>=rawdata[[#This Row],[FWmin]],rawdata[[#This Row],[FW]]<=rawdata[[#This Row],[FWmax]]),"YES"," - ") -> - | L79: =IF(rawdata[[#This Row],[Fhmatch 1]]="YES",((1-rawdata[[#This Row],[FWmin]]/rawdata[[#This Row],[FW]])+(1-rawdata[[#This Row],[FW]]/rawdata[[#This Row],[FWmax]]))/2,"") ->  | M79: =IF(AND($C$4>=rawdata[[#This Row],[KDmin]],$J$11=rawdata[[#This Row],[FHq]],rawdata[[#This Row],[FW]]/2>=rawdata[[#This Row],[FWmin]],rawdata[[#This Row],[FW]]/2<=rawdata[[#This Row],[FWmax]]),"YES"," - ") -> - | N79: =IFERROR(rawdata[[#This Row],[FWmin]]*2," - ") -> 9.2 | O79: =IFERROR(rawdata[[#This Row],[FWmax]]*2," - ") -> 10.6 | P79: =IF(rawdata[[#This Row],[Fhmatch 2]]="YES",((1-rawdata[[#This Row],[Fwmin 2]]/rawdata[[#This Row],[FW]])+(1-rawdata[[#This Row],[FW]]/rawdata[[#This Row],[FWmax 2]]))/2,"") -> 
B80: Touch opening | C80: 75 | D80: 350 | E80: 192 | F80: C | G80: =IF(rawdata[[#This Row],[Opening type]]="Standard",$C$10,$C$9) -> 4.39 | H80: - | I80: - | J80: 1.43 | K80: =IF(AND($C$4>=rawdata[[#This Row],[KDmin]],$J$11=rawdata[[#This Row],[FHq]],rawdata[[#This Row],[FW]]>=rawdata[[#This Row],[FWmin]],rawdata[[#This Row],[FW]]<=rawdata[[#This Row],[FWmax]]),"YES"," - ") -> - | L80: =IF(rawdata[[#This Row],[Fhmatch 1]]="YES",((1-rawdata[[#This Row],[FWmin]]/rawdata[[#This Row],[FW]])+(1-rawdata[[#This Row],[FW]]/rawdata[[#This Row],[FWmax]]))/2,"") ->  | M80: =IF(AND($C$4>=rawdata[[#This Row],[KDmin]],$J$11=rawdata[[#This Row],[FHq]],rawdata[[#This Row],[FW]]/2>=rawdata[[#This Row],[FWmin]],rawdata[[#This Row],[FW]]/2<=rawdata[[#This Row],[FWmax]]),"YES"," - ") -> - | N80: =IFERROR(rawdata[[#This Row],[FWmin]]*2," - ") -> - | O80: =IFERROR(rawdata[[#This Row],[FWmax]]*2," - ") -> - | P80: =IF(rawdata[[#This Row],[Fhmatch 2]]="YES",((1-rawdata[[#This Row],[Fwmin 2]]/rawdata[[#This Row],[FW]])+(1-rawdata[[#This Row],[FW]]/rawdata[[#This Row],[FWmax 2]]))/2,"") -> 
B81: Touch opening | C81: 75 | D81: 350 | E81: 192 | F81: D | G81: =IF(rawdata[[#This Row],[Opening type]]="Standard",$C$10,$C$9) -> 4.39 | H81: - | I81: - | J81: 1.43 | K81: =IF(AND($C$4>=rawdata[[#This Row],[KDmin]],$J$11=rawdata[[#This Row],[FHq]],rawdata[[#This Row],[FW]]>=rawdata[[#This Row],[FWmin]],rawdata[[#This Row],[FW]]<=rawdata[[#This Row],[FWmax]]),"YES"," - ") -> - | L81: =IF(rawdata[[#This Row],[Fhmatch 1]]="YES",((1-rawdata[[#This Row],[FWmin]]/rawdata[[#This Row],[FW]])+(1-rawdata[[#This Row],[FW]]/rawdata[[#This Row],[FWmax]]))/2,"") ->  | M81: =IF(AND($C$4>=rawdata[[#This Row],[KDmin]],$J$11=rawdata[[#This Row],[FHq]],rawdata[[#This Row],[FW]]/2>=rawdata[[#This Row],[FWmin]],rawdata[[#This Row],[FW]]/2<=rawdata[[#This Row],[FWmax]]),"YES"," - ") -> - | N81: =IFERROR(rawdata[[#This Row],[FWmin]]*2," - ") -> - | O81: =IFERROR(rawdata[[#This Row],[FWmax]]*2," - ") -> - | P81: =IF(rawdata[[#This Row],[Fhmatch 2]]="YES",((1-rawdata[[#This Row],[Fwmin 2]]/rawdata[[#This Row],[FW]])+(1-rawdata[[#This Row],[FW]]/rawdata[[#This Row],[FWmax 2]]))/2,"") -> 
B82: Touch opening | C82: 75 | D82: 400 | E82: 192 | F82: B | G82: =IF(rawdata[[#This Row],[Opening type]]="Standard",$C$10,$C$9) -> 4.39 | H82: 3.2 | I82: 4.8 | J82: 1.25 | K82: =IF(AND($C$4>=rawdata[[#This Row],[KDmin]],$J$11=rawdata[[#This Row],[FHq]],rawdata[[#This Row],[FW]]>=rawdata[[#This Row],[FWmin]],rawdata[[#This Row],[FW]]<=rawdata[[#This Row],[FWmax]]),"YES"," - ") -> - | L82: =IF(rawdata[[#This Row],[Fhmatch 1]]="YES",((1-rawdata[[#This Row],[FWmin]]/rawdata[[#This Row],[FW]])+(1-rawdata[[#This Row],[FW]]/rawdata[[#This Row],[FWmax]]))/2,"") ->  | M82: =IF(AND($C$4>=rawdata[[#This Row],[KDmin]],$J$11=rawdata[[#This Row],[FHq]],rawdata[[#This Row],[FW]]/2>=rawdata[[#This Row],[FWmin]],rawdata[[#This Row],[FW]]/2<=rawdata[[#This Row],[FWmax]]),"YES"," - ") -> - | N82: =IFERROR(rawdata[[#This Row],[FWmin]]*2," - ") -> 6.4 | O82: =IFERROR(rawdata[[#This Row],[FWmax]]*2," - ") -> 9.6 | P82: =IF(rawdata[[#This Row],[Fhmatch 2]]="YES",((1-rawdata[[#This Row],[Fwmin 2]]/rawdata[[#This Row],[FW]])+(1-rawdata[[#This Row],[FW]]/rawdata[[#This Row],[FWmax 2]]))/2,"") -> 
B83: Touch opening | C83: 75 | D83: 400 | E83: 192 | F83: C* | G83: =IF(rawdata[[#This Row],[Opening type]]="Standard",$C$10,$C$9) -> 4.39 | H83: 4.3 | I83: 7.0 | J83: 1.25 | K83: =IF(AND($C$4>=rawdata[[#This Row],[KDmin]],$J$11=rawdata[[#This Row],[FHq]],rawdata[[#This Row],[FW]]>=rawdata[[#This Row],[FWmin]],rawdata[[#This Row],[FW]]<=rawdata[[#This Row],[FWmax]]),"YES"," - ") -> - | L83: =IF(rawdata[[#This Row],[Fhmatch 1]]="YES",((1-rawdata[[#This Row],[FWmin]]/rawdata[[#This Row],[FW]])+(1-rawdata[[#This Row],[FW]]/rawdata[[#This Row],[FWmax]]))/2,"") ->  | M83: =IF(AND($C$4>=rawdata[[#This Row],[KDmin]],$J$11=rawdata[[#This Row],[FHq]],rawdata[[#This Row],[FW]]/2>=rawdata[[#This Row],[FWmin]],rawdata[[#This Row],[FW]]/2<=rawdata[[#This Row],[FWmax]]),"YES"," - ") -> - | N83: =IFERROR(rawdata[[#This Row],[FWmin]]*2," - ") -> 8.6 | O83: =IFERROR(rawdata[[#This Row],[FWmax]]*2," - ") -> 14.0 | P83: =IF(rawdata[[#This Row],[Fhmatch 2]]="YES",((1-rawdata[[#This Row],[Fwmin 2]]/rawdata[[#This Row],[FW]])+(1-rawdata[[#This Row],[FW]]/rawdata[[#This Row],[FWmax 2]]))/2,"") -> 
B84: Touch opening | C84: 75 | D84: 400 | E84: 192 | F84: D* | G84: =IF(rawdata[[#This Row],[Opening type]]="Standard",$C$10,$C$9) -> 4.39 | H84: 5.5 | I84: 8.0 | J84: 1.25 | K84: =IF(AND($C$4>=rawdata[[#This Row],[KDmin]],$J$11=rawdata[[#This Row],[FHq]],rawdata[[#This Row],[FW]]>=rawdata[[#This Row],[FWmin]],rawdata[[#This Row],[FW]]<=rawdata[[#This Row],[FWmax]]),"YES"," - ") -> - | L84: =IF(rawdata[[#This Row],[Fhmatch 1]]="YES",((1-rawdata[[#This Row],[FWmin]]/rawdata[[#This Row],[FW]])+(1-rawdata[[#This Row],[FW]]/rawdata[[#This Row],[FWmax]]))/2,"") ->  | M84: =IF(AND($C$4>=rawdata[[#This Row],[KDmin]],$J$11=rawdata[[#This Row],[FHq]],rawdata[[#This Row],[FW]]/2>=rawdata[[#This Row],[FWmin]],rawdata[[#This Row],[FW]]/2<=rawdata[[#This Row],[FWmax]]),"YES"," - ") -> - | N84: =IFERROR(rawdata[[#This Row],[FWmin]]*2," - ") -> 11.0 | O84: =IFERROR(rawdata[[#This Row],[FWmax]]*2," - ") -> 16.0 | P84: =IF(rawdata[[#This Row],[Fhmatch 2]]="YES",((1-rawdata[[#This Row],[Fwmin 2]]/rawdata[[#This Row],[FW]])+(1-rawdata[[#This Row],[FW]]/rawdata[[#This Row],[FWmax 2]]))/2,"") -> 
B85: Touch opening | C85: 75 | D85: 450 | E85: 192 | F85: B | G85: =IF(rawdata[[#This Row],[Opening type]]="Standard",$C$10,$C$9) -> 4.39 | H85: 2.5 | I85: 4.0 | J85: 1.11 | K85: =IF(AND($C$4>=rawdata[[#This Row],[KDmin]],$J$11=rawdata[[#This Row],[FHq]],rawdata[[#This Row],[FW]]>=rawdata[[#This Row],[FWmin]],rawdata[[#This Row],[FW]]<=rawdata[[#This Row],[FWmax]]),"YES"," - ") -> - | L85: =IF(rawdata[[#This Row],[Fhmatch 1]]="YES",((1-rawdata[[#This Row],[FWmin]]/rawdata[[#This Row],[FW]])+(1-rawdata[[#This Row],[FW]]/rawdata[[#This Row],[FWmax]]))/2,"") ->  | M85: =IF(AND($C$4>=rawdata[[#This Row],[KDmin]],$J$11=rawdata[[#This Row],[FHq]],rawdata[[#This Row],[FW]]/2>=rawdata[[#This Row],[FWmin]],rawdata[[#This Row],[FW]]/2<=rawdata[[#This Row],[FWmax]]),"YES"," - ") -> - | N85: =IFERROR(rawdata[[#This Row],[FWmin]]*2," - ") -> 5.0 | O85: =IFERROR(rawdata[[#This Row],[FWmax]]*2," - ") -> 8.0 | P85: =IF(rawdata[[#This Row],[Fhmatch 2]]="YES",((1-rawdata[[#This Row],[Fwmin 2]]/rawdata[[#This Row],[FW]])+(1-rawdata[[#This Row],[FW]]/rawdata[[#This Row],[FWmax 2]]))/2,"") -> 
B86: Touch opening | C86: 75 | D86: 450 | E86: 192 | F86: C* | G86: =IF(rawdata[[#This Row],[Opening type]]="Standard",$C$10,$C$9) -> 4.39 | H86: 4.0 | I86: 6.3 | J86: 1.11 | K86: =IF(AND($C$4>=rawdata[[#This Row],[KDmin]],$J$11=rawdata[[#This Row],[FHq]],rawdata[[#This Row],[FW]]>=rawdata[[#This Row],[FWmin]],rawdata[[#This Row],[FW]]<=rawdata[[#This Row],[FWmax]]),"YES"," - ") -> - | L86: =IF(rawdata[[#This Row],[Fhmatch 1]]="YES",((1-rawdata[[#This Row],[FWmin]]/rawdata[[#This Row],[FW]])+(1-rawdata[[#This Row],[FW]]/rawdata[[#This Row],[FWmax]]))/2,"") ->  | M86: =IF(AND($C$4>=rawdata[[#This Row],[KDmin]],$J$11=rawdata[[#This Row],[FHq]],rawdata[[#This Row],[FW]]/2>=rawdata[[#This Row],[FWmin]],rawdata[[#This Row],[FW]]/2<=rawdata[[#This Row],[FWmax]]),"YES"," - ") -> - | N86: =IFERROR(rawdata[[#This Row],[FWmin]]*2," - ") -> 8.0 | O86: =IFERROR(rawdata[[#This Row],[FWmax]]*2," - ") -> 12.6 | P86: =IF(rawdata[[#This Row],[Fhmatch 2]]="YES",((1-rawdata[[#This Row],[Fwmin 2]]/rawdata[[#This Row],[FW]])+(1-rawdata[[#This Row],[FW]]/rawdata[[#This Row],[FWmax 2]]))/2,"") -> 
B87: Touch opening | C87: 75 | D87: 450 | E87: 192 | F87: D* | G87: =IF(rawdata[[#This Row],[Opening type]]="Standard",$C$10,$C$9) -> 4.39 | H87: 5.0 | I87: 7.6 | J87: 1.11 | K87: =IF(AND($C$4>=rawdata[[#This Row],[KDmin]],$J$11=rawdata[[#This Row],[FHq]],rawdata[[#This Row],[FW]]>=rawdata[[#This Row],[FWmin]],rawdata[[#This Row],[FW]]<=rawdata[[#This Row],[FWmax]]),"YES"," - ") -> - | L87: =IF(rawdata[[#This Row],[Fhmatch 1]]="YES",((1-rawdata[[#This Row],[FWmin]]/rawdata[[#This Row],[FW]])+(1-rawdata[[#This Row],[FW]]/rawdata[[#This Row],[FWmax]]))/2,"") ->  | M87: =IF(AND($C$4>=rawdata[[#This Row],[KDmin]],$J$11=rawdata[[#This Row],[FHq]],rawdata[[#This Row],[FW]]/2>=rawdata[[#This Row],[FWmin]],rawdata[[#This Row],[FW]]/2<=rawdata[[#This Row],[FWmax]]),"YES"," - ") -> - | N87: =IFERROR(rawdata[[#This Row],[FWmin]]*2," - ") -> 10.0 | O87: =IFERROR(rawdata[[#This Row],[FWmax]]*2," - ") -> 15.2 | P87: =IF(rawdata[[#This Row],[Fhmatch 2]]="YES",((1-rawdata[[#This Row],[Fwmin 2]]/rawdata[[#This Row],[FW]])+(1-rawdata[[#This Row],[FW]]/rawdata[[#This Row],[FWmax 2]]))/2,"") -> 
B88: Touch opening | C88: 75 | D88: 500 | E88: 192 | F88: B | G88: =IF(rawdata[[#This Row],[Opening type]]="Standard",$C$10,$C$9) -> 4.39 | H88: 2.2 | I88: 3.5 | J88: 1.00 | K88: =IF(AND($C$4>=rawdata[[#This Row],[KDmin]],$J$11=rawdata[[#This Row],[FHq]],rawdata[[#This Row],[FW]]>=rawdata[[#This Row],[FWmin]],rawdata[[#This Row],[FW]]<=rawdata[[#This Row],[FWmax]]),"YES"," - ") -> - | L88: =IF(rawdata[[#This Row],[Fhmatch 1]]="YES",((1-rawdata[[#This Row],[FWmin]]/rawdata[[#This Row],[FW]])+(1-rawdata[[#This Row],[FW]]/rawdata[[#This Row],[FWmax]]))/2,"") ->  | M88: =IF(AND($C$4>=rawdata[[#This Row],[KDmin]],$J$11=rawdata[[#This Row],[FHq]],rawdata[[#This Row],[FW]]/2>=rawdata[[#This Row],[FWmin]],rawdata[[#This Row],[FW]]/2<=rawdata[[#This Row],[FWmax]]),"YES"," - ") -> - | N88: =IFERROR(rawdata[[#This Row],[FWmin]]*2," - ") -> 4.4 | O88: =IFERROR(rawdata[[#This Row],[FWmax]]*2," - ") -> 7.0 | P88: =IF(rawdata[[#This Row],[Fhmatch 2]]="YES",((1-rawdata[[#This Row],[Fwmin 2]]/rawdata[[#This Row],[FW]])+(1-rawdata[[#This Row],[FW]]/rawdata[[#This Row],[FWmax 2]]))/2,"") -> 
B89: Touch opening | C89: 75 | D89: 500 | E89: 192 | F89: C* | G89: =IF(rawdata[[#This Row],[Opening type]]="Standard",$C$10,$C$9) -> 4.39 | H89: 3.5 | I89: 5.4 | J89: 1.00 | K89: =IF(AND($C$4>=rawdata[[#This Row],[KDmin]],$J$11=rawdata[[#This Row],[FHq]],rawdata[[#This Row],[FW]]>=rawdata[[#This Row],[FWmin]],rawdata[[#This Row],[FW]]<=rawdata[[#This Row],[FWmax]]),"YES"," - ") -> YES | L89: =IF(rawdata[[#This Row],[Fhmatch 1]]="YES",((1-rawdata[[#This Row],[FWmin]]/rawdata[[#This Row],[FW]])+(1-rawdata[[#This Row],[FW]]/rawdata[[#This Row],[FWmax]]))/2,"") -> 19.49% | M89: =IF(AND($C$4>=rawdata[[#This Row],[KDmin]],$J$11=rawdata[[#This Row],[FHq]],rawdata[[#This Row],[FW]]/2>=rawdata[[#This Row],[FWmin]],rawdata[[#This Row],[FW]]/2<=rawdata[[#This Row],[FWmax]]),"YES"," - ") -> - | N89: =IFERROR(rawdata[[#This Row],[FWmin]]*2," - ") -> 7.0 | O89: =IFERROR(rawdata[[#This Row],[FWmax]]*2," - ") -> 10.8 | P89: =IF(rawdata[[#This Row],[Fhmatch 2]]="YES",((1-rawdata[[#This Row],[Fwmin 2]]/rawdata[[#This Row],[FW]])+(1-rawdata[[#This Row],[FW]]/rawdata[[#This Row],[FWmax 2]]))/2,"") -> 
B90: Touch opening | C90: 75 | D90: 500 | E90: 192 | F90: D* | G90: =IF(rawdata[[#This Row],[Opening type]]="Standard",$C$10,$C$9) -> 4.39 | H90: 4.7 | I90: 7.3 | J90: 1.00 | K90: =IF(AND($C$4>=rawdata[[#This Row],[KDmin]],$J$11=rawdata[[#This Row],[FHq]],rawdata[[#This Row],[FW]]>=rawdata[[#This Row],[FWmin]],rawdata[[#This Row],[FW]]<=rawdata[[#This Row],[FWmax]]),"YES"," - ") -> - | L90: =IF(rawdata[[#This Row],[Fhmatch 1]]="YES",((1-rawdata[[#This Row],[FWmin]]/rawdata[[#This Row],[FW]])+(1-rawdata[[#This Row],[FW]]/rawdata[[#This Row],[FWmax]]))/2,"") ->  | M90: =IF(AND($C$4>=rawdata[[#This Row],[KDmin]],$J$11=rawdata[[#This Row],[FHq]],rawdata[[#This Row],[FW]]/2>=rawdata[[#This Row],[FWmin]],rawdata[[#This Row],[FW]]/2<=rawdata[[#This Row],[FWmax]]),"YES"," - ") -> - | N90: =IFERROR(rawdata[[#This Row],[FWmin]]*2," - ") -> 9.4 | O90: =IFERROR(rawdata[[#This Row],[FWmax]]*2," - ") -> 14.6 | P90: =IF(rawdata[[#This Row],[Fhmatch 2]]="YES",((1-rawdata[[#This Row],[Fwmin 2]]/rawdata[[#This Row],[FW]])+(1-rawdata[[#This Row],[FW]]/rawdata[[#This Row],[FWmax 2]]))/2,"") -> 
B91: Touch opening | C91: 75 | D91: 550 | E91: 192 | F91: B | G91: =IF(rawdata[[#This Row],[Opening type]]="Standard",$C$10,$C$9) -> 4.39 | H91: 2.0 | I91: 3.3 | J91: 0.91 | K91: =IF(AND($C$4>=rawdata[[#This Row],[KDmin]],$J$11=rawdata[[#This Row],[FHq]],rawdata[[#This Row],[FW]]>=rawdata[[#This Row],[FWmin]],rawdata[[#This Row],[FW]]<=rawdata[[#This Row],[FWmax]]),"YES"," - ") -> - | L91: =IF(rawdata[[#This Row],[Fhmatch 1]]="YES",((1-rawdata[[#This Row],[FWmin]]/rawdata[[#This Row],[FW]])+(1-rawdata[[#This Row],[FW]]/rawdata[[#This Row],[FWmax]]))/2,"") ->  | M91: =IF(AND($C$4>=rawdata[[#This Row],[KDmin]],$J$11=rawdata[[#This Row],[FHq]],rawdata[[#This Row],[FW]]/2>=rawdata[[#This Row],[FWmin]],rawdata[[#This Row],[FW]]/2<=rawdata[[#This Row],[FWmax]]),"YES"," - ") -> - | N91: =IFERROR(rawdata[[#This Row],[FWmin]]*2," - ") -> 4.0 | O91: =IFERROR(rawdata[[#This Row],[FWmax]]*2," - ") -> 6.6 | P91: =IF(rawdata[[#This Row],[Fhmatch 2]]="YES",((1-rawdata[[#This Row],[Fwmin 2]]/rawdata[[#This Row],[FW]])+(1-rawdata[[#This Row],[FW]]/rawdata[[#This Row],[FWmax 2]]))/2,"") -> 
B92: Touch opening | C92: 75 | D92: 550 | E92: 192 | F92: C | G92: =IF(rawdata[[#This Row],[Opening type]]="Standard",$C$10,$C$9) -> 4.39 | H92: 2.6 | I92: 5.1 | J92: 0.91 | K92: =IF(AND($C$4>=rawdata[[#This Row],[KDmin]],$J$11=rawdata[[#This Row],[FHq]],rawdata[[#This Row],[FW]]>=rawdata[[#This Row],[FWmin]],rawdata[[#This Row],[FW]]<=rawdata[[#This Row],[FWmax]]),"YES"," - ") -> - | L92: =IF(rawdata[[#This Row],[Fhmatch 1]]="YES",((1-rawdata[[#This Row],[FWmin]]/rawdata[[#This Row],[FW]])+(1-rawdata[[#This Row],[FW]]/rawdata[[#This Row],[FWmax]]))/2,"") ->  | M92: =IF(AND($C$4>=rawdata[[#This Row],[KDmin]],$J$11=rawdata[[#This Row],[FHq]],rawdata[[#This Row],[FW]]/2>=rawdata[[#This Row],[FWmin]],rawdata[[#This Row],[FW]]/2<=rawdata[[#This Row],[FWmax]]),"YES"," - ") -> - | N92: =IFERROR(rawdata[[#This Row],[FWmin]]*2," - ") -> 5.2 | O92: =IFERROR(rawdata[[#This Row],[FWmax]]*2," - ") -> 10.2 | P92: =IF(rawdata[[#This Row],[Fhmatch 2]]="YES",((1-rawdata[[#This Row],[Fwmin 2]]/rawdata[[#This Row],[FW]])+(1-rawdata[[#This Row],[FW]]/rawdata[[#This Row],[FWmax 2]]))/2,"") -> 
B93: Touch opening | C93: 75 | D93: 550 | E93: 192 | F93: D | G93: =IF(rawdata[[#This Row],[Opening type]]="Standard",$C$10,$C$9) -> 4.39 | H93: 4.0 | I93: 6.9 | J93: 0.91 | K93: =IF(AND($C$4>=rawdata[[#This Row],[KDmin]],$J$11=rawdata[[#This Row],[FHq]],rawdata[[#This Row],[FW]]>=rawdata[[#This Row],[FWmin]],rawdata[[#This Row],[FW]]<=rawdata[[#This Row],[FWmax]]),"YES"," - ") -> - | L93: =IF(rawdata[[#This Row],[Fhmatch 1]]="YES",((1-rawdata[[#This Row],[FWmin]]/rawdata[[#This Row],[FW]])+(1-rawdata[[#This Row],[FW]]/rawdata[[#This Row],[FWmax]]))/2,"") ->  | M93: =IF(AND($C$4>=rawdata[[#This Row],[KDmin]],$J$11=rawdata[[#This Row],[FHq]],rawdata[[#This Row],[FW]]/2>=rawdata[[#This Row],[FWmin]],rawdata[[#This Row],[FW]]/2<=rawdata[[#This Row],[FWmax]]),"YES"," - ") -> - | N93: =IFERROR(rawdata[[#This Row],[FWmin]]*2," - ") -> 8.0 | O93: =IFERROR(rawdata[[#This Row],[FWmax]]*2," - ") -> 13.8 | P93: =IF(rawdata[[#This Row],[Fhmatch 2]]="YES",((1-rawdata[[#This Row],[Fwmin 2]]/rawdata[[#This Row],[FW]])+(1-rawdata[[#This Row],[FW]]/rawdata[[#This Row],[FWmax 2]]))/2,"") -> 
B94: Touch opening | C94: 75 | D94: 600 | E94: 192 | F94: B | G94: =IF(rawdata[[#This Row],[Opening type]]="Standard",$C$10,$C$9) -> 4.39 | H94: - | I94: - | J94: 0.83 | K94: =IF(AND($C$4>=rawdata[[#This Row],[KDmin]],$J$11=rawdata[[#This Row],[FHq]],rawdata[[#This Row],[FW]]>=rawdata[[#This Row],[FWmin]],rawdata[[#This Row],[FW]]<=rawdata[[#This Row],[FWmax]]),"YES"," - ") -> - | L94: =IF(rawdata[[#This Row],[Fhmatch 1]]="YES",((1-rawdata[[#This Row],[FWmin]]/rawdata[[#This Row],[FW]])+(1-rawdata[[#This Row],[FW]]/rawdata[[#This Row],[FWmax]]))/2,"") ->  | M94: =IF(AND($C$4>=rawdata[[#This Row],[KDmin]],$J$11=rawdata[[#This Row],[FHq]],rawdata[[#This Row],[FW]]/2>=rawdata[[#This Row],[FWmin]],rawdata[[#This Row],[FW]]/2<=rawdata[[#This Row],[FWmax]]),"YES"," - ") -> - | N94: =IFERROR(rawdata[[#This Row],[FWmin]]*2," - ") -> - | O94: =IFERROR(rawdata[[#This Row],[FWmax]]*2," - ") -> - | P94: =IF(rawdata[[#This Row],[Fhmatch 2]]="YES",((1-rawdata[[#This Row],[Fwmin 2]]/rawdata[[#This Row],[FW]])+(1-rawdata[[#This Row],[FW]]/rawdata[[#This Row],[FWmax 2]]))/2,"") -> 
B95: Touch opening | C95: 75 | D95: 600 | E95: 192 | F95: C | G95: =IF(rawdata[[#This Row],[Opening type]]="Standard",$C$10,$C$9) -> 4.39 | H95: 2.6 | I95: 4.7 | J95: 0.83 | K95: =IF(AND($C$4>=rawdata[[#This Row],[KDmin]],$J$11=rawdata[[#This Row],[FHq]],rawdata[[#This Row],[FW]]>=rawdata[[#This Row],[FWmin]],rawdata[[#This Row],[FW]]<=rawdata[[#This Row],[FWmax]]),"YES"," - ") -> - | L95: =IF(rawdata[[#This Row],[Fhmatch 1]]="YES",((1-rawdata[[#This Row],[FWmin]]/rawdata[[#This Row],[FW]])+(1-rawdata[[#This Row],[FW]]/rawdata[[#This Row],[FWmax]]))/2,"") ->  | M95: =IF(AND($C$4>=rawdata[[#This Row],[KDmin]],$J$11=rawdata[[#This Row],[FHq]],rawdata[[#This Row],[FW]]/2>=rawdata[[#This Row],[FWmin]],rawdata[[#This Row],[FW]]/2<=rawdata[[#This Row],[FWmax]]),"YES"," - ") -> - | N95: =IFERROR(rawdata[[#This Row],[FWmin]]*2," - ") -> 5.2 | O95: =IFERROR(rawdata[[#This Row],[FWmax]]*2," - ") -> 9.4 | P95: =IF(rawdata[[#This Row],[Fhmatch 2]]="YES",((1-rawdata[[#This Row],[Fwmin 2]]/rawdata[[#This Row],[FW]])+(1-rawdata[[#This Row],[FW]]/rawdata[[#This Row],[FWmax 2]]))/2,"") -> 
B96: Touch opening | C96: 75 | D96: 600 | E96: 192 | F96: D | G96: =IF(rawdata[[#This Row],[Opening type]]="Standard",$C$10,$C$9) -> 4.39 | H96: 3.6 | I96: 6.3 | J96: 0.83 | K96: =IF(AND($C$4>=rawdata[[#This Row],[KDmin]],$J$11=rawdata[[#This Row],[FHq]],rawdata[[#This Row],[FW]]>=rawdata[[#This Row],[FWmin]],rawdata[[#This Row],[FW]]<=rawdata[[#This Row],[FWmax]]),"YES"," - ") -> - | L96: =IF(rawdata[[#This Row],[Fhmatch 1]]="YES",((1-rawdata[[#This Row],[FWmin]]/rawdata[[#This Row],[FW]])+(1-rawdata[[#This Row],[FW]]/rawdata[[#This Row],[FWmax]]))/2,"") ->  | M96: =IF(AND($C$4>=rawdata[[#This Row],[KDmin]],$J$11=rawdata[[#This Row],[FHq]],rawdata[[#This Row],[FW]]/2>=rawdata[[#This Row],[FWmin]],rawdata[[#This Row],[FW]]/2<=rawdata[[#This Row],[FWmax]]),"YES"," - ") -> - | N96: =IFERROR(rawdata[[#This Row],[FWmin]]*2," - ") -> 7.2 | O96: =IFERROR(rawdata[[#This Row],[FWmax]]*2," - ") -> 12.6 | P96: =IF(rawdata[[#This Row],[Fhmatch 2]]="YES",((1-rawdata[[#This Row],[Fwmin 2]]/rawdata[[#This Row],[FW]])+(1-rawdata[[#This Row],[FW]]/rawdata[[#This Row],[FWmax 2]]))/2,"") -> 
B97: Touch opening | C97: 90 | D97: 350 | E97: 191 | F97: B | G97: =IF(rawdata[[#This Row],[Opening type]]="Standard",$C$10,$C$9) -> 4.39 | H97: 2.4 | I97: 4.2 | J97: 1.43 | K97: =IF(AND($C$4>=rawdata[[#This Row],[KDmin]],$J$11=rawdata[[#This Row],[FHq]],rawdata[[#This Row],[FW]]>=rawdata[[#This Row],[FWmin]],rawdata[[#This Row],[FW]]<=rawdata[[#This Row],[FWmax]]),"YES"," - ") -> - | L97: =IF(rawdata[[#This Row],[Fhmatch 1]]="YES",((1-rawdata[[#This Row],[FWmin]]/rawdata[[#This Row],[FW]])+(1-rawdata[[#This Row],[FW]]/rawdata[[#This Row],[FWmax]]))/2,"") ->  | M97: =IF(AND($C$4>=rawdata[[#This Row],[KDmin]],$J$11=rawdata[[#This Row],[FHq]],rawdata[[#This Row],[FW]]/2>=rawdata[[#This Row],[FWmin]],rawdata[[#This Row],[FW]]/2<=rawdata[[#This Row],[FWmax]]),"YES"," - ") -> - | N97: =IFERROR(rawdata[[#This Row],[FWmin]]*2," - ") -> 4.8 | O97: =IFERROR(rawdata[[#This Row],[FWmax]]*2," - ") -> 8.4 | P97: =IF(rawdata[[#This Row],[Fhmatch 2]]="YES",((1-rawdata[[#This Row],[Fwmin 2]]/rawdata[[#This Row],[FW]])+(1-rawdata[[#This Row],[FW]]/rawdata[[#This Row],[FWmax 2]]))/2,"") -> 
B98: Touch opening | C98: 90 | D98: 350 | E98: 191 | F98: C* | G98: =IF(rawdata[[#This Row],[Opening type]]="Standard",$C$10,$C$9) -> 4.39 | H98: 3.4 | I98: 5.2 | J98: 1.43 | K98: =IF(AND($C$4>=rawdata[[#This Row],[KDmin]],$J$11=rawdata[[#This Row],[FHq]],rawdata[[#This Row],[FW]]>=rawdata[[#This Row],[FWmin]],rawdata[[#This Row],[FW]]<=rawdata[[#This Row],[FWmax]]),"YES"," - ") -> - | L98: =IF(rawdata[[#This Row],[Fhmatch 1]]="YES",((1-rawdata[[#This Row],[FWmin]]/rawdata[[#This Row],[FW]])+(1-rawdata[[#This Row],[FW]]/rawdata[[#This Row],[FWmax]]))/2,"") ->  | M98: =IF(AND($C$4>=rawdata[[#This Row],[KDmin]],$J$11=rawdata[[#This Row],[FHq]],rawdata[[#This Row],[FW]]/2>=rawdata[[#This Row],[FWmin]],rawdata[[#This Row],[FW]]/2<=rawdata[[#This Row],[FWmax]]),"YES"," - ") -> - | N98: =IFERROR(rawdata[[#This Row],[FWmin]]*2," - ") -> 6.8 | O98: =IFERROR(rawdata[[#This Row],[FWmax]]*2," - ") -> 10.4 | P98: =IF(rawdata[[#This Row],[Fhmatch 2]]="YES",((1-rawdata[[#This Row],[Fwmin 2]]/rawdata[[#This Row],[FW]])+(1-rawdata[[#This Row],[FW]]/rawdata[[#This Row],[FWmax 2]]))/2,"") -> 
B99: Touch opening | C99: 90 | D99: 350 | E99: 191 | F99: D* | G99: =IF(rawdata[[#This Row],[Opening type]]="Standard",$C$10,$C$9) -> 4.39 | H99: 4.7 | I99: 6.9 | J99: 1.43 | K99: =IF(AND($C$4>=rawdata[[#This Row],[KDmin]],$J$11=rawdata[[#This Row],[FHq]],rawdata[[#This Row],[FW]]>=rawdata[[#This Row],[FWmin]],rawdata[[#This Row],[FW]]<=rawdata[[#This Row],[FWmax]]),"YES"," - ") -> - | L99: =IF(rawdata[[#This Row],[Fhmatch 1]]="YES",((1-rawdata[[#This Row],[FWmin]]/rawdata[[#This Row],[FW]])+(1-rawdata[[#This Row],[FW]]/rawdata[[#This Row],[FWmax]]))/2,"") ->  | M99: =IF(AND($C$4>=rawdata[[#This Row],[KDmin]],$J$11=rawdata[[#This Row],[FHq]],rawdata[[#This Row],[FW]]/2>=rawdata[[#This Row],[FWmin]],rawdata[[#This Row],[FW]]/2<=rawdata[[#This Row],[FWmax]]),"YES"," - ") -> - | N99: =IFERROR(rawdata[[#This Row],[FWmin]]*2," - ") -> 9.4 | O99: =IFERROR(rawdata[[#This Row],[FWmax]]*2," - ") -> 13.8 | P99: =IF(rawdata[[#This Row],[Fhmatch 2]]="YES",((1-rawdata[[#This Row],[Fwmin 2]]/rawdata[[#This Row],[FW]])+(1-rawdata[[#This Row],[FW]]/rawdata[[#This Row],[FWmax 2]]))/2,"") -> 
B100: Touch opening | C100: 90 | D100: 400 | E100: 191 | F100: B | G100: =IF(rawdata[[#This Row],[Opening type]]="Standard",$C$10,$C$9) -> 4.39 | H100: 1.5 | I100: 3.2 | J100: 1.25 | K100: =IF(AND($C$4>=rawdata[[#This Row],[KDmin]],$J$11=rawdata[[#This Row],[FHq]],rawdata[[#This Row],[FW]]>=rawdata[[#This Row],[FWmin]],rawdata[[#This Row],[FW]]<=rawdata[[#This Row],[FWmax]]),"YES"," - ") -> - | L100: =IF(rawdata[[#This Row],[Fhmatch 1]]="YES",((1-rawdata[[#This Row],[FWmin]]/rawdata[[#This Row],[FW]])+(1-rawdata[[#This Row],[FW]]/rawdata[[#This Row],[FWmax]]))/2,"") ->  | M100: =IF(AND($C$4>=rawdata[[#This Row],[KDmin]],$J$11=rawdata[[#This Row],[FHq]],rawdata[[#This Row],[FW]]/2>=rawdata[[#This Row],[FWmin]],rawdata[[#This Row],[FW]]/2<=rawdata[[#This Row],[FWmax]]),"YES"," - ") -> - | N100: =IFERROR(rawdata[[#This Row],[FWmin]]*2," - ") -> 3.0 | O100: =IFERROR(rawdata[[#This Row],[FWmax]]*2," - ") -> 6.4 | P100: =IF(rawdata[[#This Row],[Fhmatch 2]]="YES",((1-rawdata[[#This Row],[Fwmin 2]]/rawdata[[#This Row],[FW]])+(1-rawdata[[#This Row],[FW]]/rawdata[[#This Row],[FWmax 2]]))/2,"") -> 
B101: Touch opening | C101: 90 | D101: 400 | E101: 191 | F101: C* | G101: =IF(rawdata[[#This Row],[Opening type]]="Standard",$C$10,$C$9) -> 4.39 | H101: 3.1 | I101: 4.9 | J101: 1.25 | K101: =IF(AND($C$4>=rawdata[[#This Row],[KDmin]],$J$11=rawdata[[#This Row],[FHq]],rawdata[[#This Row],[FW]]>=rawdata[[#This Row],[FWmin]],rawdata[[#This Row],[FW]]<=rawdata[[#This Row],[FWmax]]),"YES"," - ") -> - | L101: =IF(rawdata[[#This Row],[Fhmatch 1]]="YES",((1-rawdata[[#This Row],[FWmin]]/rawdata[[#This Row],[FW]])+(1-rawdata[[#This Row],[FW]]/rawdata[[#This Row],[FWmax]]))/2,"") ->  | M101: =IF(AND($C$4>=rawdata[[#This Row],[KDmin]],$J$11=rawdata[[#This Row],[FHq]],rawdata[[#This Row],[FW]]/2>=rawdata[[#This Row],[FWmin]],rawdata[[#This Row],[FW]]/2<=rawdata[[#This Row],[FWmax]]),"YES"," - ") -> - | N101: =IFERROR(rawdata[[#This Row],[FWmin]]*2," - ") -> 6.2 | O101: =IFERROR(rawdata[[#This Row],[FWmax]]*2," - ") -> 9.8 | P101: =IF(rawdata[[#This Row],[Fhmatch 2]]="YES",((1-rawdata[[#This Row],[Fwmin 2]]/rawdata[[#This Row],[FW]])+(1-rawdata[[#This Row],[FW]]/rawdata[[#This Row],[FWmax 2]]))/2,"") -> 
B102: Touch opening | C102: 90 | D102: 400 | E102: 191 | F102: D* | G102: =IF(rawdata[[#This Row],[Opening type]]="Standard",$C$10,$C$9) -> 4.39 | H102: 3.9 | I102: 5.6 | J102: 1.25 | K102: =IF(AND($C$4>=rawdata[[#This Row],[KDmin]],$J$11=rawdata[[#This Row],[FHq]],rawdata[[#This Row],[FW]]>=rawdata[[#This Row],[FWmin]],rawdata[[#This Row],[FW]]<=rawdata[[#This Row],[FWmax]]),"YES"," - ") -> - | L102: =IF(rawdata[[#This Row],[Fhmatch 1]]="YES",((1-rawdata[[#This Row],[FWmin]]/rawdata[[#This Row],[FW]])+(1-rawdata[[#This Row],[FW]]/rawdata[[#This Row],[FWmax]]))/2,"") ->  | M102: =IF(AND($C$4>=rawdata[[#This Row],[KDmin]],$J$11=rawdata[[#This Row],[FHq]],rawdata[[#This Row],[FW]]/2>=rawdata[[#This Row],[FWmin]],rawdata[[#This Row],[FW]]/2<=rawdata[[#This Row],[FWmax]]),"YES"," - ") -> - | N102: =IFERROR(rawdata[[#This Row],[FWmin]]*2," - ") -> 7.8 | O102: =IFERROR(rawdata[[#This Row],[FWmax]]*2," - ") -> 11.2 | P102: =IF(rawdata[[#This Row],[Fhmatch 2]]="YES",((1-rawdata[[#This Row],[Fwmin 2]]/rawdata[[#This Row],[FW]])+(1-rawdata[[#This Row],[FW]]/rawdata[[#This Row],[FWmax 2]]))/2,"") -> 
B103: Touch opening | C103: 90 | D103: 450 | E103: 191 | F103: B | G103: =IF(rawdata[[#This Row],[Opening type]]="Standard",$C$10,$C$9) -> 4.39 | H103: 1.5 | I103: 2.6 | J103: 1.11 | K103: =IF(AND($C$4>=rawdata[[#This Row],[KDmin]],$J$11=rawdata[[#This Row],[FHq]],rawdata[[#This Row],[FW]]>=rawdata[[#This Row],[FWmin]],rawdata[[#This Row],[FW]]<=rawdata[[#This Row],[FWmax]]),"YES"," - ") -> - | L103: =IF(rawdata[[#This Row],[Fhmatch 1]]="YES",((1-rawdata[[#This Row],[FWmin]]/rawdata[[#This Row],[FW]])+(1-rawdata[[#This Row],[FW]]/rawdata[[#This Row],[FWmax]]))/2,"") ->  | M103: =IF(AND($C$4>=rawdata[[#This Row],[KDmin]],$J$11=rawdata[[#This Row],[FHq]],rawdata[[#This Row],[FW]]/2>=rawdata[[#This Row],[FWmin]],rawdata[[#This Row],[FW]]/2<=rawdata[[#This Row],[FWmax]]),"YES"," - ") -> - | N103: =IFERROR(rawdata[[#This Row],[FWmin]]*2," - ") -> 3.0 | O103: =IFERROR(rawdata[[#This Row],[FWmax]]*2," - ") -> 5.2 | P103: =IF(rawdata[[#This Row],[Fhmatch 2]]="YES",((1-rawdata[[#This Row],[Fwmin 2]]/rawdata[[#This Row],[FW]])+(1-rawdata[[#This Row],[FW]]/rawdata[[#This Row],[FWmax 2]]))/2,"") -> 
B104: Touch opening | C104: 90 | D104: 450 | E104: 191 | F104: C* | G104: =IF(rawdata[[#This Row],[Opening type]]="Standard",$C$10,$C$9) -> 4.39 | H104: 2.6 | I104: 4.2 | J104: 1.11 | K104: =IF(AND($C$4>=rawdata[[#This Row],[KDmin]],$J$11=rawdata[[#This Row],[FHq]],rawdata[[#This Row],[FW]]>=rawdata[[#This Row],[FWmin]],rawdata[[#This Row],[FW]]<=rawdata[[#This Row],[FWmax]]),"YES"," - ") -> - | L104: =IF(rawdata[[#This Row],[Fhmatch 1]]="YES",((1-rawdata[[#This Row],[FWmin]]/rawdata[[#This Row],[FW]])+(1-rawdata[[#This Row],[FW]]/rawdata[[#This Row],[FWmax]]))/2,"") ->  | M104: =IF(AND($C$4>=rawdata[[#This Row],[KDmin]],$J$11=rawdata[[#This Row],[FHq]],rawdata[[#This Row],[FW]]/2>=rawdata[[#This Row],[FWmin]],rawdata[[#This Row],[FW]]/2<=rawdata[[#This Row],[FWmax]]),"YES"," - ") -> - | N104: =IFERROR(rawdata[[#This Row],[FWmin]]*2," - ") -> 5.2 | O104: =IFERROR(rawdata[[#This Row],[FWmax]]*2," - ") -> 8.4 | P104: =IF(rawdata[[#This Row],[Fhmatch 2]]="YES",((1-rawdata[[#This Row],[Fwmin 2]]/rawdata[[#This Row],[FW]])+(1-rawdata[[#This Row],[FW]]/rawdata[[#This Row],[FWmax 2]]))/2,"") -> 
B105: Touch opening | C105: 90 | D105: 450 | E105: 191 | F105: D* | G105: =IF(rawdata[[#This Row],[Opening type]]="Standard",$C$10,$C$9) -> 4.39 | H105: 3.6 | I105: 5.4 | J105: 1.11 | K105: =IF(AND($C$4>=rawdata[[#This Row],[KDmin]],$J$11=rawdata[[#This Row],[FHq]],rawdata[[#This Row],[FW]]>=rawdata[[#This Row],[FWmin]],rawdata[[#This Row],[FW]]<=rawdata[[#This Row],[FWmax]]),"YES"," - ") -> - | L105: =IF(rawdata[[#This Row],[Fhmatch 1]]="YES",((1-rawdata[[#This Row],[FWmin]]/rawdata[[#This Row],[FW]])+(1-rawdata[[#This Row],[FW]]/rawdata[[#This Row],[FWmax]]))/2,"") ->  | M105: =IF(AND($C$4>=rawdata[[#This Row],[KDmin]],$J$11=rawdata[[#This Row],[FHq]],rawdata[[#This Row],[FW]]/2>=rawdata[[#This Row],[FWmin]],rawdata[[#This Row],[FW]]/2<=rawdata[[#This Row],[FWmax]]),"YES"," - ") -> - | N105: =IFERROR(rawdata[[#This Row],[FWmin]]*2," - ") -> 7.2 | O105: =IFERROR(rawdata[[#This Row],[FWmax]]*2," - ") -> 10.8 | P105: =IF(rawdata[[#This Row],[Fhmatch 2]]="YES",((1-rawdata[[#This Row],[Fwmin 2]]/rawdata[[#This Row],[FW]])+(1-rawdata[[#This Row],[FW]]/rawdata[[#This Row],[FWmax 2]]))/2,"") -> 
B106: Touch opening | C106: 90 | D106: 500 | E106: 191 | F106: B | G106: =IF(rawdata[[#This Row],[Opening type]]="Standard",$C$10,$C$9) -> 4.39 | H106: 1.4 | I106: 2.4 | J106: 1.00 | K106: =IF(AND($C$4>=rawdata[[#This Row],[KDmin]],$J$11=rawdata[[#This Row],[FHq]],rawdata[[#This Row],[FW]]>=rawdata[[#This Row],[FWmin]],rawdata[[#This Row],[FW]]<=rawdata[[#This Row],[FWmax]]),"YES"," - ") -> - | L106: =IF(rawdata[[#This Row],[Fhmatch 1]]="YES",((1-rawdata[[#This Row],[FWmin]]/rawdata[[#This Row],[FW]])+(1-rawdata[[#This Row],[FW]]/rawdata[[#This Row],[FWmax]]))/2,"") ->  | M106: =IF(AND($C$4>=rawdata[[#This Row],[KDmin]],$J$11=rawdata[[#This Row],[FHq]],rawdata[[#This Row],[FW]]/2>=rawdata[[#This Row],[FWmin]],rawdata[[#This Row],[FW]]/2<=rawdata[[#This Row],[FWmax]]),"YES"," - ") -> YES | N106: =IFERROR(rawdata[[#This Row],[FWmin]]*2," - ") -> 2.8 | O106: =IFERROR(rawdata[[#This Row],[FWmax]]*2," - ") -> 4.8 | P106: =IF(rawdata[[#This Row],[Fhmatch 2]]="YES",((1-rawdata[[#This Row],[Fwmin 2]]/rawdata[[#This Row],[FW]])+(1-rawdata[[#This Row],[FW]]/rawdata[[#This Row],[FWmax 2]]))/2,"") -> 22.38%
B107: Touch opening | C107: 90 | D107: 500 | E107: 191 | F107: C | G107: =IF(rawdata[[#This Row],[Opening type]]="Standard",$C$10,$C$9) -> 4.39 | H107: 2.4 | I107: 3.6 | J107: 1.00 | K107: =IF(AND($C$4>=rawdata[[#This Row],[KDmin]],$J$11=rawdata[[#This Row],[FHq]],rawdata[[#This Row],[FW]]>=rawdata[[#This Row],[FWmin]],rawdata[[#This Row],[FW]]<=rawdata[[#This Row],[FWmax]]),"YES"," - ") -> - | L107: =IF(rawdata[[#This Row],[Fhmatch 1]]="YES",((1-rawdata[[#This Row],[FWmin]]/rawdata[[#This Row],[FW]])+(1-rawdata[[#This Row],[FW]]/rawdata[[#This Row],[FWmax]]))/2,"") ->  | M107: =IF(AND($C$4>=rawdata[[#This Row],[KDmin]],$J$11=rawdata[[#This Row],[FHq]],rawdata[[#This Row],[FW]]/2>=rawdata[[#This Row],[FWmin]],rawdata[[#This Row],[FW]]/2<=rawdata[[#This Row],[FWmax]]),"YES"," - ") -> - | N107: =IFERROR(rawdata[[#This Row],[FWmin]]*2," - ") -> 4.8 | O107: =IFERROR(rawdata[[#This Row],[FWmax]]*2," - ") -> 7.2 | P107: =IF(rawdata[[#This Row],[Fhmatch 2]]="YES",((1-rawdata[[#This Row],[Fwmin 2]]/rawdata[[#This Row],[FW]])+(1-rawdata[[#This Row],[FW]]/rawdata[[#This Row],[FWmax 2]]))/2,"") -> 
B108: Touch opening | C108: 90 | D108: 500 | E108: 191 | F108: D | G108: =IF(rawdata[[#This Row],[Opening type]]="Standard",$C$10,$C$9) -> 4.39 | H108: 3.4 | I108: 5.0 | J108: 1.00 | K108: =IF(AND($C$4>=rawdata[[#This Row],[KDmin]],$J$11=rawdata[[#This Row],[FHq]],rawdata[[#This Row],[FW]]>=rawdata[[#This Row],[FWmin]],rawdata[[#This Row],[FW]]<=rawdata[[#This Row],[FWmax]]),"YES"," - ") -> YES | L108: =IF(rawdata[[#This Row],[Fhmatch 1]]="YES",((1-rawdata[[#This Row],[FWmin]]/rawdata[[#This Row],[FW]])+(1-rawdata[[#This Row],[FW]]/rawdata[[#This Row],[FWmax]]))/2,"") -> 17.38% | M108: =IF(AND($C$4>=rawdata[[#This Row],[KDmin]],$J$11=rawdata[[#This Row],[FHq]],rawdata[[#This Row],[FW]]/2>=rawdata[[#This Row],[FWmin]],rawdata[[#This Row],[FW]]/2<=rawdata[[#This Row],[FWmax]]),"YES"," - ") -> - | N108: =IFERROR(rawdata[[#This Row],[FWmin]]*2," - ") -> 6.8 | O108: =IFERROR(rawdata[[#This Row],[FWmax]]*2," - ") -> 10.0 | P108: =IF(rawdata[[#This Row],[Fhmatch 2]]="YES",((1-rawdata[[#This Row],[Fwmin 2]]/rawdata[[#This Row],[FW]])+(1-rawdata[[#This Row],[FW]]/rawdata[[#This Row],[FWmax 2]]))/2,"") -> 
B109: Touch opening | C109: 90 | D109: 550 | E109: 191 | F109: B | G109: =IF(rawdata[[#This Row],[Opening type]]="Standard",$C$10,$C$9) -> 4.39 | H109: 1.3 | I109: 2.1 | J109: =$C$2/D109 -> 0.91 | K109: =IF(AND($C$4>=rawdata[[#This Row],[KDmin]],$J$11=rawdata[[#This Row],[FHq]],rawdata[[#This Row],[FW]]>=rawdata[[#This Row],[FWmin]],rawdata[[#This Row],[FW]]<=rawdata[[#This Row],[FWmax]]),"YES"," - ") -> - | L109: =IF(rawdata[[#This Row],[Fhmatch 1]]="YES",((1-rawdata[[#This Row],[FWmin]]/rawdata[[#This Row],[FW]])+(1-rawdata[[#This Row],[FW]]/rawdata[[#This Row],[FWmax]]))/2,"") ->  | M109: =IF(AND($C$4>=rawdata[[#This Row],[KDmin]],$J$11=rawdata[[#This Row],[FHq]],rawdata[[#This Row],[FW]]/2>=rawdata[[#This Row],[FWmin]],rawdata[[#This Row],[FW]]/2<=rawdata[[#This Row],[FWmax]]),"YES"," - ") -> - | N109: =IFERROR(rawdata[[#This Row],[FWmin]]*2," - ") -> 2.6 | O109: =IFERROR(rawdata[[#This Row],[FWmax]]*2," - ") -> 4.2 | P109: =IF(rawdata[[#This Row],[Fhmatch 2]]="YES",((1-rawdata[[#This Row],[Fwmin 2]]/rawdata[[#This Row],[FW]])+(1-rawdata[[#This Row],[FW]]/rawdata[[#This Row],[FWmax 2]]))/2,"") -> 
B110: Touch opening | C110: 90 | D110: 550 | E110: 191 | F110: C | G110: =IF(rawdata[[#This Row],[Opening type]]="Standard",$C$10,$C$9) -> 4.39 | H110: 1.9 | I110: 3.2 | J110: 0.91 | K110: =IF(AND($C$4>=rawdata[[#This Row],[KDmin]],$J$11=rawdata[[#This Row],[FHq]],rawdata[[#This Row],[FW]]>=rawdata[[#This Row],[FWmin]],rawdata[[#This Row],[FW]]<=rawdata[[#This Row],[FWmax]]),"YES"," - ") -> - | L110: =IF(rawdata[[#This Row],[Fhmatch 1]]="YES",((1-rawdata[[#This Row],[FWmin]]/rawdata[[#This Row],[FW]])+(1-rawdata[[#This Row],[FW]]/rawdata[[#This Row],[FWmax]]))/2,"") ->  | M110: =IF(AND($C$4>=rawdata[[#This Row],[KDmin]],$J$11=rawdata[[#This Row],[FHq]],rawdata[[#This Row],[FW]]/2>=rawdata[[#This Row],[FWmin]],rawdata[[#This Row],[FW]]/2<=rawdata[[#This Row],[FWmax]]),"YES"," - ") -> - | N110: =IFERROR(rawdata[[#This Row],[FWmin]]*2," - ") -> 3.8 | O110: =IFERROR(rawdata[[#This Row],[FWmax]]*2," - ") -> 6.4 | P110: =IF(rawdata[[#This Row],[Fhmatch 2]]="YES",((1-rawdata[[#This Row],[Fwmin 2]]/rawdata[[#This Row],[FW]])+(1-rawdata[[#This Row],[FW]]/rawdata[[#This Row],[FWmax 2]]))/2,"") -> 
B111: Touch opening | C111: 90 | D111: 550 | E111: 191 | F111: D | G111: =IF(rawdata[[#This Row],[Opening type]]="Standard",$C$10,$C$9) -> 4.39 | H111: 2.6 | I111: 4.6 | J111: 0.91 | K111: =IF(AND($C$4>=rawdata[[#This Row],[KDmin]],$J$11=rawdata[[#This Row],[FHq]],rawdata[[#This Row],[FW]]>=rawdata[[#This Row],[FWmin]],rawdata[[#This Row],[FW]]<=rawdata[[#This Row],[FWmax]]),"YES"," - ") -> - | L111: =IF(rawdata[[#This Row],[Fhmatch 1]]="YES",((1-rawdata[[#This Row],[FWmin]]/rawdata[[#This Row],[FW]])+(1-rawdata[[#This Row],[FW]]/rawdata[[#This Row],[FWmax]]))/2,"") ->  | M111: =IF(AND($C$4>=rawdata[[#This Row],[KDmin]],$J$11=rawdata[[#This Row],[FHq]],rawdata[[#This Row],[FW]]/2>=rawdata[[#This Row],[FWmin]],rawdata[[#This Row],[FW]]/2<=rawdata[[#This Row],[FWmax]]),"YES"," - ") -> - | N111: =IFERROR(rawdata[[#This Row],[FWmin]]*2," - ") -> 5.2 | O111: =IFERROR(rawdata[[#This Row],[FWmax]]*2," - ") -> 9.2 | P111: =IF(rawdata[[#This Row],[Fhmatch 2]]="YES",((1-rawdata[[#This Row],[Fwmin 2]]/rawdata[[#This Row],[FW]])+(1-rawdata[[#This Row],[FW]]/rawdata[[#This Row],[FWmax 2]]))/2,"") -> 
B112: Touch opening | C112: 90 | D112: 600 | E112: 191 | F112: B | G112: =IF(rawdata[[#This Row],[Opening type]]="Standard",$C$10,$C$9) -> 4.39 | H112: 1.3 | I112: 1.9 | J112: 0.83 | K112: =IF(AND($C$4>=rawdata[[#This Row],[KDmin]],$J$11=rawdata[[#This Row],[FHq]],rawdata[[#This Row],[FW]]>=rawdata[[#This Row],[FWmin]],rawdata[[#This Row],[FW]]<=rawdata[[#This Row],[FWmax]]),"YES"," - ") -> - | L112: =IF(rawdata[[#This Row],[Fhmatch 1]]="YES",((1-rawdata[[#This Row],[FWmin]]/rawdata[[#This Row],[FW]])+(1-rawdata[[#This Row],[FW]]/rawdata[[#This Row],[FWmax]]))/2,"") ->  | M112: =IF(AND($C$4>=rawdata[[#This Row],[KDmin]],$J$11=rawdata[[#This Row],[FHq]],rawdata[[#This Row],[FW]]/2>=rawdata[[#This Row],[FWmin]],rawdata[[#This Row],[FW]]/2<=rawdata[[#This Row],[FWmax]]),"YES"," - ") -> - | N112: =IFERROR(rawdata[[#This Row],[FWmin]]*2," - ") -> 2.6 | O112: =IFERROR(rawdata[[#This Row],[FWmax]]*2," - ") -> 3.8 | P112: =IF(rawdata[[#This Row],[Fhmatch 2]]="YES",((1-rawdata[[#This Row],[Fwmin 2]]/rawdata[[#This Row],[FW]])+(1-rawdata[[#This Row],[FW]]/rawdata[[#This Row],[FWmax 2]]))/2,"") -> 
B113: Touch opening | C113: 90 | D113: 600 | E113: 191 | F113: C | G113: =IF(rawdata[[#This Row],[Opening type]]="Standard",$C$10,$C$9) -> 4.39 | H113: 1.8 | I113: 3.1 | J113: 0.83 | K113: =IF(AND($C$4>=rawdata[[#This Row],[KDmin]],$J$11=rawdata[[#This Row],[FHq]],rawdata[[#This Row],[FW]]>=rawdata[[#This Row],[FWmin]],rawdata[[#This Row],[FW]]<=rawdata[[#This Row],[FWmax]]),"YES"," - ") -> - | L113: =IF(rawdata[[#This Row],[Fhmatch 1]]="YES",((1-rawdata[[#This Row],[FWmin]]/rawdata[[#This Row],[FW]])+(1-rawdata[[#This Row],[FW]]/rawdata[[#This Row],[FWmax]]))/2,"") ->  | M113: =IF(AND($C$4>=rawdata[[#This Row],[KDmin]],$J$11=rawdata[[#This Row],[FHq]],rawdata[[#This Row],[FW]]/2>=rawdata[[#This Row],[FWmin]],rawdata[[#This Row],[FW]]/2<=rawdata[[#This Row],[FWmax]]),"YES"," - ") -> - | N113: =IFERROR(rawdata[[#This Row],[FWmin]]*2," - ") -> 3.6 | O113: =IFERROR(rawdata[[#This Row],[FWmax]]*2," - ") -> 6.2 | P113: =IF(rawdata[[#This Row],[Fhmatch 2]]="YES",((1-rawdata[[#This Row],[Fwmin 2]]/rawdata[[#This Row],[FW]])+(1-rawdata[[#This Row],[FW]]/rawdata[[#This Row],[FWmax 2]]))/2,"") -> 
B114: Touch opening | C114: 90 | D114: 600 | E114: 191 | F114: D | G114: =IF(rawdata[[#This Row],[Opening type]]="Standard",$C$10,$C$9) -> 4.39 | H114: - | I114: - | J114: 0.83 | K114: =IF(AND($C$4>=rawdata[[#This Row],[KDmin]],$J$11=rawdata[[#This Row],[FHq]],rawdata[[#This Row],[FW]]>=rawdata[[#This Row],[FWmin]],rawdata[[#This Row],[FW]]<=rawdata[[#This Row],[FWmax]]),"YES"," - ") -> - | L114: =IF(rawdata[[#This Row],[Fhmatch 1]]="YES",((1-rawdata[[#This Row],[FWmin]]/rawdata[[#This Row],[FW]])+(1-rawdata[[#This Row],[FW]]/rawdata[[#This Row],[FWmax]]))/2,"") ->  | M114: =IF(AND($C$4>=rawdata[[#This Row],[KDmin]],$J$11=rawdata[[#This Row],[FHq]],rawdata[[#This Row],[FW]]/2>=rawdata[[#This Row],[FWmin]],rawdata[[#This Row],[FW]]/2<=rawdata[[#This Row],[FWmax]]),"YES"," - ") -> - | N114: =IFERROR(rawdata[[#This Row],[FWmin]]*2," - ") -> - | O114: =IFERROR(rawdata[[#This Row],[FWmax]]*2," - ") -> - | P114: =IF(rawdata[[#This Row],[Fhmatch 2]]="YES",((1-rawdata[[#This Row],[Fwmin 2]]/rawdata[[#This Row],[FW]])+(1-rawdata[[#This Row],[FW]]/rawdata[[#This Row],[FWmax 2]]))/2,"") -> 
B115: Touch opening | C115: 110 | D115: 300 | E115: 191 | F115: B | G115: =IF(rawdata[[#This Row],[Opening type]]="Standard",$C$10,$C$9) -> 4.39 | H115: 2.0 | I115: 3.6 | J115: 1.67 | K115: =IF(AND($C$4>=rawdata[[#This Row],[KDmin]],$J$11=rawdata[[#This Row],[FHq]],rawdata[[#This Row],[FW]]>=rawdata[[#This Row],[FWmin]],rawdata[[#This Row],[FW]]<=rawdata[[#This Row],[FWmax]]),"YES"," - ") -> - | L115: =IF(rawdata[[#This Row],[Fhmatch 1]]="YES",((1-rawdata[[#This Row],[FWmin]]/rawdata[[#This Row],[FW]])+(1-rawdata[[#This Row],[FW]]/rawdata[[#This Row],[FWmax]]))/2,"") ->  | M115: =IF(AND($C$4>=rawdata[[#This Row],[KDmin]],$J$11=rawdata[[#This Row],[FHq]],rawdata[[#This Row],[FW]]/2>=rawdata[[#This Row],[FWmin]],rawdata[[#This Row],[FW]]/2<=rawdata[[#This Row],[FWmax]]),"YES"," - ") -> - | N115: =IFERROR(rawdata[[#This Row],[FWmin]]*2," - ") -> 4.0 | O115: =IFERROR(rawdata[[#This Row],[FWmax]]*2," - ") -> 7.2 | P115: =IF(rawdata[[#This Row],[Fhmatch 2]]="YES",((1-rawdata[[#This Row],[Fwmin 2]]/rawdata[[#This Row],[FW]])+(1-rawdata[[#This Row],[FW]]/rawdata[[#This Row],[FWmax 2]]))/2,"") -> 
B116: Touch opening | C116: 110 | D116: 300 | E116: 191 | F116: C | G116: =IF(rawdata[[#This Row],[Opening type]]="Standard",$C$10,$C$9) -> 4.39 | H116: 2.8 | I116: 5.3 | J116: 1.67 | K116: =IF(AND($C$4>=rawdata[[#This Row],[KDmin]],$J$11=rawdata[[#This Row],[FHq]],rawdata[[#This Row],[FW]]>=rawdata[[#This Row],[FWmin]],rawdata[[#This Row],[FW]]<=rawdata[[#This Row],[FWmax]]),"YES"," - ") -> - | L116: =IF(rawdata[[#This Row],[Fhmatch 1]]="YES",((1-rawdata[[#This Row],[FWmin]]/rawdata[[#This Row],[FW]])+(1-rawdata[[#This Row],[FW]]/rawdata[[#This Row],[FWmax]]))/2,"") ->  | M116: =IF(AND($C$4>=rawdata[[#This Row],[KDmin]],$J$11=rawdata[[#This Row],[FHq]],rawdata[[#This Row],[FW]]/2>=rawdata[[#This Row],[FWmin]],rawdata[[#This Row],[FW]]/2<=rawdata[[#This Row],[FWmax]]),"YES"," - ") -> - | N116: =IFERROR(rawdata[[#This Row],[FWmin]]*2," - ") -> 5.6 | O116: =IFERROR(rawdata[[#This Row],[FWmax]]*2," - ") -> 10.6 | P116: =IF(rawdata[[#This Row],[Fhmatch 2]]="YES",((1-rawdata[[#This Row],[Fwmin 2]]/rawdata[[#This Row],[FW]])+(1-rawdata[[#This Row],[FW]]/rawdata[[#This Row],[FWmax 2]]))/2,"") -> 
B117: Touch opening | C117: 110 | D117: 300 | E117: 191 | F117: D | G117: =IF(rawdata[[#This Row],[Opening type]]="Standard",$C$10,$C$9) -> 4.39 | H117: - | I117: - | J117: 1.67 | K117: =IF(AND($C$4>=rawdata[[#This Row],[KDmin]],$J$11=rawdata[[#This Row],[FHq]],rawdata[[#This Row],[FW]]>=rawdata[[#This Row],[FWmin]],rawdata[[#This Row],[FW]]<=rawdata[[#This Row],[FWmax]]),"YES"," - ") -> - | L117: =IF(rawdata[[#This Row],[Fhmatch 1]]="YES",((1-rawdata[[#This Row],[FWmin]]/rawdata[[#This Row],[FW]])+(1-rawdata[[#This Row],[FW]]/rawdata[[#This Row],[FWmax]]))/2,"") ->  | M117: =IF(AND($C$4>=rawdata[[#This Row],[KDmin]],$J$11=rawdata[[#This Row],[FHq]],rawdata[[#This Row],[FW]]/2>=rawdata[[#This Row],[FWmin]],rawdata[[#This Row],[FW]]/2<=rawdata[[#This Row],[FWmax]]),"YES"," - ") -> - | N117: =IFERROR(rawdata[[#This Row],[FWmin]]*2," - ") -> - | O117: =IFERROR(rawdata[[#This Row],[FWmax]]*2," - ") -> - | P117: =IF(rawdata[[#This Row],[Fhmatch 2]]="YES",((1-rawdata[[#This Row],[Fwmin 2]]/rawdata[[#This Row],[FW]])+(1-rawdata[[#This Row],[FW]]/rawdata[[#This Row],[FWmax 2]]))/2,"") -> 
B118: Touch opening | C118: 110 | D118: 350 | E118: 191 | F118: B | G118: =IF(rawdata[[#This Row],[Opening type]]="Standard",$C$10,$C$9) -> 4.39 | H118: 2.0 | I118: 3.4 | J118: 1.43 | K118: =IF(AND($C$4>=rawdata[[#This Row],[KDmin]],$J$11=rawdata[[#This Row],[FHq]],rawdata[[#This Row],[FW]]>=rawdata[[#This Row],[FWmin]],rawdata[[#This Row],[FW]]<=rawdata[[#This Row],[FWmax]]),"YES"," - ") -> - | L118: =IF(rawdata[[#This Row],[Fhmatch 1]]="YES",((1-rawdata[[#This Row],[FWmin]]/rawdata[[#This Row],[FW]])+(1-rawdata[[#This Row],[FW]]/rawdata[[#This Row],[FWmax]]))/2,"") ->  | M118: =IF(AND($C$4>=rawdata[[#This Row],[KDmin]],$J$11=rawdata[[#This Row],[FHq]],rawdata[[#This Row],[FW]]/2>=rawdata[[#This Row],[FWmin]],rawdata[[#This Row],[FW]]/2<=rawdata[[#This Row],[FWmax]]),"YES"," - ") -> - | N118: =IFERROR(rawdata[[#This Row],[FWmin]]*2," - ") -> 4.0 | O118: =IFERROR(rawdata[[#This Row],[FWmax]]*2," - ") -> 6.8 | P118: =IF(rawdata[[#This Row],[Fhmatch 2]]="YES",((1-rawdata[[#This Row],[Fwmin 2]]/rawdata[[#This Row],[FW]])+(1-rawdata[[#This Row],[FW]]/rawdata[[#This Row],[FWmax 2]]))/2,"") -> 
B119: Touch opening | C119: 110 | D119: 350 | E119: 191 | F119: C | G119: =IF(rawdata[[#This Row],[Opening type]]="Standard",$C$10,$C$9) -> 4.39 | H119: 2.7 | I119: 4.6 | J119: 1.43 | K119: =IF(AND($C$4>=rawdata[[#This Row],[KDmin]],$J$11=rawdata[[#This Row],[FHq]],rawdata[[#This Row],[FW]]>=rawdata[[#This Row],[FWmin]],rawdata[[#This Row],[FW]]<=rawdata[[#This Row],[FWmax]]),"YES"," - ") -> - | L119: =IF(rawdata[[#This Row],[Fhmatch 1]]="YES",((1-rawdata[[#This Row],[FWmin]]/rawdata[[#This Row],[FW]])+(1-rawdata[[#This Row],[FW]]/rawdata[[#This Row],[FWmax]]))/2,"") ->  | M119: =IF(AND($C$4>=rawdata[[#This Row],[KDmin]],$J$11=rawdata[[#This Row],[FHq]],rawdata[[#This Row],[FW]]/2>=rawdata[[#This Row],[FWmin]],rawdata[[#This Row],[FW]]/2<=rawdata[[#This Row],[FWmax]]),"YES"," - ") -> - | N119: =IFERROR(rawdata[[#This Row],[FWmin]]*2," - ") -> 5.4 | O119: =IFERROR(rawdata[[#This Row],[FWmax]]*2," - ") -> 9.2 | P119: =IF(rawdata[[#This Row],[Fhmatch 2]]="YES",((1-rawdata[[#This Row],[Fwmin 2]]/rawdata[[#This Row],[FW]])+(1-rawdata[[#This Row],[FW]]/rawdata[[#This Row],[FWmax 2]]))/2,"") -> 
B120: Touch opening | C120: 110 | D120: 350 | E120: 191 | F120: D | G120: =IF(rawdata[[#This Row],[Opening type]]="Standard",$C$10,$C$9) -> 4.39 | H120: 3.6 | I120: 5.6 | J120: 1.43 | K120: =IF(AND($C$4>=rawdata[[#This Row],[KDmin]],$J$11=rawdata[[#This Row],[FHq]],rawdata[[#This Row],[FW]]>=rawdata[[#This Row],[FWmin]],rawdata[[#This Row],[FW]]<=rawdata[[#This Row],[FWmax]]),"YES"," - ") -> - | L120: =IF(rawdata[[#This Row],[Fhmatch 1]]="YES",((1-rawdata[[#This Row],[FWmin]]/rawdata[[#This Row],[FW]])+(1-rawdata[[#This Row],[FW]]/rawdata[[#This Row],[FWmax]]))/2,"") ->  | M120: =IF(AND($C$4>=rawdata[[#This Row],[KDmin]],$J$11=rawdata[[#This Row],[FHq]],rawdata[[#This Row],[FW]]/2>=rawdata[[#This Row],[FWmin]],rawdata[[#This Row],[FW]]/2<=rawdata[[#This Row],[FWmax]]),"YES"," - ") -> - | N120: =IFERROR(rawdata[[#This Row],[FWmin]]*2," - ") -> 7.2 | O120: =IFERROR(rawdata[[#This Row],[FWmax]]*2," - ") -> 11.2 | P120: =IF(rawdata[[#This Row],[Fhmatch 2]]="YES",((1-rawdata[[#This Row],[Fwmin 2]]/rawdata[[#This Row],[FW]])+(1-rawdata[[#This Row],[FW]]/rawdata[[#This Row],[FWmax 2]]))/2,"") -> 
B121: Touch opening | C121: 110 | D121: 400 | E121: 191 | F121: B | G121: =IF(rawdata[[#This Row],[Opening type]]="Standard",$C$10,$C$9) -> 4.39 | H121: 1.8 | I121: 2.9 | J121: 1.25 | K121: =IF(AND($C$4>=rawdata[[#This Row],[KDmin]],$J$11=rawdata[[#This Row],[FHq]],rawdata[[#This Row],[FW]]>=rawdata[[#This Row],[FWmin]],rawdata[[#This Row],[FW]]<=rawdata[[#This Row],[FWmax]]),"YES"," - ") -> - | L121: =IF(rawdata[[#This Row],[Fhmatch 1]]="YES",((1-rawdata[[#This Row],[FWmin]]/rawdata[[#This Row],[FW]])+(1-rawdata[[#This Row],[FW]]/rawdata[[#This Row],[FWmax]]))/2,"") ->  | M121: =IF(AND($C$4>=rawdata[[#This Row],[KDmin]],$J$11=rawdata[[#This Row],[FHq]],rawdata[[#This Row],[FW]]/2>=rawdata[[#This Row],[FWmin]],rawdata[[#This Row],[FW]]/2<=rawdata[[#This Row],[FWmax]]),"YES"," - ") -> - | N121: =IFERROR(rawdata[[#This Row],[FWmin]]*2," - ") -> 3.6 | O121: =IFERROR(rawdata[[#This Row],[FWmax]]*2," - ") -> 5.8 | P121: =IF(rawdata[[#This Row],[Fhmatch 2]]="YES",((1-rawdata[[#This Row],[Fwmin 2]]/rawdata[[#This Row],[FW]])+(1-rawdata[[#This Row],[FW]]/rawdata[[#This Row],[FWmax 2]]))/2,"") -> 
B122: Touch opening | C122: 110 | D122: 400 | E122: 191 | F122: C | G122: =IF(rawdata[[#This Row],[Opening type]]="Standard",$C$10,$C$9) -> 4.39 | H122: 2.6 | I122: 3.9 | J122: 1.25 | K122: =IF(AND($C$4>=rawdata[[#This Row],[KDmin]],$J$11=rawdata[[#This Row],[FHq]],rawdata[[#This Row],[FW]]>=rawdata[[#This Row],[FWmin]],rawdata[[#This Row],[FW]]<=rawdata[[#This Row],[FWmax]]),"YES"," - ") -> - | L122: =IF(rawdata[[#This Row],[Fhmatch 1]]="YES",((1-rawdata[[#This Row],[FWmin]]/rawdata[[#This Row],[FW]])+(1-rawdata[[#This Row],[FW]]/rawdata[[#This Row],[FWmax]]))/2,"") ->  | M122: =IF(AND($C$4>=rawdata[[#This Row],[KDmin]],$J$11=rawdata[[#This Row],[FHq]],rawdata[[#This Row],[FW]]/2>=rawdata[[#This Row],[FWmin]],rawdata[[#This Row],[FW]]/2<=rawdata[[#This Row],[FWmax]]),"YES"," - ") -> - | N122: =IFERROR(rawdata[[#This Row],[FWmin]]*2," - ") -> 5.2 | O122: =IFERROR(rawdata[[#This Row],[FWmax]]*2," - ") -> 7.8 | P122: =IF(rawdata[[#This Row],[Fhmatch 2]]="YES",((1-rawdata[[#This Row],[Fwmin 2]]/rawdata[[#This Row],[FW]])+(1-rawdata[[#This Row],[FW]]/rawdata[[#This Row],[FWmax 2]]))/2,"") -> 
B123: Touch opening | C123: 110 | D123: 400 | E123: 191 | F123: D | G123: =IF(rawdata[[#This Row],[Opening type]]="Standard",$C$10,$C$9) -> 4.39 | H123: 3.5 | I123: 5.0 | J123: 1.25 | K123: =IF(AND($C$4>=rawdata[[#This Row],[KDmin]],$J$11=rawdata[[#This Row],[FHq]],rawdata[[#This Row],[FW]]>=rawdata[[#This Row],[FWmin]],rawdata[[#This Row],[FW]]<=rawdata[[#This Row],[FWmax]]),"YES"," - ") -> - | L123: =IF(rawdata[[#This Row],[Fhmatch 1]]="YES",((1-rawdata[[#This Row],[FWmin]]/rawdata[[#This Row],[FW]])+(1-rawdata[[#This Row],[FW]]/rawdata[[#This Row],[FWmax]]))/2,"") ->  | M123: =IF(AND($C$4>=rawdata[[#This Row],[KDmin]],$J$11=rawdata[[#This Row],[FHq]],rawdata[[#This Row],[FW]]/2>=rawdata[[#This Row],[FWmin]],rawdata[[#This Row],[FW]]/2<=rawdata[[#This Row],[FWmax]]),"YES"," - ") -> - | N123: =IFERROR(rawdata[[#This Row],[FWmin]]*2," - ") -> 7.0 | O123: =IFERROR(rawdata[[#This Row],[FWmax]]*2," - ") -> 10.0 | P123: =IF(rawdata[[#This Row],[Fhmatch 2]]="YES",((1-rawdata[[#This Row],[Fwmin 2]]/rawdata[[#This Row],[FW]])+(1-rawdata[[#This Row],[FW]]/rawdata[[#This Row],[FWmax 2]]))/2,"") -> 
B124: Touch opening | C124: 110 | D124: 450 | E124: 191 | F124: B | G124: =IF(rawdata[[#This Row],[Opening type]]="Standard",$C$10,$C$9) -> 4.39 | H124: 1.4 | I124: 2.2 | J124: 1.11 | K124: =IF(AND($C$4>=rawdata[[#This Row],[KDmin]],$J$11=rawdata[[#This Row],[FHq]],rawdata[[#This Row],[FW]]>=rawdata[[#This Row],[FWmin]],rawdata[[#This Row],[FW]]<=rawdata[[#This Row],[FWmax]]),"YES"," - ") -> - | L124: =IF(rawdata[[#This Row],[Fhmatch 1]]="YES",((1-rawdata[[#This Row],[FWmin]]/rawdata[[#This Row],[FW]])+(1-rawdata[[#This Row],[FW]]/rawdata[[#This Row],[FWmax]]))/2,"") ->  | M124: =IF(AND($C$4>=rawdata[[#This Row],[KDmin]],$J$11=rawdata[[#This Row],[FHq]],rawdata[[#This Row],[FW]]/2>=rawdata[[#This Row],[FWmin]],rawdata[[#This Row],[FW]]/2<=rawdata[[#This Row],[FWmax]]),"YES"," - ") -> - | N124: =IFERROR(rawdata[[#This Row],[FWmin]]*2," - ") -> 2.8 | O124: =IFERROR(rawdata[[#This Row],[FWmax]]*2," - ") -> 4.4 | P124: =IF(rawdata[[#This Row],[Fhmatch 2]]="YES",((1-rawdata[[#This Row],[Fwmin 2]]/rawdata[[#This Row],[FW]])+(1-rawdata[[#This Row],[FW]]/rawdata[[#This Row],[FWmax 2]]))/2,"") -> 
B125: Touch opening | C125: 110 | D125: 450 | E125: 191 | F125: C | G125: =IF(rawdata[[#This Row],[Opening type]]="Standard",$C$10,$C$9) -> 4.39 | H125: 2.2 | I125: 3.7 | J125: 1.11 | K125: =IF(AND($C$4>=rawdata[[#This Row],[KDmin]],$J$11=rawdata[[#This Row],[FHq]],rawdata[[#This Row],[FW]]>=rawdata[[#This Row],[FWmin]],rawdata[[#This Row],[FW]]<=rawdata[[#This Row],[FWmax]]),"YES"," - ") -> - | L125: =IF(rawdata[[#This Row],[Fhmatch 1]]="YES",((1-rawdata[[#This Row],[FWmin]]/rawdata[[#This Row],[FW]])+(1-rawdata[[#This Row],[FW]]/rawdata[[#This Row],[FWmax]]))/2,"") ->  | M125: =IF(AND($C$4>=rawdata[[#This Row],[KDmin]],$J$11=rawdata[[#This Row],[FHq]],rawdata[[#This Row],[FW]]/2>=rawdata[[#This Row],[FWmin]],rawdata[[#This Row],[FW]]/2<=rawdata[[#This Row],[FWmax]]),"YES"," - ") -> - | N125: =IFERROR(rawdata[[#This Row],[FWmin]]*2," - ") -> 4.4 | O125: =IFERROR(rawdata[[#This Row],[FWmax]]*2," - ") -> 7.4 | P125: =IF(rawdata[[#This Row],[Fhmatch 2]]="YES",((1-rawdata[[#This Row],[Fwmin 2]]/rawdata[[#This Row],[FW]])+(1-rawdata[[#This Row],[FW]]/rawdata[[#This Row],[FWmax 2]]))/2,"") -> 
B126: Touch opening | C126: 110 | D126: 450 | E126: 191 | F126: D | G126: =IF(rawdata[[#This Row],[Opening type]]="Standard",$C$10,$C$9) -> 4.39 | H126: 2.9 | I126: 4.4 | J126: 1.11 | K126: =IF(AND($C$4>=rawdata[[#This Row],[KDmin]],$J$11=rawdata[[#This Row],[FHq]],rawdata[[#This Row],[FW]]>=rawdata[[#This Row],[FWmin]],rawdata[[#This Row],[FW]]<=rawdata[[#This Row],[FWmax]]),"YES"," - ") -> - | L126: =IF(rawdata[[#This Row],[Fhmatch 1]]="YES",((1-rawdata[[#This Row],[FWmin]]/rawdata[[#This Row],[FW]])+(1-rawdata[[#This Row],[FW]]/rawdata[[#This Row],[FWmax]]))/2,"") ->  | M126: =IF(AND($C$4>=rawdata[[#This Row],[KDmin]],$J$11=rawdata[[#This Row],[FHq]],rawdata[[#This Row],[FW]]/2>=rawdata[[#This Row],[FWmin]],rawdata[[#This Row],[FW]]/2<=rawdata[[#This Row],[FWmax]]),"YES"," - ") -> - | N126: =IFERROR(rawdata[[#This Row],[FWmin]]*2," - ") -> 5.8 | O126: =IFERROR(rawdata[[#This Row],[FWmax]]*2," - ") -> 8.8 | P126: =IF(rawdata[[#This Row],[Fhmatch 2]]="YES",((1-rawdata[[#This Row],[Fwmin 2]]/rawdata[[#This Row],[FW]])+(1-rawdata[[#This Row],[FW]]/rawdata[[#This Row],[FWmax 2]]))/2,"") -> 
B127: Touch opening | C127: 110 | D127: 500 | E127: 191 | F127: B | G127: =IF(rawdata[[#This Row],[Opening type]]="Standard",$C$10,$C$9) -> 4.39 | H127: 1.3 | I127: 2.2 | J127: 1.00 | K127: =IF(AND($C$4>=rawdata[[#This Row],[KDmin]],$J$11=rawdata[[#This Row],[FHq]],rawdata[[#This Row],[FW]]>=rawdata[[#This Row],[FWmin]],rawdata[[#This Row],[FW]]<=rawdata[[#This Row],[FWmax]]),"YES"," - ") -> - | L127: =IF(rawdata[[#This Row],[Fhmatch 1]]="YES",((1-rawdata[[#This Row],[FWmin]]/rawdata[[#This Row],[FW]])+(1-rawdata[[#This Row],[FW]]/rawdata[[#This Row],[FWmax]]))/2,"") ->  | M127: =IF(AND($C$4>=rawdata[[#This Row],[KDmin]],$J$11=rawdata[[#This Row],[FHq]],rawdata[[#This Row],[FW]]/2>=rawdata[[#This Row],[FWmin]],rawdata[[#This Row],[FW]]/2<=rawdata[[#This Row],[FWmax]]),"YES"," - ") -> YES | N127: =IFERROR(rawdata[[#This Row],[FWmin]]*2," - ") -> 2.6 | O127: =IFERROR(rawdata[[#This Row],[FWmax]]*2," - ") -> 4.4 | P127: =IF(rawdata[[#This Row],[Fhmatch 2]]="YES",((1-rawdata[[#This Row],[Fwmin 2]]/rawdata[[#This Row],[FW]])+(1-rawdata[[#This Row],[FW]]/rawdata[[#This Row],[FWmax 2]]))/2,"") -> 20.51%
B128: Touch opening | C128: 110 | D128: 500 | E128: 191 | F128: C | G128: =IF(rawdata[[#This Row],[Opening type]]="Standard",$C$10,$C$9) -> 4.39 | H128: 2.0 | I128: 3.4 | J128: 1.00 | K128: =IF(AND($C$4>=rawdata[[#This Row],[KDmin]],$J$11=rawdata[[#This Row],[FHq]],rawdata[[#This Row],[FW]]>=rawdata[[#This Row],[FWmin]],rawdata[[#This Row],[FW]]<=rawdata[[#This Row],[FWmax]]),"YES"," - ") -> - | L128: =IF(rawdata[[#This Row],[Fhmatch 1]]="YES",((1-rawdata[[#This Row],[FWmin]]/rawdata[[#This Row],[FW]])+(1-rawdata[[#This Row],[FW]]/rawdata[[#This Row],[FWmax]]))/2,"") ->  | M128: =IF(AND($C$4>=rawdata[[#This Row],[KDmin]],$J$11=rawdata[[#This Row],[FHq]],rawdata[[#This Row],[FW]]/2>=rawdata[[#This Row],[FWmin]],rawdata[[#This Row],[FW]]/2<=rawdata[[#This Row],[FWmax]]),"YES"," - ") -> YES | N128: =IFERROR(rawdata[[#This Row],[FWmin]]*2," - ") -> 4.0 | O128: =IFERROR(rawdata[[#This Row],[FWmax]]*2," - ") -> 6.8 | P128: =IF(rawdata[[#This Row],[Fhmatch 2]]="YES",((1-rawdata[[#This Row],[Fwmin 2]]/rawdata[[#This Row],[FW]])+(1-rawdata[[#This Row],[FW]]/rawdata[[#This Row],[FWmax 2]]))/2,"") -> 22.16%
B129: Touch opening | C129: 110 | D129: 500 | E129: 191 | F129: D | G129: =IF(rawdata[[#This Row],[Opening type]]="Standard",$C$10,$C$9) -> 4.39 | H129: 2.6 | I129: 3.7 | J129: 1.00 | K129: =IF(AND($C$4>=rawdata[[#This Row],[KDmin]],$J$11=rawdata[[#This Row],[FHq]],rawdata[[#This Row],[FW]]>=rawdata[[#This Row],[FWmin]],rawdata[[#This Row],[FW]]<=rawdata[[#This Row],[FWmax]]),"YES"," - ") -> - | L129: =IF(rawdata[[#This Row],[Fhmatch 1]]="YES",((1-rawdata[[#This Row],[FWmin]]/rawdata[[#This Row],[FW]])+(1-rawdata[[#This Row],[FW]]/rawdata[[#This Row],[FWmax]]))/2,"") ->  | M129: =IF(AND($C$4>=rawdata[[#This Row],[KDmin]],$J$11=rawdata[[#This Row],[FHq]],rawdata[[#This Row],[FW]]/2>=rawdata[[#This Row],[FWmin]],rawdata[[#This Row],[FW]]/2<=rawdata[[#This Row],[FWmax]]),"YES"," - ") -> - | N129: =IFERROR(rawdata[[#This Row],[FWmin]]*2," - ") -> 5.2 | O129: =IFERROR(rawdata[[#This Row],[FWmax]]*2," - ") -> 7.4 | P129: =IF(rawdata[[#This Row],[Fhmatch 2]]="YES",((1-rawdata[[#This Row],[Fwmin 2]]/rawdata[[#This Row],[FW]])+(1-rawdata[[#This Row],[FW]]/rawdata[[#This Row],[FWmax 2]]))/2,"") -> 
B130: Touch opening | C130: 110 | D130: 550 | E130: 191 | F130: B | G130: =IF(rawdata[[#This Row],[Opening type]]="Standard",$C$10,$C$9) -> 4.39 | H130: 1.0 | I130: 1.8 | J130: 0.91 | K130: =IF(AND($C$4>=rawdata[[#This Row],[KDmin]],$J$11=rawdata[[#This Row],[FHq]],rawdata[[#This Row],[FW]]>=rawdata[[#This Row],[FWmin]],rawdata[[#This Row],[FW]]<=rawdata[[#This Row],[FWmax]]),"YES"," - ") -> - | L130: =IF(rawdata[[#This Row],[Fhmatch 1]]="YES",((1-rawdata[[#This Row],[FWmin]]/rawdata[[#This Row],[FW]])+(1-rawdata[[#This Row],[FW]]/rawdata[[#This Row],[FWmax]]))/2,"") ->  | M130: =IF(AND($C$4>=rawdata[[#This Row],[KDmin]],$J$11=rawdata[[#This Row],[FHq]],rawdata[[#This Row],[FW]]/2>=rawdata[[#This Row],[FWmin]],rawdata[[#This Row],[FW]]/2<=rawdata[[#This Row],[FWmax]]),"YES"," - ") -> - | N130: =IFERROR(rawdata[[#This Row],[FWmin]]*2," - ") -> 2.0 | O130: =IFERROR(rawdata[[#This Row],[FWmax]]*2," - ") -> 3.6 | P130: =IF(rawdata[[#This Row],[Fhmatch 2]]="YES",((1-rawdata[[#This Row],[Fwmin 2]]/rawdata[[#This Row],[FW]])+(1-rawdata[[#This Row],[FW]]/rawdata[[#This Row],[FWmax 2]]))/2,"") -> 
B131: Touch opening | C131: 110 | D131: 550 | E131: 191 | F131: C | G131: =IF(rawdata[[#This Row],[Opening type]]="Standard",$C$10,$C$9) -> 4.39 | H131: 1.6 | I131: 3.2 | J131: 0.91 | K131: =IF(AND($C$4>=rawdata[[#This Row],[KDmin]],$J$11=rawdata[[#This Row],[FHq]],rawdata[[#This Row],[FW]]>=rawdata[[#This Row],[FWmin]],rawdata[[#This Row],[FW]]<=rawdata[[#This Row],[FWmax]]),"YES"," - ") -> - | L131: =IF(rawdata[[#This Row],[Fhmatch 1]]="YES",((1-rawdata[[#This Row],[FWmin]]/rawdata[[#This Row],[FW]])+(1-rawdata[[#This Row],[FW]]/rawdata[[#This Row],[FWmax]]))/2,"") ->  | M131: =IF(AND($C$4>=rawdata[[#This Row],[KDmin]],$J$11=rawdata[[#This Row],[FHq]],rawdata[[#This Row],[FW]]/2>=rawdata[[#This Row],[FWmin]],rawdata[[#This Row],[FW]]/2<=rawdata[[#This Row],[FWmax]]),"YES"," - ") -> - | N131: =IFERROR(rawdata[[#This Row],[FWmin]]*2," - ") -> 3.2 | O131: =IFERROR(rawdata[[#This Row],[FWmax]]*2," - ") -> 6.4 | P131: =IF(rawdata[[#This Row],[Fhmatch 2]]="YES",((1-rawdata[[#This Row],[Fwmin 2]]/rawdata[[#This Row],[FW]])+(1-rawdata[[#This Row],[FW]]/rawdata[[#This Row],[FWmax 2]]))/2,"") -> 
B132: Touch opening | C132: 110 | D132: 550 | E132: 191 | F132: D | G132: =IF(rawdata[[#This Row],[Opening type]]="Standard",$C$10,$C$9) -> 4.39 | H132: 2.3 | I132: 3.9 | J132: 0.91 | K132: =IF(AND($C$4>=rawdata[[#This Row],[KDmin]],$J$11=rawdata[[#This Row],[FHq]],rawdata[[#This Row],[FW]]>=rawdata[[#This Row],[FWmin]],rawdata[[#This Row],[FW]]<=rawdata[[#This Row],[FWmax]]),"YES"," - ") -> - | L132: =IF(rawdata[[#This Row],[Fhmatch 1]]="YES",((1-rawdata[[#This Row],[FWmin]]/rawdata[[#This Row],[FW]])+(1-rawdata[[#This Row],[FW]]/rawdata[[#This Row],[FWmax]]))/2,"") ->  | M132: =IF(AND($C$4>=rawdata[[#This Row],[KDmin]],$J$11=rawdata[[#This Row],[FHq]],rawdata[[#This Row],[FW]]/2>=rawdata[[#This Row],[FWmin]],rawdata[[#This Row],[FW]]/2<=rawdata[[#This Row],[FWmax]]),"YES"," - ") -> - | N132: =IFERROR(rawdata[[#This Row],[FWmin]]*2," - ") -> 4.6 | O132: =IFERROR(rawdata[[#This Row],[FWmax]]*2," - ") -> 7.8 | P132: =IF(rawdata[[#This Row],[Fhmatch 2]]="YES",((1-rawdata[[#This Row],[Fwmin 2]]/rawdata[[#This Row],[FW]])+(1-rawdata[[#This Row],[FW]]/rawdata[[#This Row],[FWmax 2]]))/2,"") -> 
B133: Touch opening | C133: 110 | D133: 600 | E133: 191 | F133: B | G133: =IF(rawdata[[#This Row],[Opening type]]="Standard",$C$10,$C$9) -> 4.39 | H133: - | I133: - | J133: 0.83 | K133: =IF(AND($C$4>=rawdata[[#This Row],[KDmin]],$J$11=rawdata[[#This Row],[FHq]],rawdata[[#This Row],[FW]]>=rawdata[[#This Row],[FWmin]],rawdata[[#This Row],[FW]]<=rawdata[[#This Row],[FWmax]]),"YES"," - ") -> - | L133: =IF(rawdata[[#This Row],[Fhmatch 1]]="YES",((1-rawdata[[#This Row],[FWmin]]/rawdata[[#This Row],[FW]])+(1-rawdata[[#This Row],[FW]]/rawdata[[#This Row],[FWmax]]))/2,"") ->  | M133: =IF(AND($C$4>=rawdata[[#This Row],[KDmin]],$J$11=rawdata[[#This Row],[FHq]],rawdata[[#This Row],[FW]]/2>=rawdata[[#This Row],[FWmin]],rawdata[[#This Row],[FW]]/2<=rawdata[[#This Row],[FWmax]]),"YES"," - ") -> - | N133: =IFERROR(rawdata[[#This Row],[FWmin]]*2," - ") -> - | O133: =IFERROR(rawdata[[#This Row],[FWmax]]*2," - ") -> - | P133: =IF(rawdata[[#This Row],[Fhmatch 2]]="YES",((1-rawdata[[#This Row],[Fwmin 2]]/rawdata[[#This Row],[FW]])+(1-rawdata[[#This Row],[FW]]/rawdata[[#This Row],[FWmax 2]]))/2,"") -> 
B134: Touch opening | C134: 110 | D134: 600 | E134: 191 | F134: C | G134: =IF(rawdata[[#This Row],[Opening type]]="Standard",$C$10,$C$9) -> 4.39 | H134: 1.5 | I134: 2.7 | J134: 0.83 | K134: =IF(AND($C$4>=rawdata[[#This Row],[KDmin]],$J$11=rawdata[[#This Row],[FHq]],rawdata[[#This Row],[FW]]>=rawdata[[#This Row],[FWmin]],rawdata[[#This Row],[FW]]<=rawdata[[#This Row],[FWmax]]),"YES"," - ") -> - | L134: =IF(rawdata[[#This Row],[Fhmatch 1]]="YES",((1-rawdata[[#This Row],[FWmin]]/rawdata[[#This Row],[FW]])+(1-rawdata[[#This Row],[FW]]/rawdata[[#This Row],[FWmax]]))/2,"") ->  | M134: =IF(AND($C$4>=rawdata[[#This Row],[KDmin]],$J$11=rawdata[[#This Row],[FHq]],rawdata[[#This Row],[FW]]/2>=rawdata[[#This Row],[FWmin]],rawdata[[#This Row],[FW]]/2<=rawdata[[#This Row],[FWmax]]),"YES"," - ") -> - | N134: =IFERROR(rawdata[[#This Row],[FWmin]]*2," - ") -> 3.0 | O134: =IFERROR(rawdata[[#This Row],[FWmax]]*2," - ") -> 5.4 | P134: =IF(rawdata[[#This Row],[Fhmatch 2]]="YES",((1-rawdata[[#This Row],[Fwmin 2]]/rawdata[[#This Row],[FW]])+(1-rawdata[[#This Row],[FW]]/rawdata[[#This Row],[FWmax 2]]))/2,"") -> 
B135: Touch opening | C135: 110 | D135: 600 | E135: 191 | F135: D | G135: =IF(rawdata[[#This Row],[Opening type]]="Standard",$C$10,$C$9) -> 4.39 | H135: 2.2 | I135: 3.4 | J135: 0.83 | K135: =IF(AND($C$4>=rawdata[[#This Row],[KDmin]],$J$11=rawdata[[#This Row],[FHq]],rawdata[[#This Row],[FW]]>=rawdata[[#This Row],[FWmin]],rawdata[[#This Row],[FW]]<=rawdata[[#This Row],[FWmax]]),"YES"," - ") -> - | L135: =IF(rawdata[[#This Row],[Fhmatch 1]]="YES",((1-rawdata[[#This Row],[FWmin]]/rawdata[[#This Row],[FW]])+(1-rawdata[[#This Row],[FW]]/rawdata[[#This Row],[FWmax]]))/2,"") ->  | M135: =IF(AND($C$4>=rawdata[[#This Row],[KDmin]],$J$11=rawdata[[#This Row],[FHq]],rawdata[[#This Row],[FW]]/2>=rawdata[[#This Row],[FWmin]],rawdata[[#This Row],[FW]]/2<=rawdata[[#This Row],[FWmax]]),"YES"," - ") -> - | N135: =IFERROR(rawdata[[#This Row],[FWmin]]*2," - ") -> 4.4 | O135: =IFERROR(rawdata[[#This Row],[FWmax]]*2," - ") -> 6.8 | P135: =IF(rawdata[[#This Row],[Fhmatch 2]]="YES",((1-rawdata[[#This Row],[Fwmin 2]]/rawdata[[#This Row],[FW]])+(1-rawdata[[#This Row],[FW]]/rawdata[[#This Row],[FWmax 2]]))/2,"") -> 
B136: Push-to-open | C136: 75 | D136: 350 | E136: 189 | F136: B | G136: =IF(rawdata[[#This Row],[Opening type]]="Standard",$C$10,$C$9) -> 4.39 | H136: 2.6 | I136: 3.6 | J136: 1.43 | K136: =IF(AND($C$4>=rawdata[[#This Row],[KDmin]],$J$11=rawdata[[#This Row],[FHq]],rawdata[[#This Row],[FW]]>=rawdata[[#This Row],[FWmin]],rawdata[[#This Row],[FW]]<=rawdata[[#This Row],[FWmax]]),"YES"," - ") -> - | L136: =IF(rawdata[[#This Row],[Fhmatch 1]]="YES",((1-rawdata[[#This Row],[FWmin]]/rawdata[[#This Row],[FW]])+(1-rawdata[[#This Row],[FW]]/rawdata[[#This Row],[FWmax]]))/2,"") ->  | M136: =IF(AND($C$4>=rawdata[[#This Row],[KDmin]],$J$11=rawdata[[#This Row],[FHq]],rawdata[[#This Row],[FW]]/2>=rawdata[[#This Row],[FWmin]],rawdata[[#This Row],[FW]]/2<=rawdata[[#This Row],[FWmax]]),"YES"," - ") -> - | N136: =IFERROR(rawdata[[#This Row],[FWmin]]*2," - ") -> 5.2 | O136: =IFERROR(rawdata[[#This Row],[FWmax]]*2," - ") -> 7.2 | P136: =IF(rawdata[[#This Row],[Fhmatch 2]]="YES",((1-rawdata[[#This Row],[Fwmin 2]]/rawdata[[#This Row],[FW]])+(1-rawdata[[#This Row],[FW]]/rawdata[[#This Row],[FWmax 2]]))/2,"") -> 
B137: Push-to-open | C137: 75 | D137: 350 | E137: 189 | F137: C* | G137: =IF(rawdata[[#This Row],[Opening type]]="Standard",$C$10,$C$9) -> 4.39 | H137: 3.1 | I137: 5.3 | J137: 1.43 | K137: =IF(AND($C$4>=rawdata[[#This Row],[KDmin]],$J$11=rawdata[[#This Row],[FHq]],rawdata[[#This Row],[FW]]>=rawdata[[#This Row],[FWmin]],rawdata[[#This Row],[FW]]<=rawdata[[#This Row],[FWmax]]),"YES"," - ") -> - | L137: =IF(rawdata[[#This Row],[Fhmatch 1]]="YES",((1-rawdata[[#This Row],[FWmin]]/rawdata[[#This Row],[FW]])+(1-rawdata[[#This Row],[FW]]/rawdata[[#This Row],[FWmax]]))/2,"") ->  | M137: =IF(AND($C$4>=rawdata[[#This Row],[KDmin]],$J$11=rawdata[[#This Row],[FHq]],rawdata[[#This Row],[FW]]/2>=rawdata[[#This Row],[FWmin]],rawdata[[#This Row],[FW]]/2<=rawdata[[#This Row],[FWmax]]),"YES"," - ") -> - | N137: =IFERROR(rawdata[[#This Row],[FWmin]]*2," - ") -> 6.2 | O137: =IFERROR(rawdata[[#This Row],[FWmax]]*2," - ") -> 10.6 | P137: =IF(rawdata[[#This Row],[Fhmatch 2]]="YES",((1-rawdata[[#This Row],[Fwmin 2]]/rawdata[[#This Row],[FW]])+(1-rawdata[[#This Row],[FW]]/rawdata[[#This Row],[FWmax 2]]))/2,"") -> 
B138: Push-to-open | C138: 75 | D138: 350 | E138: 189 | F138: D* | G138: =IF(rawdata[[#This Row],[Opening type]]="Standard",$C$10,$C$9) -> 4.39 | H138: 4.7 | I138: 6.6 | J138: 1.43 | K138: =IF(AND($C$4>=rawdata[[#This Row],[KDmin]],$J$11=rawdata[[#This Row],[FHq]],rawdata[[#This Row],[FW]]>=rawdata[[#This Row],[FWmin]],rawdata[[#This Row],[FW]]<=rawdata[[#This Row],[FWmax]]),"YES"," - ") -> - | L138: =IF(rawdata[[#This Row],[Fhmatch 1]]="YES",((1-rawdata[[#This Row],[FWmin]]/rawdata[[#This Row],[FW]])+(1-rawdata[[#This Row],[FW]]/rawdata[[#This Row],[FWmax]]))/2,"") ->  | M138: =IF(AND($C$4>=rawdata[[#This Row],[KDmin]],$J$11=rawdata[[#This Row],[FHq]],rawdata[[#This Row],[FW]]/2>=rawdata[[#This Row],[FWmin]],rawdata[[#This Row],[FW]]/2<=rawdata[[#This Row],[FWmax]]),"YES"," - ") -> - | N138: =IFERROR(rawdata[[#This Row],[FWmin]]*2," - ") -> 9.4 | O138: =IFERROR(rawdata[[#This Row],[FWmax]]*2," - ") -> 13.2 | P138: =IF(rawdata[[#This Row],[Fhmatch 2]]="YES",((1-rawdata[[#This Row],[Fwmin 2]]/rawdata[[#This Row],[FW]])+(1-rawdata[[#This Row],[FW]]/rawdata[[#This Row],[FWmax 2]]))/2,"") -> 
B139: Push-to-open | C139: 75 | D139: 400 | E139: 189 | F139: B | G139: =IF(rawdata[[#This Row],[Opening type]]="Standard",$C$10,$C$9) -> 4.39 | H139: 2.3 | I139: 3.1 | J139: 1.25 | K139: =IF(AND($C$4>=rawdata[[#This Row],[KDmin]],$J$11=rawdata[[#This Row],[FHq]],rawdata[[#This Row],[FW]]>=rawdata[[#This Row],[FWmin]],rawdata[[#This Row],[FW]]<=rawdata[[#This Row],[FWmax]]),"YES"," - ") -> - | L139: =IF(rawdata[[#This Row],[Fhmatch 1]]="YES",((1-rawdata[[#This Row],[FWmin]]/rawdata[[#This Row],[FW]])+(1-rawdata[[#This Row],[FW]]/rawdata[[#This Row],[FWmax]]))/2,"") ->  | M139: =IF(AND($C$4>=rawdata[[#This Row],[KDmin]],$J$11=rawdata[[#This Row],[FHq]],rawdata[[#This Row],[FW]]/2>=rawdata[[#This Row],[FWmin]],rawdata[[#This Row],[FW]]/2<=rawdata[[#This Row],[FWmax]]),"YES"," - ") -> - | N139: =IFERROR(rawdata[[#This Row],[FWmin]]*2," - ") -> 4.6 | O139: =IFERROR(rawdata[[#This Row],[FWmax]]*2," - ") -> 6.2 | P139: =IF(rawdata[[#This Row],[Fhmatch 2]]="YES",((1-rawdata[[#This Row],[Fwmin 2]]/rawdata[[#This Row],[FW]])+(1-rawdata[[#This Row],[FW]]/rawdata[[#This Row],[FWmax 2]]))/2,"") -> 
B140: Push-to-open | C140: 75 | D140: 400 | E140: 189 | F140: C* | G140: =IF(rawdata[[#This Row],[Opening type]]="Standard",$C$10,$C$9) -> 4.39 | H140: 3.1 | I140: 5.1 | J140: 1.25 | K140: =IF(AND($C$4>=rawdata[[#This Row],[KDmin]],$J$11=rawdata[[#This Row],[FHq]],rawdata[[#This Row],[FW]]>=rawdata[[#This Row],[FWmin]],rawdata[[#This Row],[FW]]<=rawdata[[#This Row],[FWmax]]),"YES"," - ") -> - | L140: =IF(rawdata[[#This Row],[Fhmatch 1]]="YES",((1-rawdata[[#This Row],[FWmin]]/rawdata[[#This Row],[FW]])+(1-rawdata[[#This Row],[FW]]/rawdata[[#This Row],[FWmax]]))/2,"") ->  | M140: =IF(AND($C$4>=rawdata[[#This Row],[KDmin]],$J$11=rawdata[[#This Row],[FHq]],rawdata[[#This Row],[FW]]/2>=rawdata[[#This Row],[FWmin]],rawdata[[#This Row],[FW]]/2<=rawdata[[#This Row],[FWmax]]),"YES"," - ") -> - | N140: =IFERROR(rawdata[[#This Row],[FWmin]]*2," - ") -> 6.2 | O140: =IFERROR(rawdata[[#This Row],[FWmax]]*2," - ") -> 10.2 | P140: =IF(rawdata[[#This Row],[Fhmatch 2]]="YES",((1-rawdata[[#This Row],[Fwmin 2]]/rawdata[[#This Row],[FW]])+(1-rawdata[[#This Row],[FW]]/rawdata[[#This Row],[FWmax 2]]))/2,"") -> 
B141: Push-to-open | C141: 75 | D141: 400 | E141: 189 | F141: D* | G141: =IF(rawdata[[#This Row],[Opening type]]="Standard",$C$10,$C$9) -> 4.39 | H141: 4.3 | I141: 6.6 | J141: =$C$2/D141 -> 1.25 | K141: =IF(AND($C$4>=rawdata[[#This Row],[KDmin]],$J$11=rawdata[[#This Row],[FHq]],rawdata[[#This Row],[FW]]>=rawdata[[#This Row],[FWmin]],rawdata[[#This Row],[FW]]<=rawdata[[#This Row],[FWmax]]),"YES"," - ") -> - | L141: =IF(rawdata[[#This Row],[Fhmatch 1]]="YES",((1-rawdata[[#This Row],[FWmin]]/rawdata[[#This Row],[FW]])+(1-rawdata[[#This Row],[FW]]/rawdata[[#This Row],[FWmax]]))/2,"") ->  | M141: =IF(AND($C$4>=rawdata[[#This Row],[KDmin]],$J$11=rawdata[[#This Row],[FHq]],rawdata[[#This Row],[FW]]/2>=rawdata[[#This Row],[FWmin]],rawdata[[#This Row],[FW]]/2<=rawdata[[#This Row],[FWmax]]),"YES"," - ") -> - | N141: =IFERROR(rawdata[[#This Row],[FWmin]]*2," - ") -> 8.6 | O141: =IFERROR(rawdata[[#This Row],[FWmax]]*2," - ") -> 13.2 | P141: =IF(rawdata[[#This Row],[Fhmatch 2]]="YES",((1-rawdata[[#This Row],[Fwmin 2]]/rawdata[[#This Row],[FW]])+(1-rawdata[[#This Row],[FW]]/rawdata[[#This Row],[FWmax 2]]))/2,"") -> 
B142: Push-to-open | C142: 75 | D142: 450 | E142: 189 | F142: B | G142: =IF(rawdata[[#This Row],[Opening type]]="Standard",$C$10,$C$9) -> 4.39 | H142: 1.8 | I142: 2.6 | J142: 1.11 | K142: =IF(AND($C$4>=rawdata[[#This Row],[KDmin]],$J$11=rawdata[[#This Row],[FHq]],rawdata[[#This Row],[FW]]>=rawdata[[#This Row],[FWmin]],rawdata[[#This Row],[FW]]<=rawdata[[#This Row],[FWmax]]),"YES"," - ") -> - | L142: =IF(rawdata[[#This Row],[Fhmatch 1]]="YES",((1-rawdata[[#This Row],[FWmin]]/rawdata[[#This Row],[FW]])+(1-rawdata[[#This Row],[FW]]/rawdata[[#This Row],[FWmax]]))/2,"") ->  | M142: =IF(AND($C$4>=rawdata[[#This Row],[KDmin]],$J$11=rawdata[[#This Row],[FHq]],rawdata[[#This Row],[FW]]/2>=rawdata[[#This Row],[FWmin]],rawdata[[#This Row],[FW]]/2<=rawdata[[#This Row],[FWmax]]),"YES"," - ") -> - | N142: =IFERROR(rawdata[[#This Row],[FWmin]]*2," - ") -> 3.6 | O142: =IFERROR(rawdata[[#This Row],[FWmax]]*2," - ") -> 5.2 | P142: =IF(rawdata[[#This Row],[Fhmatch 2]]="YES",((1-rawdata[[#This Row],[Fwmin 2]]/rawdata[[#This Row],[FW]])+(1-rawdata[[#This Row],[FW]]/rawdata[[#This Row],[FWmax 2]]))/2,"") -> 
B143: Push-to-open | C143: 75 | D143: 450 | E143: 189 | F143: C* | G143: =IF(rawdata[[#This Row],[Opening type]]="Standard",$C$10,$C$9) -> 4.39 | H143: 2.6 | I143: 4.0 | J143: 1.11 | K143: =IF(AND($C$4>=rawdata[[#This Row],[KDmin]],$J$11=rawdata[[#This Row],[FHq]],rawdata[[#This Row],[FW]]>=rawdata[[#This Row],[FWmin]],rawdata[[#This Row],[FW]]<=rawdata[[#This Row],[FWmax]]),"YES"," - ") -> - | L143: =IF(rawdata[[#This Row],[Fhmatch 1]]="YES",((1-rawdata[[#This Row],[FWmin]]/rawdata[[#This Row],[FW]])+(1-rawdata[[#This Row],[FW]]/rawdata[[#This Row],[FWmax]]))/2,"") ->  | M143: =IF(AND($C$4>=rawdata[[#This Row],[KDmin]],$J$11=rawdata[[#This Row],[FHq]],rawdata[[#This Row],[FW]]/2>=rawdata[[#This Row],[FWmin]],rawdata[[#This Row],[FW]]/2<=rawdata[[#This Row],[FWmax]]),"YES"," - ") -> - | N143: =IFERROR(rawdata[[#This Row],[FWmin]]*2," - ") -> 5.2 | O143: =IFERROR(rawdata[[#This Row],[FWmax]]*2," - ") -> 8.0 | P143: =IF(rawdata[[#This Row],[Fhmatch 2]]="YES",((1-rawdata[[#This Row],[Fwmin 2]]/rawdata[[#This Row],[FW]])+(1-rawdata[[#This Row],[FW]]/rawdata[[#This Row],[FWmax 2]]))/2,"") -> 
B144: Push-to-open | C144: 75 | D144: 450 | E144: 189 | F144: D* | G144: =IF(rawdata[[#This Row],[Opening type]]="Standard",$C$10,$C$9) -> 4.39 | H144: 3.6 | I144: 5.6 | J144: 1.11 | K144: =IF(AND($C$4>=rawdata[[#This Row],[KDmin]],$J$11=rawdata[[#This Row],[FHq]],rawdata[[#This Row],[FW]]>=rawdata[[#This Row],[FWmin]],rawdata[[#This Row],[FW]]<=rawdata[[#This Row],[FWmax]]),"YES"," - ") -> - | L144: =IF(rawdata[[#This Row],[Fhmatch 1]]="YES",((1-rawdata[[#This Row],[FWmin]]/rawdata[[#This Row],[FW]])+(1-rawdata[[#This Row],[FW]]/rawdata[[#This Row],[FWmax]]))/2,"") ->  | M144: =IF(AND($C$4>=rawdata[[#This Row],[KDmin]],$J$11=rawdata[[#This Row],[FHq]],rawdata[[#This Row],[FW]]/2>=rawdata[[#This Row],[FWmin]],rawdata[[#This Row],[FW]]/2<=rawdata[[#This Row],[FWmax]]),"YES"," - ") -> - | N144: =IFERROR(rawdata[[#This Row],[FWmin]]*2," - ") -> 7.2 | O144: =IFERROR(rawdata[[#This Row],[FWmax]]*2," - ") -> 11.2 | P144: =IF(rawdata[[#This Row],[Fhmatch 2]]="YES",((1-rawdata[[#This Row],[Fwmin 2]]/rawdata[[#This Row],[FW]])+(1-rawdata[[#This Row],[FW]]/rawdata[[#This Row],[FWmax 2]]))/2,"") -> 
B145: Push-to-open | C145: 75 | D145: 500 | E145: 189 | F145: B | G145: =IF(rawdata[[#This Row],[Opening type]]="Standard",$C$10,$C$9) -> 4.39 | H145: 1.6 | I145: 2.3 | J145: 1.00 | K145: =IF(AND($C$4>=rawdata[[#This Row],[KDmin]],$J$11=rawdata[[#This Row],[FHq]],rawdata[[#This Row],[FW]]>=rawdata[[#This Row],[FWmin]],rawdata[[#This Row],[FW]]<=rawdata[[#This Row],[FWmax]]),"YES"," - ") -> - | L145: =IF(rawdata[[#This Row],[Fhmatch 1]]="YES",((1-rawdata[[#This Row],[FWmin]]/rawdata[[#This Row],[FW]])+(1-rawdata[[#This Row],[FW]]/rawdata[[#This Row],[FWmax]]))/2,"") ->  | M145: =IF(AND($C$4>=rawdata[[#This Row],[KDmin]],$J$11=rawdata[[#This Row],[FHq]],rawdata[[#This Row],[FW]]/2>=rawdata[[#This Row],[FWmin]],rawdata[[#This Row],[FW]]/2<=rawdata[[#This Row],[FWmax]]),"YES"," - ") -> YES | N145: =IFERROR(rawdata[[#This Row],[FWmin]]*2," - ") -> 3.2 | O145: =IFERROR(rawdata[[#This Row],[FWmax]]*2," - ") -> 4.6 | P145: =IF(rawdata[[#This Row],[Fhmatch 2]]="YES",((1-rawdata[[#This Row],[Fwmin 2]]/rawdata[[#This Row],[FW]])+(1-rawdata[[#This Row],[FW]]/rawdata[[#This Row],[FWmax 2]]))/2,"") -> 15.84%
B146: Push-to-open | C146: 75 | D146: 500 | E146: 189 | F146: C | G146: =IF(rawdata[[#This Row],[Opening type]]="Standard",$C$10,$C$9) -> 4.39 | H146: 2.3 | I146: 3.6 | J146: 1.00 | K146: =IF(AND($C$4>=rawdata[[#This Row],[KDmin]],$J$11=rawdata[[#This Row],[FHq]],rawdata[[#This Row],[FW]]>=rawdata[[#This Row],[FWmin]],rawdata[[#This Row],[FW]]<=rawdata[[#This Row],[FWmax]]),"YES"," - ") -> - | L146: =IF(rawdata[[#This Row],[Fhmatch 1]]="YES",((1-rawdata[[#This Row],[FWmin]]/rawdata[[#This Row],[FW]])+(1-rawdata[[#This Row],[FW]]/rawdata[[#This Row],[FWmax]]))/2,"") ->  | M146: =IF(AND($C$4>=rawdata[[#This Row],[KDmin]],$J$11=rawdata[[#This Row],[FHq]],rawdata[[#This Row],[FW]]/2>=rawdata[[#This Row],[FWmin]],rawdata[[#This Row],[FW]]/2<=rawdata[[#This Row],[FWmax]]),"YES"," - ") -> - | N146: =IFERROR(rawdata[[#This Row],[FWmin]]*2," - ") -> 4.6 | O146: =IFERROR(rawdata[[#This Row],[FWmax]]*2," - ") -> 7.2 | P146: =IF(rawdata[[#This Row],[Fhmatch 2]]="YES",((1-rawdata[[#This Row],[Fwmin 2]]/rawdata[[#This Row],[FW]])+(1-rawdata[[#This Row],[FW]]/rawdata[[#This Row],[FWmax 2]]))/2,"") -> 
B147: Push-to-open | C147: 75 | D147: 500 | E147: 189 | F147: D | G147: =IF(rawdata[[#This Row],[Opening type]]="Standard",$C$10,$C$9) -> 4.39 | H147: 3.6 | I147: 4.9 | J147: 1.00 | K147: =IF(AND($C$4>=rawdata[[#This Row],[KDmin]],$J$11=rawdata[[#This Row],[FHq]],rawdata[[#This Row],[FW]]>=rawdata[[#This Row],[FWmin]],rawdata[[#This Row],[FW]]<=rawdata[[#This Row],[FWmax]]),"YES"," - ") -> YES | L147: =IF(rawdata[[#This Row],[Fhmatch 1]]="YES",((1-rawdata[[#This Row],[FWmin]]/rawdata[[#This Row],[FW]])+(1-rawdata[[#This Row],[FW]]/rawdata[[#This Row],[FWmax]]))/2,"") -> 14.20% | M147: =IF(AND($C$4>=rawdata[[#This Row],[KDmin]],$J$11=rawdata[[#This Row],[FHq]],rawdata[[#This Row],[FW]]/2>=rawdata[[#This Row],[FWmin]],rawdata[[#This Row],[FW]]/2<=rawdata[[#This Row],[FWmax]]),"YES"," - ") -> - | N147: =IFERROR(rawdata[[#This Row],[FWmin]]*2," - ") -> 7.2 | O147: =IFERROR(rawdata[[#This Row],[FWmax]]*2," - ") -> 9.8 | P147: =IF(rawdata[[#This Row],[Fhmatch 2]]="YES",((1-rawdata[[#This Row],[Fwmin 2]]/rawdata[[#This Row],[FW]])+(1-rawdata[[#This Row],[FW]]/rawdata[[#This Row],[FWmax 2]]))/2,"") -> 
B148: Push-to-open | C148: 75 | D148: 550 | E148: 189 | F148: B | G148: =IF(rawdata[[#This Row],[Opening type]]="Standard",$C$10,$C$9) -> 4.39 | H148: 1.5 | I148: 2.1 | J148: 0.91 | K148: =IF(AND($C$4>=rawdata[[#This Row],[KDmin]],$J$11=rawdata[[#This Row],[FHq]],rawdata[[#This Row],[FW]]>=rawdata[[#This Row],[FWmin]],rawdata[[#This Row],[FW]]<=rawdata[[#This Row],[FWmax]]),"YES"," - ") -> - | L148: =IF(rawdata[[#This Row],[Fhmatch 1]]="YES",((1-rawdata[[#This Row],[FWmin]]/rawdata[[#This Row],[FW]])+(1-rawdata[[#This Row],[FW]]/rawdata[[#This Row],[FWmax]]))/2,"") ->  | M148: =IF(AND($C$4>=rawdata[[#This Row],[KDmin]],$J$11=rawdata[[#This Row],[FHq]],rawdata[[#This Row],[FW]]/2>=rawdata[[#This Row],[FWmin]],rawdata[[#This Row],[FW]]/2<=rawdata[[#This Row],[FWmax]]),"YES"," - ") -> - | N148: =IFERROR(rawdata[[#This Row],[FWmin]]*2," - ") -> 3.0 | O148: =IFERROR(rawdata[[#This Row],[FWmax]]*2," - ") -> 4.2 | P148: =IF(rawdata[[#This Row],[Fhmatch 2]]="YES",((1-rawdata[[#This Row],[Fwmin 2]]/rawdata[[#This Row],[FW]])+(1-rawdata[[#This Row],[FW]]/rawdata[[#This Row],[FWmax 2]]))/2,"") -> 
B149: Push-to-open | C149: 75 | D149: 550 | E149: 189 | F149: C | G149: =IF(rawdata[[#This Row],[Opening type]]="Standard",$C$10,$C$9) -> 4.39 | H149: 2.1 | I149: 3.6 | J149: 0.91 | K149: =IF(AND($C$4>=rawdata[[#This Row],[KDmin]],$J$11=rawdata[[#This Row],[FHq]],rawdata[[#This Row],[FW]]>=rawdata[[#This Row],[FWmin]],rawdata[[#This Row],[FW]]<=rawdata[[#This Row],[FWmax]]),"YES"," - ") -> - | L149: =IF(rawdata[[#This Row],[Fhmatch 1]]="YES",((1-rawdata[[#This Row],[FWmin]]/rawdata[[#This Row],[FW]])+(1-rawdata[[#This Row],[FW]]/rawdata[[#This Row],[FWmax]]))/2,"") ->  | M149: =IF(AND($C$4>=rawdata[[#This Row],[KDmin]],$J$11=rawdata[[#This Row],[FHq]],rawdata[[#This Row],[FW]]/2>=rawdata[[#This Row],[FWmin]],rawdata[[#This Row],[FW]]/2<=rawdata[[#This Row],[FWmax]]),"YES"," - ") -> - | N149: =IFERROR(rawdata[[#This Row],[FWmin]]*2," - ") -> 4.2 | O149: =IFERROR(rawdata[[#This Row],[FWmax]]*2," - ") -> 7.2 | P149: =IF(rawdata[[#This Row],[Fhmatch 2]]="YES",((1-rawdata[[#This Row],[Fwmin 2]]/rawdata[[#This Row],[FW]])+(1-rawdata[[#This Row],[FW]]/rawdata[[#This Row],[FWmax 2]]))/2,"") -> 
B150: Push-to-open | C150: 75 | D150: 550 | E150: 189 | F150: D | G150: =IF(rawdata[[#This Row],[Opening type]]="Standard",$C$10,$C$9) -> 4.39 | H150: 3.1 | I150: 4.6 | J150: 0.91 | K150: =IF(AND($C$4>=rawdata[[#This Row],[KDmin]],$J$11=rawdata[[#This Row],[FHq]],rawdata[[#This Row],[FW]]>=rawdata[[#This Row],[FWmin]],rawdata[[#This Row],[FW]]<=rawdata[[#This Row],[FWmax]]),"YES"," - ") -> - | L150: =IF(rawdata[[#This Row],[Fhmatch 1]]="YES",((1-rawdata[[#This Row],[FWmin]]/rawdata[[#This Row],[FW]])+(1-rawdata[[#This Row],[FW]]/rawdata[[#This Row],[FWmax]]))/2,"") ->  | M150: =IF(AND($C$4>=rawdata[[#This Row],[KDmin]],$J$11=rawdata[[#This Row],[FHq]],rawdata[[#This Row],[FW]]/2>=rawdata[[#This Row],[FWmin]],rawdata[[#This Row],[FW]]/2<=rawdata[[#This Row],[FWmax]]),"YES"," - ") -> - | N150: =IFERROR(rawdata[[#This Row],[FWmin]]*2," - ") -> 6.2 | O150: =IFERROR(rawdata[[#This Row],[FWmax]]*2," - ") -> 9.2 | P150: =IF(rawdata[[#This Row],[Fhmatch 2]]="YES",((1-rawdata[[#This Row],[Fwmin 2]]/rawdata[[#This Row],[FW]])+(1-rawdata[[#This Row],[FW]]/rawdata[[#This Row],[FWmax 2]]))/2,"") -> 
B151: Push-to-open | C151: 75 | D151: 600 | E151: 189 | F151: B | G151: =IF(rawdata[[#This Row],[Opening type]]="Standard",$C$10,$C$9) -> 4.39 | H151: 1.4 | I151: 2.0 | J151: 0.83 | K151: =IF(AND($C$4>=rawdata[[#This Row],[KDmin]],$J$11=rawdata[[#This Row],[FHq]],rawdata[[#This Row],[FW]]>=rawdata[[#This Row],[FWmin]],rawdata[[#This Row],[FW]]<=rawdata[[#This Row],[FWmax]]),"YES"," - ") -> - | L151: =IF(rawdata[[#This Row],[Fhmatch 1]]="YES",((1-rawdata[[#This Row],[FWmin]]/rawdata[[#This Row],[FW]])+(1-rawdata[[#This Row],[FW]]/rawdata[[#This Row],[FWmax]]))/2,"") ->  | M151: =IF(AND($C$4>=rawdata[[#This Row],[KDmin]],$J$11=rawdata[[#This Row],[FHq]],rawdata[[#This Row],[FW]]/2>=rawdata[[#This Row],[FWmin]],rawdata[[#This Row],[FW]]/2<=rawdata[[#This Row],[FWmax]]),"YES"," - ") -> - | N151: =IFERROR(rawdata[[#This Row],[FWmin]]*2," - ") -> 2.8 | O151: =IFERROR(rawdata[[#This Row],[FWmax]]*2," - ") -> 4.0 | P151: =IF(rawdata[[#This Row],[Fhmatch 2]]="YES",((1-rawdata[[#This Row],[Fwmin 2]]/rawdata[[#This Row],[FW]])+(1-rawdata[[#This Row],[FW]]/rawdata[[#This Row],[FWmax 2]]))/2,"") -> 
B152: Push-to-open | C152: 75 | D152: 600 | E152: 189 | F152: C | G152: =IF(rawdata[[#This Row],[Opening type]]="Standard",$C$10,$C$9) -> 4.39 | H152: 2.0 | I152: 3.2 | J152: 0.83 | K152: =IF(AND($C$4>=rawdata[[#This Row],[KDmin]],$J$11=rawdata[[#This Row],[FHq]],rawdata[[#This Row],[FW]]>=rawdata[[#This Row],[FWmin]],rawdata[[#This Row],[FW]]<=rawdata[[#This Row],[FWmax]]),"YES"," - ") -> - | L152: =IF(rawdata[[#This Row],[Fhmatch 1]]="YES",((1-rawdata[[#This Row],[FWmin]]/rawdata[[#This Row],[FW]])+(1-rawdata[[#This Row],[FW]]/rawdata[[#This Row],[FWmax]]))/2,"") ->  | M152: =IF(AND($C$4>=rawdata[[#This Row],[KDmin]],$J$11=rawdata[[#This Row],[FHq]],rawdata[[#This Row],[FW]]/2>=rawdata[[#This Row],[FWmin]],rawdata[[#This Row],[FW]]/2<=rawdata[[#This Row],[FWmax]]),"YES"," - ") -> - | N152: =IFERROR(rawdata[[#This Row],[FWmin]]*2," - ") -> 4.0 | O152: =IFERROR(rawdata[[#This Row],[FWmax]]*2," - ") -> 6.4 | P152: =IF(rawdata[[#This Row],[Fhmatch 2]]="YES",((1-rawdata[[#This Row],[Fwmin 2]]/rawdata[[#This Row],[FW]])+(1-rawdata[[#This Row],[FW]]/rawdata[[#This Row],[FWmax 2]]))/2,"") -> 
B153: Push-to-open | C153: 75 | D153: 600 | E153: 189 | F153: D | G153: =IF(rawdata[[#This Row],[Opening type]]="Standard",$C$10,$C$9) -> 4.39 | H153: 2.7 | I153: 4.2 | J153: 0.83 | K153: =IF(AND($C$4>=rawdata[[#This Row],[KDmin]],$J$11=rawdata[[#This Row],[FHq]],rawdata[[#This Row],[FW]]>=rawdata[[#This Row],[FWmin]],rawdata[[#This Row],[FW]]<=rawdata[[#This Row],[FWmax]]),"YES"," - ") -> - | L153: =IF(rawdata[[#This Row],[Fhmatch 1]]="YES",((1-rawdata[[#This Row],[FWmin]]/rawdata[[#This Row],[FW]])+(1-rawdata[[#This Row],[FW]]/rawdata[[#This Row],[FWmax]]))/2,"") ->  | M153: =IF(AND($C$4>=rawdata[[#This Row],[KDmin]],$J$11=rawdata[[#This Row],[FHq]],rawdata[[#This Row],[FW]]/2>=rawdata[[#This Row],[FWmin]],rawdata[[#This Row],[FW]]/2<=rawdata[[#This Row],[FWmax]]),"YES"," - ") -> - | N153: =IFERROR(rawdata[[#This Row],[FWmin]]*2," - ") -> 5.4 | O153: =IFERROR(rawdata[[#This Row],[FWmax]]*2," - ") -> 8.4 | P153: =IF(rawdata[[#This Row],[Fhmatch 2]]="YES",((1-rawdata[[#This Row],[Fwmin 2]]/rawdata[[#This Row],[FW]])+(1-rawdata[[#This Row],[FW]]/rawdata[[#This Row],[FWmax 2]]))/2,"") -> 
B154: Push-to-open | C154: 90 | D154: 350 | E154: 185 | F154: B | G154: =IF(rawdata[[#This Row],[Opening type]]="Standard",$C$10,$C$9) -> 4.39 | H154: 1.7 | I154: 2.5 | J154: 1.43 | K154: =IF(AND($C$4>=rawdata[[#This Row],[KDmin]],$J$11=rawdata[[#This Row],[FHq]],rawdata[[#This Row],[FW]]>=rawdata[[#This Row],[FWmin]],rawdata[[#This Row],[FW]]<=rawdata[[#This Row],[FWmax]]),"YES"," - ") -> - | L154: =IF(rawdata[[#This Row],[Fhmatch 1]]="YES",((1-rawdata[[#This Row],[FWmin]]/rawdata[[#This Row],[FW]])+(1-rawdata[[#This Row],[FW]]/rawdata[[#This Row],[FWmax]]))/2,"") ->  | M154: =IF(AND($C$4>=rawdata[[#This Row],[KDmin]],$J$11=rawdata[[#This Row],[FHq]],rawdata[[#This Row],[FW]]/2>=rawdata[[#This Row],[FWmin]],rawdata[[#This Row],[FW]]/2<=rawdata[[#This Row],[FWmax]]),"YES"," - ") -> - | N154: =IFERROR(rawdata[[#This Row],[FWmin]]*2," - ") -> 3.4 | O154: =IFERROR(rawdata[[#This Row],[FWmax]]*2," - ") -> 5.0 | P154: =IF(rawdata[[#This Row],[Fhmatch 2]]="YES",((1-rawdata[[#This Row],[Fwmin 2]]/rawdata[[#This Row],[FW]])+(1-rawdata[[#This Row],[FW]]/rawdata[[#This Row],[FWmax 2]]))/2,"") -> 
B155: Push-to-open | C155: 90 | D155: 350 | E155: 185 | F155: C | G155: =IF(rawdata[[#This Row],[Opening type]]="Standard",$C$10,$C$9) -> 4.39 | H155: 2.1 | I155: 3.2 | J155: 1.43 | K155: =IF(AND($C$4>=rawdata[[#This Row],[KDmin]],$J$11=rawdata[[#This Row],[FHq]],rawdata[[#This Row],[FW]]>=rawdata[[#This Row],[FWmin]],rawdata[[#This Row],[FW]]<=rawdata[[#This Row],[FWmax]]),"YES"," - ") -> - | L155: =IF(rawdata[[#This Row],[Fhmatch 1]]="YES",((1-rawdata[[#This Row],[FWmin]]/rawdata[[#This Row],[FW]])+(1-rawdata[[#This Row],[FW]]/rawdata[[#This Row],[FWmax]]))/2,"") ->  | M155: =IF(AND($C$4>=rawdata[[#This Row],[KDmin]],$J$11=rawdata[[#This Row],[FHq]],rawdata[[#This Row],[FW]]/2>=rawdata[[#This Row],[FWmin]],rawdata[[#This Row],[FW]]/2<=rawdata[[#This Row],[FWmax]]),"YES"," - ") -> - | N155: =IFERROR(rawdata[[#This Row],[FWmin]]*2," - ") -> 4.2 | O155: =IFERROR(rawdata[[#This Row],[FWmax]]*2," - ") -> 6.4 | P155: =IF(rawdata[[#This Row],[Fhmatch 2]]="YES",((1-rawdata[[#This Row],[Fwmin 2]]/rawdata[[#This Row],[FW]])+(1-rawdata[[#This Row],[FW]]/rawdata[[#This Row],[FWmax 2]]))/2,"") -> 
B156: Push-to-open | C156: 90 | D156: 350 | E156: 185 | F156: D | G156: =IF(rawdata[[#This Row],[Opening type]]="Standard",$C$10,$C$9) -> 4.39 | H156: 3.0 | I156: 4.0 | J156: 1.43 | K156: =IF(AND($C$4>=rawdata[[#This Row],[KDmin]],$J$11=rawdata[[#This Row],[FHq]],rawdata[[#This Row],[FW]]>=rawdata[[#This Row],[FWmin]],rawdata[[#This Row],[FW]]<=rawdata[[#This Row],[FWmax]]),"YES"," - ") -> - | L156: =IF(rawdata[[#This Row],[Fhmatch 1]]="YES",((1-rawdata[[#This Row],[FWmin]]/rawdata[[#This Row],[FW]])+(1-rawdata[[#This Row],[FW]]/rawdata[[#This Row],[FWmax]]))/2,"") ->  | M156: =IF(AND($C$4>=rawdata[[#This Row],[KDmin]],$J$11=rawdata[[#This Row],[FHq]],rawdata[[#This Row],[FW]]/2>=rawdata[[#This Row],[FWmin]],rawdata[[#This Row],[FW]]/2<=rawdata[[#This Row],[FWmax]]),"YES"," - ") -> - | N156: =IFERROR(rawdata[[#This Row],[FWmin]]*2," - ") -> 6.0 | O156: =IFERROR(rawdata[[#This Row],[FWmax]]*2," - ") -> 8.0 | P156: =IF(rawdata[[#This Row],[Fhmatch 2]]="YES",((1-rawdata[[#This Row],[Fwmin 2]]/rawdata[[#This Row],[FW]])+(1-rawdata[[#This Row],[FW]]/rawdata[[#This Row],[FWmax 2]]))/2,"") -> 
B157: Push-to-open | C157: 90 | D157: 400 | E157: 185 | F157: B | G157: =IF(rawdata[[#This Row],[Opening type]]="Standard",$C$10,$C$9) -> 4.39 | H157: 1.3 | I157: 1.9 | J157: 1.25 | K157: =IF(AND($C$4>=rawdata[[#This Row],[KDmin]],$J$11=rawdata[[#This Row],[FHq]],rawdata[[#This Row],[FW]]>=rawdata[[#This Row],[FWmin]],rawdata[[#This Row],[FW]]<=rawdata[[#This Row],[FWmax]]),"YES"," - ") -> - | L157: =IF(rawdata[[#This Row],[Fhmatch 1]]="YES",((1-rawdata[[#This Row],[FWmin]]/rawdata[[#This Row],[FW]])+(1-rawdata[[#This Row],[FW]]/rawdata[[#This Row],[FWmax]]))/2,"") ->  | M157: =IF(AND($C$4>=rawdata[[#This Row],[KDmin]],$J$11=rawdata[[#This Row],[FHq]],rawdata[[#This Row],[FW]]/2>=rawdata[[#This Row],[FWmin]],rawdata[[#This Row],[FW]]/2<=rawdata[[#This Row],[FWmax]]),"YES"," - ") -> - | N157: =IFERROR(rawdata[[#This Row],[FWmin]]*2," - ") -> 2.6 | O157: =IFERROR(rawdata[[#This Row],[FWmax]]*2," - ") -> 3.8 | P157: =IF(rawdata[[#This Row],[Fhmatch 2]]="YES",((1-rawdata[[#This Row],[Fwmin 2]]/rawdata[[#This Row],[FW]])+(1-rawdata[[#This Row],[FW]]/rawdata[[#This Row],[FWmax 2]]))/2,"") -> 
B158: Push-to-open | C158: 90 | D158: 400 | E158: 185 | F158: C | G158: =IF(rawdata[[#This Row],[Opening type]]="Standard",$C$10,$C$9) -> 4.39 | H158: 1.9 | I158: 3.0 | J158: 1.25 | K158: =IF(AND($C$4>=rawdata[[#This Row],[KDmin]],$J$11=rawdata[[#This Row],[FHq]],rawdata[[#This Row],[FW]]>=rawdata[[#This Row],[FWmin]],rawdata[[#This Row],[FW]]<=rawdata[[#This Row],[FWmax]]),"YES"," - ") -> - | L158: =IF(rawdata[[#This Row],[Fhmatch 1]]="YES",((1-rawdata[[#This Row],[FWmin]]/rawdata[[#This Row],[FW]])+(1-rawdata[[#This Row],[FW]]/rawdata[[#This Row],[FWmax]]))/2,"") ->  | M158: =IF(AND($C$4>=rawdata[[#This Row],[KDmin]],$J$11=rawdata[[#This Row],[FHq]],rawdata[[#This Row],[FW]]/2>=rawdata[[#This Row],[FWmin]],rawdata[[#This Row],[FW]]/2<=rawdata[[#This Row],[FWmax]]),"YES"," - ") -> - | N158: =IFERROR(rawdata[[#This Row],[FWmin]]*2," - ") -> 3.8 | O158: =IFERROR(rawdata[[#This Row],[FWmax]]*2," - ") -> 6.0 | P158: =IF(rawdata[[#This Row],[Fhmatch 2]]="YES",((1-rawdata[[#This Row],[Fwmin 2]]/rawdata[[#This Row],[FW]])+(1-rawdata[[#This Row],[FW]]/rawdata[[#This Row],[FWmax 2]]))/2,"") -> 
B159: Push-to-open | C159: 90 | D159: 400 | E159: 185 | F159: D | G159: =IF(rawdata[[#This Row],[Opening type]]="Standard",$C$10,$C$9) -> 4.39 | H159: 2.8 | I159: 4.0 | J159: 1.25 | K159: =IF(AND($C$4>=rawdata[[#This Row],[KDmin]],$J$11=rawdata[[#This Row],[FHq]],rawdata[[#This Row],[FW]]>=rawdata[[#This Row],[FWmin]],rawdata[[#This Row],[FW]]<=rawdata[[#This Row],[FWmax]]),"YES"," - ") -> - | L159: =IF(rawdata[[#This Row],[Fhmatch 1]]="YES",((1-rawdata[[#This Row],[FWmin]]/rawdata[[#This Row],[FW]])+(1-rawdata[[#This Row],[FW]]/rawdata[[#This Row],[FWmax]]))/2,"") ->  | M159: =IF(AND($C$4>=rawdata[[#This Row],[KDmin]],$J$11=rawdata[[#This Row],[FHq]],rawdata[[#This Row],[FW]]/2>=rawdata[[#This Row],[FWmin]],rawdata[[#This Row],[FW]]/2<=rawdata[[#This Row],[FWmax]]),"YES"," - ") -> - | N159: =IFERROR(rawdata[[#This Row],[FWmin]]*2," - ") -> 5.6 | O159: =IFERROR(rawdata[[#This Row],[FWmax]]*2," - ") -> 8.0 | P159: =IF(rawdata[[#This Row],[Fhmatch 2]]="YES",((1-rawdata[[#This Row],[Fwmin 2]]/rawdata[[#This Row],[FW]])+(1-rawdata[[#This Row],[FW]]/rawdata[[#This Row],[FWmax 2]]))/2,"") -> 
B160: Push-to-open | C160: 90 | D160: 450 | E160: 185 | F160: B | G160: =IF(rawdata[[#This Row],[Opening type]]="Standard",$C$10,$C$9) -> 4.39 | H160: 1.1 | I160: 1.5 | J160: 1.11 | K160: =IF(AND($C$4>=rawdata[[#This Row],[KDmin]],$J$11=rawdata[[#This Row],[FHq]],rawdata[[#This Row],[FW]]>=rawdata[[#This Row],[FWmin]],rawdata[[#This Row],[FW]]<=rawdata[[#This Row],[FWmax]]),"YES"," - ") -> - | L160: =IF(rawdata[[#This Row],[Fhmatch 1]]="YES",((1-rawdata[[#This Row],[FWmin]]/rawdata[[#This Row],[FW]])+(1-rawdata[[#This Row],[FW]]/rawdata[[#This Row],[FWmax]]))/2,"") ->  | M160: =IF(AND($C$4>=rawdata[[#This Row],[KDmin]],$J$11=rawdata[[#This Row],[FHq]],rawdata[[#This Row],[FW]]/2>=rawdata[[#This Row],[FWmin]],rawdata[[#This Row],[FW]]/2<=rawdata[[#This Row],[FWmax]]),"YES"," - ") -> - | N160: =IFERROR(rawdata[[#This Row],[FWmin]]*2," - ") -> 2.2 | O160: =IFERROR(rawdata[[#This Row],[FWmax]]*2," - ") -> 3.0 | P160: =IF(rawdata[[#This Row],[Fhmatch 2]]="YES",((1-rawdata[[#This Row],[Fwmin 2]]/rawdata[[#This Row],[FW]])+(1-rawdata[[#This Row],[FW]]/rawdata[[#This Row],[FWmax 2]]))/2,"") -> 
B161: Push-to-open | C161: 90 | D161: 450 | E161: 185 | F161: C | G161: =IF(rawdata[[#This Row],[Opening type]]="Standard",$C$10,$C$9) -> 4.39 | H161: 1.5 | I161: 2.6 | J161: 1.11 | K161: =IF(AND($C$4>=rawdata[[#This Row],[KDmin]],$J$11=rawdata[[#This Row],[FHq]],rawdata[[#This Row],[FW]]>=rawdata[[#This Row],[FWmin]],rawdata[[#This Row],[FW]]<=rawdata[[#This Row],[FWmax]]),"YES"," - ") -> - | L161: =IF(rawdata[[#This Row],[Fhmatch 1]]="YES",((1-rawdata[[#This Row],[FWmin]]/rawdata[[#This Row],[FW]])+(1-rawdata[[#This Row],[FW]]/rawdata[[#This Row],[FWmax]]))/2,"") ->  | M161: =IF(AND($C$4>=rawdata[[#This Row],[KDmin]],$J$11=rawdata[[#This Row],[FHq]],rawdata[[#This Row],[FW]]/2>=rawdata[[#This Row],[FWmin]],rawdata[[#This Row],[FW]]/2<=rawdata[[#This Row],[FWmax]]),"YES"," - ") -> - | N161: =IFERROR(rawdata[[#This Row],[FWmin]]*2," - ") -> 3.0 | O161: =IFERROR(rawdata[[#This Row],[FWmax]]*2," - ") -> 5.2 | P161: =IF(rawdata[[#This Row],[Fhmatch 2]]="YES",((1-rawdata[[#This Row],[Fwmin 2]]/rawdata[[#This Row],[FW]])+(1-rawdata[[#This Row],[FW]]/rawdata[[#This Row],[FWmax 2]]))/2,"") -> 
B162: Push-to-open | C162: 90 | D162: 450 | E162: 185 | F162: D | G162: =IF(rawdata[[#This Row],[Opening type]]="Standard",$C$10,$C$9) -> 4.39 | H162: 2.2 | I162: 3.2 | J162: 1.11 | K162: =IF(AND($C$4>=rawdata[[#This Row],[KDmin]],$J$11=rawdata[[#This Row],[FHq]],rawdata[[#This Row],[FW]]>=rawdata[[#This Row],[FWmin]],rawdata[[#This Row],[FW]]<=rawdata[[#This Row],[FWmax]]),"YES"," - ") -> - | L162: =IF(rawdata[[#This Row],[Fhmatch 1]]="YES",((1-rawdata[[#This Row],[FWmin]]/rawdata[[#This Row],[FW]])+(1-rawdata[[#This Row],[FW]]/rawdata[[#This Row],[FWmax]]))/2,"") ->  | M162: =IF(AND($C$4>=rawdata[[#This Row],[KDmin]],$J$11=rawdata[[#This Row],[FHq]],rawdata[[#This Row],[FW]]/2>=rawdata[[#This Row],[FWmin]],rawdata[[#This Row],[FW]]/2<=rawdata[[#This Row],[FWmax]]),"YES"," - ") -> - | N162: =IFERROR(rawdata[[#This Row],[FWmin]]*2," - ") -> 4.4 | O162: =IFERROR(rawdata[[#This Row],[FWmax]]*2," - ") -> 6.4 | P162: =IF(rawdata[[#This Row],[Fhmatch 2]]="YES",((1-rawdata[[#This Row],[Fwmin 2]]/rawdata[[#This Row],[FW]])+(1-rawdata[[#This Row],[FW]]/rawdata[[#This Row],[FWmax 2]]))/2,"") -> 
B163: Push-to-open | C163: 90 | D163: 500 | E163: 185 | F163: B | G163: =IF(rawdata[[#This Row],[Opening type]]="Standard",$C$10,$C$9) -> 4.39 | H163: - | I163: - | J163: 1.00 | K163: =IF(AND($C$4>=rawdata[[#This Row],[KDmin]],$J$11=rawdata[[#This Row],[FHq]],rawdata[[#This Row],[FW]]>=rawdata[[#This Row],[FWmin]],rawdata[[#This Row],[FW]]<=rawdata[[#This Row],[FWmax]]),"YES"," - ") -> - | L163: =IF(rawdata[[#This Row],[Fhmatch 1]]="YES",((1-rawdata[[#This Row],[FWmin]]/rawdata[[#This Row],[FW]])+(1-rawdata[[#This Row],[FW]]/rawdata[[#This Row],[FWmax]]))/2,"") ->  | M163: =IF(AND($C$4>=rawdata[[#This Row],[KDmin]],$J$11=rawdata[[#This Row],[FHq]],rawdata[[#This Row],[FW]]/2>=rawdata[[#This Row],[FWmin]],rawdata[[#This Row],[FW]]/2<=rawdata[[#This Row],[FWmax]]),"YES"," - ") -> - | N163: =IFERROR(rawdata[[#This Row],[FWmin]]*2," - ") -> - | O163: =IFERROR(rawdata[[#This Row],[FWmax]]*2," - ") -> - | P163: =IF(rawdata[[#This Row],[Fhmatch 2]]="YES",((1-rawdata[[#This Row],[Fwmin 2]]/rawdata[[#This Row],[FW]])+(1-rawdata[[#This Row],[FW]]/rawdata[[#This Row],[FWmax 2]]))/2,"") -> 
B164: Push-to-open | C164: 90 | D164: 500 | E164: 185 | F164: C | G164: =IF(rawdata[[#This Row],[Opening type]]="Standard",$C$10,$C$9) -> 4.39 | H164: 1.4 | I164: 2.4 | J164: 1.00 | K164: =IF(AND($C$4>=rawdata[[#This Row],[KDmin]],$J$11=rawdata[[#This Row],[FHq]],rawdata[[#This Row],[FW]]>=rawdata[[#This Row],[FWmin]],rawdata[[#This Row],[FW]]<=rawdata[[#This Row],[FWmax]]),"YES"," - ") -> - | L164: =IF(rawdata[[#This Row],[Fhmatch 1]]="YES",((1-rawdata[[#This Row],[FWmin]]/rawdata[[#This Row],[FW]])+(1-rawdata[[#This Row],[FW]]/rawdata[[#This Row],[FWmax]]))/2,"") ->  | M164: =IF(AND($C$4>=rawdata[[#This Row],[KDmin]],$J$11=rawdata[[#This Row],[FHq]],rawdata[[#This Row],[FW]]/2>=rawdata[[#This Row],[FWmin]],rawdata[[#This Row],[FW]]/2<=rawdata[[#This Row],[FWmax]]),"YES"," - ") -> YES | N164: =IFERROR(rawdata[[#This Row],[FWmin]]*2," - ") -> 2.8 | O164: =IFERROR(rawdata[[#This Row],[FWmax]]*2," - ") -> 4.8 | P164: =IF(rawdata[[#This Row],[Fhmatch 2]]="YES",((1-rawdata[[#This Row],[Fwmin 2]]/rawdata[[#This Row],[FW]])+(1-rawdata[[#This Row],[FW]]/rawdata[[#This Row],[FWmax 2]]))/2,"") -> 22.38%
B165: Push-to-open | C165: 90 | D165: 500 | E165: 185 | F165: D | G165: =IF(rawdata[[#This Row],[Opening type]]="Standard",$C$10,$C$9) -> 4.39 | H165: 2.0 | I165: 2.9 | J165: 1.00 | K165: =IF(AND($C$4>=rawdata[[#This Row],[KDmin]],$J$11=rawdata[[#This Row],[FHq]],rawdata[[#This Row],[FW]]>=rawdata[[#This Row],[FWmin]],rawdata[[#This Row],[FW]]<=rawdata[[#This Row],[FWmax]]),"YES"," - ") -> - | L165: =IF(rawdata[[#This Row],[Fhmatch 1]]="YES",((1-rawdata[[#This Row],[FWmin]]/rawdata[[#This Row],[FW]])+(1-rawdata[[#This Row],[FW]]/rawdata[[#This Row],[FWmax]]))/2,"") ->  | M165: =IF(AND($C$4>=rawdata[[#This Row],[KDmin]],$J$11=rawdata[[#This Row],[FHq]],rawdata[[#This Row],[FW]]/2>=rawdata[[#This Row],[FWmin]],rawdata[[#This Row],[FW]]/2<=rawdata[[#This Row],[FWmax]]),"YES"," - ") -> YES | N165: =IFERROR(rawdata[[#This Row],[FWmin]]*2," - ") -> 4.0 | O165: =IFERROR(rawdata[[#This Row],[FWmax]]*2," - ") -> 5.8 | P165: =IF(rawdata[[#This Row],[Fhmatch 2]]="YES",((1-rawdata[[#This Row],[Fwmin 2]]/rawdata[[#This Row],[FW]])+(1-rawdata[[#This Row],[FW]]/rawdata[[#This Row],[FWmax 2]]))/2,"") -> 16.60%
B166: Push-to-open | C166: 90 | D166: 550 | E166: 185 | F166: B | G166: =IF(rawdata[[#This Row],[Opening type]]="Standard",$C$10,$C$9) -> 4.39 | H166: - | I166: - | J166: 0.91 | K166: =IF(AND($C$4>=rawdata[[#This Row],[KDmin]],$J$11=rawdata[[#This Row],[FHq]],rawdata[[#This Row],[FW]]>=rawdata[[#This Row],[FWmin]],rawdata[[#This Row],[FW]]<=rawdata[[#This Row],[FWmax]]),"YES"," - ") -> - | L166: =IF(rawdata[[#This Row],[Fhmatch 1]]="YES",((1-rawdata[[#This Row],[FWmin]]/rawdata[[#This Row],[FW]])+(1-rawdata[[#This Row],[FW]]/rawdata[[#This Row],[FWmax]]))/2,"") ->  | M166: =IF(AND($C$4>=rawdata[[#This Row],[KDmin]],$J$11=rawdata[[#This Row],[FHq]],rawdata[[#This Row],[FW]]/2>=rawdata[[#This Row],[FWmin]],rawdata[[#This Row],[FW]]/2<=rawdata[[#This Row],[FWmax]]),"YES"," - ") -> - | N166: =IFERROR(rawdata[[#This Row],[FWmin]]*2," - ") -> - | O166: =IFERROR(rawdata[[#This Row],[FWmax]]*2," - ") -> - | P166: =IF(rawdata[[#This Row],[Fhmatch 2]]="YES",((1-rawdata[[#This Row],[Fwmin 2]]/rawdata[[#This Row],[FW]])+(1-rawdata[[#This Row],[FW]]/rawdata[[#This Row],[FWmax 2]]))/2,"") -> 
B167: Push-to-open | C167: 90 | D167: 550 | E167: 185 | F167: C | G167: =IF(rawdata[[#This Row],[Opening type]]="Standard",$C$10,$C$9) -> 4.39 | H167: 1.3 | I167: 2.2 | J167: 0.91 | K167: =IF(AND($C$4>=rawdata[[#This Row],[KDmin]],$J$11=rawdata[[#This Row],[FHq]],rawdata[[#This Row],[FW]]>=rawdata[[#This Row],[FWmin]],rawdata[[#This Row],[FW]]<=rawdata[[#This Row],[FWmax]]),"YES"," - ") -> - | L167: =IF(rawdata[[#This Row],[Fhmatch 1]]="YES",((1-rawdata[[#This Row],[FWmin]]/rawdata[[#This Row],[FW]])+(1-rawdata[[#This Row],[FW]]/rawdata[[#This Row],[FWmax]]))/2,"") ->  | M167: =IF(AND($C$4>=rawdata[[#This Row],[KDmin]],$J$11=rawdata[[#This Row],[FHq]],rawdata[[#This Row],[FW]]/2>=rawdata[[#This Row],[FWmin]],rawdata[[#This Row],[FW]]/2<=rawdata[[#This Row],[FWmax]]),"YES"," - ") -> - | N167: =IFERROR(rawdata[[#This Row],[FWmin]]*2," - ") -> 2.6 | O167: =IFERROR(rawdata[[#This Row],[FWmax]]*2," - ") -> 4.4 | P167: =IF(rawdata[[#This Row],[Fhmatch 2]]="YES",((1-rawdata[[#This Row],[Fwmin 2]]/rawdata[[#This Row],[FW]])+(1-rawdata[[#This Row],[FW]]/rawdata[[#This Row],[FWmax 2]]))/2,"") -> 
B168: Push-to-open | C168: 90 | D168: 550 | E168: 185 | F168: D | G168: =IF(rawdata[[#This Row],[Opening type]]="Standard",$C$10,$C$9) -> 4.39 | H168: 1.8 | I168: 2.8 | J168: 0.91 | K168: =IF(AND($C$4>=rawdata[[#This Row],[KDmin]],$J$11=rawdata[[#This Row],[FHq]],rawdata[[#This Row],[FW]]>=rawdata[[#This Row],[FWmin]],rawdata[[#This Row],[FW]]<=rawdata[[#This Row],[FWmax]]),"YES"," - ") -> - | L168: =IF(rawdata[[#This Row],[Fhmatch 1]]="YES",((1-rawdata[[#This Row],[FWmin]]/rawdata[[#This Row],[FW]])+(1-rawdata[[#This Row],[FW]]/rawdata[[#This Row],[FWmax]]))/2,"") ->  | M168: =IF(AND($C$4>=rawdata[[#This Row],[KDmin]],$J$11=rawdata[[#This Row],[FHq]],rawdata[[#This Row],[FW]]/2>=rawdata[[#This Row],[FWmin]],rawdata[[#This Row],[FW]]/2<=rawdata[[#This Row],[FWmax]]),"YES"," - ") -> - | N168: =IFERROR(rawdata[[#This Row],[FWmin]]*2," - ") -> 3.6 | O168: =IFERROR(rawdata[[#This Row],[FWmax]]*2," - ") -> 5.6 | P168: =IF(rawdata[[#This Row],[Fhmatch 2]]="YES",((1-rawdata[[#This Row],[Fwmin 2]]/rawdata[[#This Row],[FW]])+(1-rawdata[[#This Row],[FW]]/rawdata[[#This Row],[FWmax 2]]))/2,"") -> 
B169: Push-to-open | C169: 90 | D169: 600 | E169: 185 | F169: B | G169: =IF(rawdata[[#This Row],[Opening type]]="Standard",$C$10,$C$9) -> 4.39 | H169: - | I169: - | J169: 0.83 | K169: =IF(AND($C$4>=rawdata[[#This Row],[KDmin]],$J$11=rawdata[[#This Row],[FHq]],rawdata[[#This Row],[FW]]>=rawdata[[#This Row],[FWmin]],rawdata[[#This Row],[FW]]<=rawdata[[#This Row],[FWmax]]),"YES"," - ") -> - | L169: =IF(rawdata[[#This Row],[Fhmatch 1]]="YES",((1-rawdata[[#This Row],[FWmin]]/rawdata[[#This Row],[FW]])+(1-rawdata[[#This Row],[FW]]/rawdata[[#This Row],[FWmax]]))/2,"") ->  | M169: =IF(AND($C$4>=rawdata[[#This Row],[KDmin]],$J$11=rawdata[[#This Row],[FHq]],rawdata[[#This Row],[FW]]/2>=rawdata[[#This Row],[FWmin]],rawdata[[#This Row],[FW]]/2<=rawdata[[#This Row],[FWmax]]),"YES"," - ") -> - | N169: =IFERROR(rawdata[[#This Row],[FWmin]]*2," - ") -> - | O169: =IFERROR(rawdata[[#This Row],[FWmax]]*2," - ") -> - | P169: =IF(rawdata[[#This Row],[Fhmatch 2]]="YES",((1-rawdata[[#This Row],[Fwmin 2]]/rawdata[[#This Row],[FW]])+(1-rawdata[[#This Row],[FW]]/rawdata[[#This Row],[FWmax 2]]))/2,"") -> 
B170: Push-to-open | C170: 90 | D170: 600 | E170: 185 | F170: C | G170: =IF(rawdata[[#This Row],[Opening type]]="Standard",$C$10,$C$9) -> 4.39 | H170: 1.3 | I170: 1.7 | J170: 0.83 | K170: =IF(AND($C$4>=rawdata[[#This Row],[KDmin]],$J$11=rawdata[[#This Row],[FHq]],rawdata[[#This Row],[FW]]>=rawdata[[#This Row],[FWmin]],rawdata[[#This Row],[FW]]<=rawdata[[#This Row],[FWmax]]),"YES"," - ") -> - | L170: =IF(rawdata[[#This Row],[Fhmatch 1]]="YES",((1-rawdata[[#This Row],[FWmin]]/rawdata[[#This Row],[FW]])+(1-rawdata[[#This Row],[FW]]/rawdata[[#This Row],[FWmax]]))/2,"") ->  | M170: =IF(AND($C$4>=rawdata[[#This Row],[KDmin]],$J$11=rawdata[[#This Row],[FHq]],rawdata[[#This Row],[FW]]/2>=rawdata[[#This Row],[FWmin]],rawdata[[#This Row],[FW]]/2<=rawdata[[#This Row],[FWmax]]),"YES"," - ") -> - | N170: =IFERROR(rawdata[[#This Row],[FWmin]]*2," - ") -> 2.6 | O170: =IFERROR(rawdata[[#This Row],[FWmax]]*2," - ") -> 3.4 | P170: =IF(rawdata[[#This Row],[Fhmatch 2]]="YES",((1-rawdata[[#This Row],[Fwmin 2]]/rawdata[[#This Row],[FW]])+(1-rawdata[[#This Row],[FW]]/rawdata[[#This Row],[FWmax 2]]))/2,"") -> 
B171: Push-to-open | C171: 90 | D171: 600 | E171: 185 | F171: D | G171: =IF(rawdata[[#This Row],[Opening type]]="Standard",$C$10,$C$9) -> 4.39 | H171: 1.5 | I171: 2.5 | J171: 0.83 | K171: =IF(AND($C$4>=rawdata[[#This Row],[KDmin]],$J$11=rawdata[[#This Row],[FHq]],rawdata[[#This Row],[FW]]>=rawdata[[#This Row],[FWmin]],rawdata[[#This Row],[FW]]<=rawdata[[#This Row],[FWmax]]),"YES"," - ") -> - | L171: =IF(rawdata[[#This Row],[Fhmatch 1]]="YES",((1-rawdata[[#This Row],[FWmin]]/rawdata[[#This Row],[FW]])+(1-rawdata[[#This Row],[FW]]/rawdata[[#This Row],[FWmax]]))/2,"") ->  | M171: =IF(AND($C$4>=rawdata[[#This Row],[KDmin]],$J$11=rawdata[[#This Row],[FHq]],rawdata[[#This Row],[FW]]/2>=rawdata[[#This Row],[FWmin]],rawdata[[#This Row],[FW]]/2<=rawdata[[#This Row],[FWmax]]),"YES"," - ") -> - | N171: =IFERROR(rawdata[[#This Row],[FWmin]]*2," - ") -> 3.0 | O171: =IFERROR(rawdata[[#This Row],[FWmax]]*2," - ") -> 5.0 | P171: =IF(rawdata[[#This Row],[Fhmatch 2]]="YES",((1-rawdata[[#This Row],[Fwmin 2]]/rawdata[[#This Row],[FW]])+(1-rawdata[[#This Row],[FW]]/rawdata[[#This Row],[FWmax 2]]))/2,"") -> 
B172: Push-to-open | C172: 110 | D172: 300 | E172: 190 | F172: B | G172: =IF(rawdata[[#This Row],[Opening type]]="Standard",$C$10,$C$9) -> 4.39 | H172: 1.5 | I172: 2.1 | J172: 1.67 | K172: =IF(AND($C$4>=rawdata[[#This Row],[KDmin]],$J$11=rawdata[[#This Row],[FHq]],rawdata[[#This Row],[FW]]>=rawdata[[#This Row],[FWmin]],rawdata[[#This Row],[FW]]<=rawdata[[#This Row],[FWmax]]),"YES"," - ") -> - | L172: =IF(rawdata[[#This Row],[Fhmatch 1]]="YES",((1-rawdata[[#This Row],[FWmin]]/rawdata[[#This Row],[FW]])+(1-rawdata[[#This Row],[FW]]/rawdata[[#This Row],[FWmax]]))/2,"") ->  | M172: =IF(AND($C$4>=rawdata[[#This Row],[KDmin]],$J$11=rawdata[[#This Row],[FHq]],rawdata[[#This Row],[FW]]/2>=rawdata[[#This Row],[FWmin]],rawdata[[#This Row],[FW]]/2<=rawdata[[#This Row],[FWmax]]),"YES"," - ") -> - | N172: =IFERROR(rawdata[[#This Row],[FWmin]]*2," - ") -> 3.0 | O172: =IFERROR(rawdata[[#This Row],[FWmax]]*2," - ") -> 4.2 | P172: =IF(rawdata[[#This Row],[Fhmatch 2]]="YES",((1-rawdata[[#This Row],[Fwmin 2]]/rawdata[[#This Row],[FW]])+(1-rawdata[[#This Row],[FW]]/rawdata[[#This Row],[FWmax 2]]))/2,"") -> 
B173: Push-to-open | C173: 110 | D173: 300 | E173: 190 | F173: C | G173: =IF(rawdata[[#This Row],[Opening type]]="Standard",$C$10,$C$9) -> 4.39 | H173: 2.1 | I173: 3.0 | J173: =$C$2/D173 -> 1.67 | K173: =IF(AND($C$4>=rawdata[[#This Row],[KDmin]],$J$11=rawdata[[#This Row],[FHq]],rawdata[[#This Row],[FW]]>=rawdata[[#This Row],[FWmin]],rawdata[[#This Row],[FW]]<=rawdata[[#This Row],[FWmax]]),"YES"," - ") -> - | L173: =IF(rawdata[[#This Row],[Fhmatch 1]]="YES",((1-rawdata[[#This Row],[FWmin]]/rawdata[[#This Row],[FW]])+(1-rawdata[[#This Row],[FW]]/rawdata[[#This Row],[FWmax]]))/2,"") ->  | M173: =IF(AND($C$4>=rawdata[[#This Row],[KDmin]],$J$11=rawdata[[#This Row],[FHq]],rawdata[[#This Row],[FW]]/2>=rawdata[[#This Row],[FWmin]],rawdata[[#This Row],[FW]]/2<=rawdata[[#This Row],[FWmax]]),"YES"," - ") -> - | N173: =IFERROR(rawdata[[#This Row],[FWmin]]*2," - ") -> 4.2 | O173: =IFERROR(rawdata[[#This Row],[FWmax]]*2," - ") -> 6.0 | P173: =IF(rawdata[[#This Row],[Fhmatch 2]]="YES",((1-rawdata[[#This Row],[Fwmin 2]]/rawdata[[#This Row],[FW]])+(1-rawdata[[#This Row],[FW]]/rawdata[[#This Row],[FWmax 2]]))/2,"") -> 
B174: Push-to-open | C174: 110 | D174: 300 | E174: 190 | F174: D | G174: =IF(rawdata[[#This Row],[Opening type]]="Standard",$C$10,$C$9) -> 4.39 | H174: 2.7 | I174: 4.1 | J174: 1.67 | K174: =IF(AND($C$4>=rawdata[[#This Row],[KDmin]],$J$11=rawdata[[#This Row],[FHq]],rawdata[[#This Row],[FW]]>=rawdata[[#This Row],[FWmin]],rawdata[[#This Row],[FW]]<=rawdata[[#This Row],[FWmax]]),"YES"," - ") -> - | L174: =IF(rawdata[[#This Row],[Fhmatch 1]]="YES",((1-rawdata[[#This Row],[FWmin]]/rawdata[[#This Row],[FW]])+(1-rawdata[[#This Row],[FW]]/rawdata[[#This Row],[FWmax]]))/2,"") ->  | M174: =IF(AND($C$4>=rawdata[[#This Row],[KDmin]],$J$11=rawdata[[#This Row],[FHq]],rawdata[[#This Row],[FW]]/2>=rawdata[[#This Row],[FWmin]],rawdata[[#This Row],[FW]]/2<=rawdata[[#This Row],[FWmax]]),"YES"," - ") -> - | N174: =IFERROR(rawdata[[#This Row],[FWmin]]*2," - ") -> 5.4 | O174: =IFERROR(rawdata[[#This Row],[FWmax]]*2," - ") -> 8.2 | P174: =IF(rawdata[[#This Row],[Fhmatch 2]]="YES",((1-rawdata[[#This Row],[Fwmin 2]]/rawdata[[#This Row],[FW]])+(1-rawdata[[#This Row],[FW]]/rawdata[[#This Row],[FWmax 2]]))/2,"") -> 
B175: Push-to-open | C175: 110 | D175: 350 | E175: 190 | F175: B | G175: =IF(rawdata[[#This Row],[Opening type]]="Standard",$C$10,$C$9) -> 4.39 | H175: 1.5 | I175: 2.1 | J175: 1.43 | K175: =IF(AND($C$4>=rawdata[[#This Row],[KDmin]],$J$11=rawdata[[#This Row],[FHq]],rawdata[[#This Row],[FW]]>=rawdata[[#This Row],[FWmin]],rawdata[[#This Row],[FW]]<=rawdata[[#This Row],[FWmax]]),"YES"," - ") -> - | L175: =IF(rawdata[[#This Row],[Fhmatch 1]]="YES",((1-rawdata[[#This Row],[FWmin]]/rawdata[[#This Row],[FW]])+(1-rawdata[[#This Row],[FW]]/rawdata[[#This Row],[FWmax]]))/2,"") ->  | M175: =IF(AND($C$4>=rawdata[[#This Row],[KDmin]],$J$11=rawdata[[#This Row],[FHq]],rawdata[[#This Row],[FW]]/2>=rawdata[[#This Row],[FWmin]],rawdata[[#This Row],[FW]]/2<=rawdata[[#This Row],[FWmax]]),"YES"," - ") -> - | N175: =IFERROR(rawdata[[#This Row],[FWmin]]*2," - ") -> 3.0 | O175: =IFERROR(rawdata[[#This Row],[FWmax]]*2," - ") -> 4.2 | P175: =IF(rawdata[[#This Row],[Fhmatch 2]]="YES",((1-rawdata[[#This Row],[Fwmin 2]]/rawdata[[#This Row],[FW]])+(1-rawdata[[#This Row],[FW]]/rawdata[[#This Row],[FWmax 2]]))/2,"") -> 
B176: Push-to-open | C176: 110 | D176: 350 | E176: 190 | F176: C | G176: =IF(rawdata[[#This Row],[Opening type]]="Standard",$C$10,$C$9) -> 4.39 | H176: 1.9 | I176: 2.7 | J176: 1.43 | K176: =IF(AND($C$4>=rawdata[[#This Row],[KDmin]],$J$11=rawdata[[#This Row],[FHq]],rawdata[[#This Row],[FW]]>=rawdata[[#This Row],[FWmin]],rawdata[[#This Row],[FW]]<=rawdata[[#This Row],[FWmax]]),"YES"," - ") -> - | L176: =IF(rawdata[[#This Row],[Fhmatch 1]]="YES",((1-rawdata[[#This Row],[FWmin]]/rawdata[[#This Row],[FW]])+(1-rawdata[[#This Row],[FW]]/rawdata[[#This Row],[FWmax]]))/2,"") ->  | M176: =IF(AND($C$4>=rawdata[[#This Row],[KDmin]],$J$11=rawdata[[#This Row],[FHq]],rawdata[[#This Row],[FW]]/2>=rawdata[[#This Row],[FWmin]],rawdata[[#This Row],[FW]]/2<=rawdata[[#This Row],[FWmax]]),"YES"," - ") -> - | N176: =IFERROR(rawdata[[#This Row],[FWmin]]*2," - ") -> 3.8 | O176: =IFERROR(rawdata[[#This Row],[FWmax]]*2," - ") -> 5.4 | P176: =IF(rawdata[[#This Row],[Fhmatch 2]]="YES",((1-rawdata[[#This Row],[Fwmin 2]]/rawdata[[#This Row],[FW]])+(1-rawdata[[#This Row],[FW]]/rawdata[[#This Row],[FWmax 2]]))/2,"") -> 
B177: Push-to-open | C177: 110 | D177: 350 | E177: 190 | F177: D | G177: =IF(rawdata[[#This Row],[Opening type]]="Standard",$C$10,$C$9) -> 4.39 | H177: 2.6 | I177: 3.7 | J177: 1.43 | K177: =IF(AND($C$4>=rawdata[[#This Row],[KDmin]],$J$11=rawdata[[#This Row],[FHq]],rawdata[[#This Row],[FW]]>=rawdata[[#This Row],[FWmin]],rawdata[[#This Row],[FW]]<=rawdata[[#This Row],[FWmax]]),"YES"," - ") -> - | L177: =IF(rawdata[[#This Row],[Fhmatch 1]]="YES",((1-rawdata[[#This Row],[FWmin]]/rawdata[[#This Row],[FW]])+(1-rawdata[[#This Row],[FW]]/rawdata[[#This Row],[FWmax]]))/2,"") ->  | M177: =IF(AND($C$4>=rawdata[[#This Row],[KDmin]],$J$11=rawdata[[#This Row],[FHq]],rawdata[[#This Row],[FW]]/2>=rawdata[[#This Row],[FWmin]],rawdata[[#This Row],[FW]]/2<=rawdata[[#This Row],[FWmax]]),"YES"," - ") -> - | N177: =IFERROR(rawdata[[#This Row],[FWmin]]*2," - ") -> 5.2 | O177: =IFERROR(rawdata[[#This Row],[FWmax]]*2," - ") -> 7.4 | P177: =IF(rawdata[[#This Row],[Fhmatch 2]]="YES",((1-rawdata[[#This Row],[Fwmin 2]]/rawdata[[#This Row],[FW]])+(1-rawdata[[#This Row],[FW]]/rawdata[[#This Row],[FWmax 2]]))/2,"") -> 
B178: Push-to-open | C178: 110 | D178: 400 | E178: 190 | F178: B | G178: =IF(rawdata[[#This Row],[Opening type]]="Standard",$C$10,$C$9) -> 4.39 | H178: 1.1 | I178: 1.5 | J178: 1.25 | K178: =IF(AND($C$4>=rawdata[[#This Row],[KDmin]],$J$11=rawdata[[#This Row],[FHq]],rawdata[[#This Row],[FW]]>=rawdata[[#This Row],[FWmin]],rawdata[[#This Row],[FW]]<=rawdata[[#This Row],[FWmax]]),"YES"," - ") -> - | L178: =IF(rawdata[[#This Row],[Fhmatch 1]]="YES",((1-rawdata[[#This Row],[FWmin]]/rawdata[[#This Row],[FW]])+(1-rawdata[[#This Row],[FW]]/rawdata[[#This Row],[FWmax]]))/2,"") ->  | M178: =IF(AND($C$4>=rawdata[[#This Row],[KDmin]],$J$11=rawdata[[#This Row],[FHq]],rawdata[[#This Row],[FW]]/2>=rawdata[[#This Row],[FWmin]],rawdata[[#This Row],[FW]]/2<=rawdata[[#This Row],[FWmax]]),"YES"," - ") -> - | N178: =IFERROR(rawdata[[#This Row],[FWmin]]*2," - ") -> 2.2 | O178: =IFERROR(rawdata[[#This Row],[FWmax]]*2," - ") -> 3.0 | P178: =IF(rawdata[[#This Row],[Fhmatch 2]]="YES",((1-rawdata[[#This Row],[Fwmin 2]]/rawdata[[#This Row],[FW]])+(1-rawdata[[#This Row],[FW]]/rawdata[[#This Row],[FWmax 2]]))/2,"") -> 
B179: Push-to-open | C179: 110 | D179: 400 | E179: 190 | F179: C | G179: =IF(rawdata[[#This Row],[Opening type]]="Standard",$C$10,$C$9) -> 4.39 | H179: 1.5 | I179: 2.5 | J179: 1.25 | K179: =IF(AND($C$4>=rawdata[[#This Row],[KDmin]],$J$11=rawdata[[#This Row],[FHq]],rawdata[[#This Row],[FW]]>=rawdata[[#This Row],[FWmin]],rawdata[[#This Row],[FW]]<=rawdata[[#This Row],[FWmax]]),"YES"," - ") -> - | L179: =IF(rawdata[[#This Row],[Fhmatch 1]]="YES",((1-rawdata[[#This Row],[FWmin]]/rawdata[[#This Row],[FW]])+(1-rawdata[[#This Row],[FW]]/rawdata[[#This Row],[FWmax]]))/2,"") ->  | M179: =IF(AND($C$4>=rawdata[[#This Row],[KDmin]],$J$11=rawdata[[#This Row],[FHq]],rawdata[[#This Row],[FW]]/2>=rawdata[[#This Row],[FWmin]],rawdata[[#This Row],[FW]]/2<=rawdata[[#This Row],[FWmax]]),"YES"," - ") -> - | N179: =IFERROR(rawdata[[#This Row],[FWmin]]*2," - ") -> 3.0 | O179: =IFERROR(rawdata[[#This Row],[FWmax]]*2," - ") -> 5.0 | P179: =IF(rawdata[[#This Row],[Fhmatch 2]]="YES",((1-rawdata[[#This Row],[Fwmin 2]]/rawdata[[#This Row],[FW]])+(1-rawdata[[#This Row],[FW]]/rawdata[[#This Row],[FWmax 2]]))/2,"") -> 
B180: Push-to-open | C180: 110 | D180: 400 | E180: 190 | F180: D | G180: =IF(rawdata[[#This Row],[Opening type]]="Standard",$C$10,$C$9) -> 4.39 | H180: 2.2 | I180: 3.5 | J180: 1.25 | K180: =IF(AND($C$4>=rawdata[[#This Row],[KDmin]],$J$11=rawdata[[#This Row],[FHq]],rawdata[[#This Row],[FW]]>=rawdata[[#This Row],[FWmin]],rawdata[[#This Row],[FW]]<=rawdata[[#This Row],[FWmax]]),"YES"," - ") -> - | L180: =IF(rawdata[[#This Row],[Fhmatch 1]]="YES",((1-rawdata[[#This Row],[FWmin]]/rawdata[[#This Row],[FW]])+(1-rawdata[[#This Row],[FW]]/rawdata[[#This Row],[FWmax]]))/2,"") ->  | M180: =IF(AND($C$4>=rawdata[[#This Row],[KDmin]],$J$11=rawdata[[#This Row],[FHq]],rawdata[[#This Row],[FW]]/2>=rawdata[[#This Row],[FWmin]],rawdata[[#This Row],[FW]]/2<=rawdata[[#This Row],[FWmax]]),"YES"," - ") -> - | N180: =IFERROR(rawdata[[#This Row],[FWmin]]*2," - ") -> 4.4 | O180: =IFERROR(rawdata[[#This Row],[FWmax]]*2," - ") -> 7.0 | P180: =IF(rawdata[[#This Row],[Fhmatch 2]]="YES",((1-rawdata[[#This Row],[Fwmin 2]]/rawdata[[#This Row],[FW]])+(1-rawdata[[#This Row],[FW]]/rawdata[[#This Row],[FWmax 2]]))/2,"") -> 
B181: Push-to-open | C181: 110 | D181: 450 | E181: 190 | F181: B | G181: =IF(rawdata[[#This Row],[Opening type]]="Standard",$C$10,$C$9) -> 4.39 | H181: 1.0 | I181: 1.3 | J181: 1.11 | K181: =IF(AND($C$4>=rawdata[[#This Row],[KDmin]],$J$11=rawdata[[#This Row],[FHq]],rawdata[[#This Row],[FW]]>=rawdata[[#This Row],[FWmin]],rawdata[[#This Row],[FW]]<=rawdata[[#This Row],[FWmax]]),"YES"," - ") -> - | L181: =IF(rawdata[[#This Row],[Fhmatch 1]]="YES",((1-rawdata[[#This Row],[FWmin]]/rawdata[[#This Row],[FW]])+(1-rawdata[[#This Row],[FW]]/rawdata[[#This Row],[FWmax]]))/2,"") ->  | M181: =IF(AND($C$4>=rawdata[[#This Row],[KDmin]],$J$11=rawdata[[#This Row],[FHq]],rawdata[[#This Row],[FW]]/2>=rawdata[[#This Row],[FWmin]],rawdata[[#This Row],[FW]]/2<=rawdata[[#This Row],[FWmax]]),"YES"," - ") -> - | N181: =IFERROR(rawdata[[#This Row],[FWmin]]*2," - ") -> 2.0 | O181: =IFERROR(rawdata[[#This Row],[FWmax]]*2," - ") -> 2.6 | P181: =IF(rawdata[[#This Row],[Fhmatch 2]]="YES",((1-rawdata[[#This Row],[Fwmin 2]]/rawdata[[#This Row],[FW]])+(1-rawdata[[#This Row],[FW]]/rawdata[[#This Row],[FWmax 2]]))/2,"") -> 
B182: Push-to-open | C182: 110 | D182: 450 | E182: 190 | F182: C | G182: =IF(rawdata[[#This Row],[Opening type]]="Standard",$C$10,$C$9) -> 4.39 | H182: 1.3 | I182: 2.3 | J182: 1.11 | K182: =IF(AND($C$4>=rawdata[[#This Row],[KDmin]],$J$11=rawdata[[#This Row],[FHq]],rawdata[[#This Row],[FW]]>=rawdata[[#This Row],[FWmin]],rawdata[[#This Row],[FW]]<=rawdata[[#This Row],[FWmax]]),"YES"," - ") -> - | L182: =IF(rawdata[[#This Row],[Fhmatch 1]]="YES",((1-rawdata[[#This Row],[FWmin]]/rawdata[[#This Row],[FW]])+(1-rawdata[[#This Row],[FW]]/rawdata[[#This Row],[FWmax]]))/2,"") ->  | M182: =IF(AND($C$4>=rawdata[[#This Row],[KDmin]],$J$11=rawdata[[#This Row],[FHq]],rawdata[[#This Row],[FW]]/2>=rawdata[[#This Row],[FWmin]],rawdata[[#This Row],[FW]]/2<=rawdata[[#This Row],[FWmax]]),"YES"," - ") -> - | N182: =IFERROR(rawdata[[#This Row],[FWmin]]*2," - ") -> 2.6 | O182: =IFERROR(rawdata[[#This Row],[FWmax]]*2," - ") -> 4.6 | P182: =IF(rawdata[[#This Row],[Fhmatch 2]]="YES",((1-rawdata[[#This Row],[Fwmin 2]]/rawdata[[#This Row],[FW]])+(1-rawdata[[#This Row],[FW]]/rawdata[[#This Row],[FWmax 2]]))/2,"") -> 
B183: Push-to-open | C183: 110 | D183: 450 | E183: 190 | F183: D | G183: =IF(rawdata[[#This Row],[Opening type]]="Standard",$C$10,$C$9) -> 4.39 | H183: 2.0 | I183: 2.9 | J183: 1.11 | K183: =IF(AND($C$4>=rawdata[[#This Row],[KDmin]],$J$11=rawdata[[#This Row],[FHq]],rawdata[[#This Row],[FW]]>=rawdata[[#This Row],[FWmin]],rawdata[[#This Row],[FW]]<=rawdata[[#This Row],[FWmax]]),"YES"," - ") -> - | L183: =IF(rawdata[[#This Row],[Fhmatch 1]]="YES",((1-rawdata[[#This Row],[FWmin]]/rawdata[[#This Row],[FW]])+(1-rawdata[[#This Row],[FW]]/rawdata[[#This Row],[FWmax]]))/2,"") ->  | M183: =IF(AND($C$4>=rawdata[[#This Row],[KDmin]],$J$11=rawdata[[#This Row],[FHq]],rawdata[[#This Row],[FW]]/2>=rawdata[[#This Row],[FWmin]],rawdata[[#This Row],[FW]]/2<=rawdata[[#This Row],[FWmax]]),"YES"," - ") -> - | N183: =IFERROR(rawdata[[#This Row],[FWmin]]*2," - ") -> 4.0 | O183: =IFERROR(rawdata[[#This Row],[FWmax]]*2," - ") -> 5.8 | P183: =IF(rawdata[[#This Row],[Fhmatch 2]]="YES",((1-rawdata[[#This Row],[Fwmin 2]]/rawdata[[#This Row],[FW]])+(1-rawdata[[#This Row],[FW]]/rawdata[[#This Row],[FWmax 2]]))/2,"") -> 
B184: Push-to-open | C184: 110 | D184: 500 | E184: 190 | F184: B | G184: =IF(rawdata[[#This Row],[Opening type]]="Standard",$C$10,$C$9) -> 4.39 | H184: - | I184: - | J184: 1.00 | K184: =IF(AND($C$4>=rawdata[[#This Row],[KDmin]],$J$11=rawdata[[#This Row],[FHq]],rawdata[[#This Row],[FW]]>=rawdata[[#This Row],[FWmin]],rawdata[[#This Row],[FW]]<=rawdata[[#This Row],[FWmax]]),"YES"," - ") -> - | L184: =IF(rawdata[[#This Row],[Fhmatch 1]]="YES",((1-rawdata[[#This Row],[FWmin]]/rawdata[[#This Row],[FW]])+(1-rawdata[[#This Row],[FW]]/rawdata[[#This Row],[FWmax]]))/2,"") ->  | M184: =IF(AND($C$4>=rawdata[[#This Row],[KDmin]],$J$11=rawdata[[#This Row],[FHq]],rawdata[[#This Row],[FW]]/2>=rawdata[[#This Row],[FWmin]],rawdata[[#This Row],[FW]]/2<=rawdata[[#This Row],[FWmax]]),"YES"," - ") -> - | N184: =IFERROR(rawdata[[#This Row],[FWmin]]*2," - ") -> - | O184: =IFERROR(rawdata[[#This Row],[FWmax]]*2," - ") -> - | P184: =IF(rawdata[[#This Row],[Fhmatch 2]]="YES",((1-rawdata[[#This Row],[Fwmin 2]]/rawdata[[#This Row],[FW]])+(1-rawdata[[#This Row],[FW]]/rawdata[[#This Row],[FWmax 2]]))/2,"") -> 
B185: Push-to-open | C185: 110 | D185: 500 | E185: 190 | F185: C | G185: =IF(rawdata[[#This Row],[Opening type]]="Standard",$C$10,$C$9) -> 4.39 | H185: 1.2 | I185: 1.7 | J185: 1.00 | K185: =IF(AND($C$4>=rawdata[[#This Row],[KDmin]],$J$11=rawdata[[#This Row],[FHq]],rawdata[[#This Row],[FW]]>=rawdata[[#This Row],[FWmin]],rawdata[[#This Row],[FW]]<=rawdata[[#This Row],[FWmax]]),"YES"," - ") -> - | L185: =IF(rawdata[[#This Row],[Fhmatch 1]]="YES",((1-rawdata[[#This Row],[FWmin]]/rawdata[[#This Row],[FW]])+(1-rawdata[[#This Row],[FW]]/rawdata[[#This Row],[FWmax]]))/2,"") ->  | M185: =IF(AND($C$4>=rawdata[[#This Row],[KDmin]],$J$11=rawdata[[#This Row],[FHq]],rawdata[[#This Row],[FW]]/2>=rawdata[[#This Row],[FWmin]],rawdata[[#This Row],[FW]]/2<=rawdata[[#This Row],[FWmax]]),"YES"," - ") -> - | N185: =IFERROR(rawdata[[#This Row],[FWmin]]*2," - ") -> 2.4 | O185: =IFERROR(rawdata[[#This Row],[FWmax]]*2," - ") -> 3.4 | P185: =IF(rawdata[[#This Row],[Fhmatch 2]]="YES",((1-rawdata[[#This Row],[Fwmin 2]]/rawdata[[#This Row],[FW]])+(1-rawdata[[#This Row],[FW]]/rawdata[[#This Row],[FWmax 2]]))/2,"") -> 
B186: Push-to-open | C186: 110 | D186: 500 | E186: 190 | F186: D | G186: =IF(rawdata[[#This Row],[Opening type]]="Standard",$C$10,$C$9) -> 4.39 | H186: 1.6 | I186: 2.7 | J186: 1.00 | K186: =IF(AND($C$4>=rawdata[[#This Row],[KDmin]],$J$11=rawdata[[#This Row],[FHq]],rawdata[[#This Row],[FW]]>=rawdata[[#This Row],[FWmin]],rawdata[[#This Row],[FW]]<=rawdata[[#This Row],[FWmax]]),"YES"," - ") -> - | L186: =IF(rawdata[[#This Row],[Fhmatch 1]]="YES",((1-rawdata[[#This Row],[FWmin]]/rawdata[[#This Row],[FW]])+(1-rawdata[[#This Row],[FW]]/rawdata[[#This Row],[FWmax]]))/2,"") ->  | M186: =IF(AND($C$4>=rawdata[[#This Row],[KDmin]],$J$11=rawdata[[#This Row],[FHq]],rawdata[[#This Row],[FW]]/2>=rawdata[[#This Row],[FWmin]],rawdata[[#This Row],[FW]]/2<=rawdata[[#This Row],[FWmax]]),"YES"," - ") -> YES | N186: =IFERROR(rawdata[[#This Row],[FWmin]]*2," - ") -> 3.2 | O186: =IFERROR(rawdata[[#This Row],[FWmax]]*2," - ") -> 5.4 | P186: =IF(rawdata[[#This Row],[Fhmatch 2]]="YES",((1-rawdata[[#This Row],[Fwmin 2]]/rawdata[[#This Row],[FW]])+(1-rawdata[[#This Row],[FW]]/rawdata[[#This Row],[FWmax 2]]))/2,"") -> 22.91%
B187: Push-to-open | C187: 110 | D187: 550 | E187: 190 | F187: B | G187: =IF(rawdata[[#This Row],[Opening type]]="Standard",$C$10,$C$9) -> 4.39 | H187: - | I187: - | J187: 0.91 | K187: =IF(AND($C$4>=rawdata[[#This Row],[KDmin]],$J$11=rawdata[[#This Row],[FHq]],rawdata[[#This Row],[FW]]>=rawdata[[#This Row],[FWmin]],rawdata[[#This Row],[FW]]<=rawdata[[#This Row],[FWmax]]),"YES"," - ") -> - | L187: =IF(rawdata[[#This Row],[Fhmatch 1]]="YES",((1-rawdata[[#This Row],[FWmin]]/rawdata[[#This Row],[FW]])+(1-rawdata[[#This Row],[FW]]/rawdata[[#This Row],[FWmax]]))/2,"") ->  | M187: =IF(AND($C$4>=rawdata[[#This Row],[KDmin]],$J$11=rawdata[[#This Row],[FHq]],rawdata[[#This Row],[FW]]/2>=rawdata[[#This Row],[FWmin]],rawdata[[#This Row],[FW]]/2<=rawdata[[#This Row],[FWmax]]),"YES"," - ") -> - | N187: =IFERROR(rawdata[[#This Row],[FWmin]]*2," - ") -> - | O187: =IFERROR(rawdata[[#This Row],[FWmax]]*2," - ") -> - | P187: =IF(rawdata[[#This Row],[Fhmatch 2]]="YES",((1-rawdata[[#This Row],[Fwmin 2]]/rawdata[[#This Row],[FW]])+(1-rawdata[[#This Row],[FW]]/rawdata[[#This Row],[FWmax 2]]))/2,"") -> 
B188: Push-to-open | C188: 110 | D188: 550 | E188: 190 | F188: C | G188: =IF(rawdata[[#This Row],[Opening type]]="Standard",$C$10,$C$9) -> 4.39 | H188: 1.2 | I188: 1.7 | J188: 0.91 | K188: =IF(AND($C$4>=rawdata[[#This Row],[KDmin]],$J$11=rawdata[[#This Row],[FHq]],rawdata[[#This Row],[FW]]>=rawdata[[#This Row],[FWmin]],rawdata[[#This Row],[FW]]<=rawdata[[#This Row],[FWmax]]),"YES"," - ") -> - | L188: =IF(rawdata[[#This Row],[Fhmatch 1]]="YES",((1-rawdata[[#This Row],[FWmin]]/rawdata[[#This Row],[FW]])+(1-rawdata[[#This Row],[FW]]/rawdata[[#This Row],[FWmax]]))/2,"") ->  | M188: =IF(AND($C$4>=rawdata[[#This Row],[KDmin]],$J$11=rawdata[[#This Row],[FHq]],rawdata[[#This Row],[FW]]/2>=rawdata[[#This Row],[FWmin]],rawdata[[#This Row],[FW]]/2<=rawdata[[#This Row],[FWmax]]),"YES"," - ") -> - | N188: =IFERROR(rawdata[[#This Row],[FWmin]]*2," - ") -> 2.4 | O188: =IFERROR(rawdata[[#This Row],[FWmax]]*2," - ") -> 3.4 | P188: =IF(rawdata[[#This Row],[Fhmatch 2]]="YES",((1-rawdata[[#This Row],[Fwmin 2]]/rawdata[[#This Row],[FW]])+(1-rawdata[[#This Row],[FW]]/rawdata[[#This Row],[FWmax 2]]))/2,"") -> 
B189: Push-to-open | C189: 110 | D189: 550 | E189: 190 | F189: D | G189: =IF(rawdata[[#This Row],[Opening type]]="Standard",$C$10,$C$9) -> 4.39 | H189: 1.5 | I189: 2.3 | J189: 0.91 | K189: =IF(AND($C$4>=rawdata[[#This Row],[KDmin]],$J$11=rawdata[[#This Row],[FHq]],rawdata[[#This Row],[FW]]>=rawdata[[#This Row],[FWmin]],rawdata[[#This Row],[FW]]<=rawdata[[#This Row],[FWmax]]),"YES"," - ") -> - | L189: =IF(rawdata[[#This Row],[Fhmatch 1]]="YES",((1-rawdata[[#This Row],[FWmin]]/rawdata[[#This Row],[FW]])+(1-rawdata[[#This Row],[FW]]/rawdata[[#This Row],[FWmax]]))/2,"") ->  | M189: =IF(AND($C$4>=rawdata[[#This Row],[KDmin]],$J$11=rawdata[[#This Row],[FHq]],rawdata[[#This Row],[FW]]/2>=rawdata[[#This Row],[FWmin]],rawdata[[#This Row],[FW]]/2<=rawdata[[#This Row],[FWmax]]),"YES"," - ") -> - | N189: =IFERROR(rawdata[[#This Row],[FWmin]]*2," - ") -> 3.0 | O189: =IFERROR(rawdata[[#This Row],[FWmax]]*2," - ") -> 4.6 | P189: =IF(rawdata[[#This Row],[Fhmatch 2]]="YES",((1-rawdata[[#This Row],[Fwmin 2]]/rawdata[[#This Row],[FW]])+(1-rawdata[[#This Row],[FW]]/rawdata[[#This Row],[FWmax 2]]))/2,"") -> 
B190: Push-to-open | C190: 110 | D190: 600 | E190: 190 | F190: B | G190: =IF(rawdata[[#This Row],[Opening type]]="Standard",$C$10,$C$9) -> 4.39 | H190: - | I190: - | J190: 0.83 | K190: =IF(AND($C$4>=rawdata[[#This Row],[KDmin]],$J$11=rawdata[[#This Row],[FHq]],rawdata[[#This Row],[FW]]>=rawdata[[#This Row],[FWmin]],rawdata[[#This Row],[FW]]<=rawdata[[#This Row],[FWmax]]),"YES"," - ") -> - | L190: =IF(rawdata[[#This Row],[Fhmatch 1]]="YES",((1-rawdata[[#This Row],[FWmin]]/rawdata[[#This Row],[FW]])+(1-rawdata[[#This Row],[FW]]/rawdata[[#This Row],[FWmax]]))/2,"") ->  | M190: =IF(AND($C$4>=rawdata[[#This Row],[KDmin]],$J$11=rawdata[[#This Row],[FHq]],rawdata[[#This Row],[FW]]/2>=rawdata[[#This Row],[FWmin]],rawdata[[#This Row],[FW]]/2<=rawdata[[#This Row],[FWmax]]),"YES"," - ") -> - | N190: =IFERROR(rawdata[[#This Row],[FWmin]]*2," - ") -> - | O190: =IFERROR(rawdata[[#This Row],[FWmax]]*2," - ") -> - | P190: =IF(rawdata[[#This Row],[Fhmatch 2]]="YES",((1-rawdata[[#This Row],[Fwmin 2]]/rawdata[[#This Row],[FW]])+(1-rawdata[[#This Row],[FW]]/rawdata[[#This Row],[FWmax 2]]))/2,"") -> 
B191: Push-to-open | C191: 110 | D191: 600 | E191: 190 | F191: C | G191: =IF(rawdata[[#This Row],[Opening type]]="Standard",$C$10,$C$9) -> 4.39 | H191: 1.2 | I191: 1.5 | J191: 0.83 | K191: =IF(AND($C$4>=rawdata[[#This Row],[KDmin]],$J$11=rawdata[[#This Row],[FHq]],rawdata[[#This Row],[FW]]>=rawdata[[#This Row],[FWmin]],rawdata[[#This Row],[FW]]<=rawdata[[#This Row],[FWmax]]),"YES"," - ") -> - | L191: =IF(rawdata[[#This Row],[Fhmatch 1]]="YES",((1-rawdata[[#This Row],[FWmin]]/rawdata[[#This Row],[FW]])+(1-rawdata[[#This Row],[FW]]/rawdata[[#This Row],[FWmax]]))/2,"") ->  | M191: =IF(AND($C$4>=rawdata[[#This Row],[KDmin]],$J$11=rawdata[[#This Row],[FHq]],rawdata[[#This Row],[FW]]/2>=rawdata[[#This Row],[FWmin]],rawdata[[#This Row],[FW]]/2<=rawdata[[#This Row],[FWmax]]),"YES"," - ") -> - | N191: =IFERROR(rawdata[[#This Row],[FWmin]]*2," - ") -> 2.4 | O191: =IFERROR(rawdata[[#This Row],[FWmax]]*2," - ") -> 3.0 | P191: =IF(rawdata[[#This Row],[Fhmatch 2]]="YES",((1-rawdata[[#This Row],[Fwmin 2]]/rawdata[[#This Row],[FW]])+(1-rawdata[[#This Row],[FW]]/rawdata[[#This Row],[FWmax 2]]))/2,"") -> 
B192: Push-to-open | C192: 110 | D192: 600 | E192: 190 | F192: D | G192: =IF(rawdata[[#This Row],[Opening type]]="Standard",$C$10,$C$9) -> 4.39 | H192: 1.3 | I192: 2.1 | J192: 0.83 | K192: =IF(AND($C$4>=rawdata[[#This Row],[KDmin]],$J$11=rawdata[[#This Row],[FHq]],rawdata[[#This Row],[FW]]>=rawdata[[#This Row],[FWmin]],rawdata[[#This Row],[FW]]<=rawdata[[#This Row],[FWmax]]),"YES"," - ") -> - | L192: =IF(rawdata[[#This Row],[Fhmatch 1]]="YES",((1-rawdata[[#This Row],[FWmin]]/rawdata[[#This Row],[FW]])+(1-rawdata[[#This Row],[FW]]/rawdata[[#This Row],[FWmax]]))/2,"") ->  | M192: =IF(AND($C$4>=rawdata[[#This Row],[KDmin]],$J$11=rawdata[[#This Row],[FHq]],rawdata[[#This Row],[FW]]/2>=rawdata[[#This Row],[FWmin]],rawdata[[#This Row],[FW]]/2<=rawdata[[#This Row],[FWmax]]),"YES"," - ") -> - | N192: =IFERROR(rawdata[[#This Row],[FWmin]]*2," - ") -> 2.6 | O192: =IFERROR(rawdata[[#This Row],[FWmax]]*2," - ") -> 4.2 | P192: =IF(rawdata[[#This Row],[Fhmatch 2]]="YES",((1-rawdata[[#This Row],[Fwmin 2]]/rawdata[[#This Row],[FW]])+(1-rawdata[[#This Row],[FW]]/rawdata[[#This Row],[FWmax 2]]))/2,"") -> 

Sheet Імена (hidden)
A1: Матеріал фасаду | B1: Щільність, кг/м3 | D1: Товщина фасаду, мм | F1: Спосіб розраунку ваги
A2: ДСП | B2: 650 | D2: 4 | F2: Автоматичний
A3: МДФ | B3: 770 | D3: 5 | F3: Ручне введення
A4: ХДФ | B4: 900 | D4: 6
A5: Скло | B5: 2500 | D5: 7
D6: 8
D7: 9
D8: 10
D9: 11
D10: 12
D11: 13
D12: 14
D13: 15
D14: 16
D15: 17
D16: 18
D17: 19
D18: 20
D19: 21
D20: 22
D21: 23
D22: 24
D23: 25
D24: 26
D25: 27
D26: 28
D27: 29
D28: 30
D29: 31
D30: 32
D31: 33
D32: 34
D33: 35
D34: 36
D35: 37
D36: 38
D37: 39
D38: 40
